Organisation Name,Organisation Code,Effective Date,Directorate Where Expenditure Occurred,Supplier Name,Payment Date,Transaction Number,Gross Amount,Purpose of Spend,Merchant Category,Card Transactions
WALSALL COUNCIL,http://opendatacommunities.org/id/metropolitan-district-council/walsall ,30/06/2022,ECONOMY & ENVIRONMENT,AMZNMKTPLACE,01/04/2022,H59620220402EZGPFGNTV-1,36.72,DARLASTON SWIMMING AND FITNESS-CATERING & REFRESHMENTS,MISCELLANEOUS AND SPECIALTY RETAIL STORES,GPC
WALSALL COUNCIL,http://opendatacommunities.org/id/metropolitan-district-council/walsall ,30/06/2022,CHILDRENS SERVICES,AMAZON.CO.UK*295CA8X34,01/04/2022,H59620220402YNIHSNVGD-1,28.52,ADMINISTRATIVE SUPPLIES-MEDICAL REQUISITES-MATERIALS,OTHER DIRECT MARKETING-OTHER DIRECT MARKETERS,GPC
WALSALL COUNCIL,http://opendatacommunities.org/id/metropolitan-district-council/walsall ,30/06/2022,CHILDRENS SERVICES,ARGOS LTD,01/04/2022,H59620220405AGDYDMPWF-1,34.99,SAFEGUARDING & FAMILY SUPPORT-SECTION 1/17CHILD CARE ACT 198,DISCOUNT STORES,GPC
WALSALL COUNCIL,http://opendatacommunities.org/id/metropolitan-district-council/walsall ,30/06/2022,CHILDRENS SERVICES,PAYPAL *PARTIALLYSI,01/04/2022,H59620220405ANSPIDKFB-1,417.38,E19-MATERIALS,"ORGANIZATIONS, CHARITABLE AND SOCIAL SERVICE",GPC
WALSALL COUNCIL,http://opendatacommunities.org/id/metropolitan-district-council/walsall ,30/06/2022,RESOURCES AND TRANSFORMATION,CHICKEN JOES LTD,01/04/2022,H59620220405ARYYTQBJW-1,87.03,CATERING - SCHOOLS-FOOD & DRINK SUPPLIES,CATERERS,GPC
WALSALL COUNCIL,http://opendatacommunities.org/id/metropolitan-district-council/walsall ,30/06/2022,RESOURCES AND TRANSFORMATION,CHICKEN JOES LTD,01/04/2022,H59620220405BSFQPWYZH-1,440.22,CATERING - SCHOOLS-FOOD & DRINK SUPPLIES,CATERERS,GPC
WALSALL COUNCIL,http://opendatacommunities.org/id/metropolitan-district-council/walsall ,30/06/2022,CHILDRENS SERVICES,WWW.BANNERUK.COM,01/04/2022,H59620220405BWRQDEVTR-1,6.00,TRANSITION AND LEAVING CARE SU-STATIONERY & GENERAL OFFICE SU,"STATIONERY, OFFICE SUPPLIES AND WRITING PAPER",GPC
WALSALL COUNCIL,http://opendatacommunities.org/id/metropolitan-district-council/walsall ,30/06/2022,CHILDRENS SERVICES,ROYAL MAIL ONLINE SHOP,01/04/2022,H59620220405BXSXAUWRJ-1,99.00,CHILDREN'S COMMISSIONING-POSTAGES & COURIER SERVICES,POSTAL SERVICES - GOVERNMENT ONLY,GPC
WALSALL COUNCIL,http://opendatacommunities.org/id/metropolitan-district-council/walsall ,30/06/2022,RESOURCES AND TRANSFORMATION,CHICKEN JOES LTD,01/04/2022,H59620220405CCBGNQVLB-1,90.88,CATERING - SCHOOLS-FOOD & DRINK SUPPLIES,CATERERS,GPC
WALSALL COUNCIL,http://opendatacommunities.org/id/metropolitan-district-council/walsall ,30/06/2022,RESOURCES AND TRANSFORMATION,CHICKEN JOES LTD,01/04/2022,H59620220405CMPOEPTUC-1,87.03,CATERING - SCHOOLS-FOOD & DRINK SUPPLIES,CATERERS,GPC
WALSALL COUNCIL,http://opendatacommunities.org/id/metropolitan-district-council/walsall ,30/06/2022,CHILDRENS SERVICES,FINDEL EDUCATION,01/04/2022,H59620220405CPDJVXYJU-1,54.00,E19-MATERIALS,OTHER DIRECT MARKETING-OTHER DIRECT MARKETERS,GPC
WALSALL COUNCIL,http://opendatacommunities.org/id/metropolitan-district-council/walsall ,30/06/2022,RESOURCES AND TRANSFORMATION,CHICKEN JOES LTD,01/04/2022,H59620220405CQXNVNENW-1,100.06,CATERING - SCHOOLS-FOOD & DRINK SUPPLIES,CATERERS,GPC
WALSALL COUNCIL,http://opendatacommunities.org/id/metropolitan-district-council/walsall ,30/06/2022,CHILDRENS SERVICES,HALFORDS ON LINE,01/04/2022,H59620220405CRXHIKABJ-1,34.00,SAFEGUARDING & FAMILY SUPPORT-MATERIALS,"AUTOMOTIVE PARTS, ACCESSORIES STORES",GPC
WALSALL COUNCIL,http://opendatacommunities.org/id/metropolitan-district-council/walsall ,30/06/2022,RESOURCES AND TRANSFORMATION,NOBISCO LIMITED,01/04/2022,H59620220405DEMAIUWPE-1,49.90,CATERING - SCHOOLS-FOOD & DRINK SUPPLIES,OTHER INDUSTRIAL SUPPLIES,GPC
WALSALL COUNCIL,http://opendatacommunities.org/id/metropolitan-district-council/walsall ,30/06/2022,RESOURCES AND TRANSFORMATION,CHICKEN JOES LTD,01/04/2022,H59620220405DIKGCEZHP-1,109.56,CATERING - SCHOOLS-FOOD & DRINK SUPPLIES,CATERERS,GPC
WALSALL COUNCIL,http://opendatacommunities.org/id/metropolitan-district-council/walsall ,30/06/2022,RESOURCES AND TRANSFORMATION,NOBISCO LIMITED,01/04/2022,H59620220405DUQIQQMRP-1,138.97,CATERING - SCHOOLS-FOOD & DRINK SUPPLIES,OTHER INDUSTRIAL SUPPLIES,GPC
WALSALL COUNCIL,http://opendatacommunities.org/id/metropolitan-district-council/walsall ,30/06/2022,RESOURCES AND TRANSFORMATION,CHICKEN JOES LTD,01/04/2022,H59620220405ELWIPEYJK-1,360.62,CATERING - SCHOOLS-FOOD & DRINK SUPPLIES,CATERERS,GPC
WALSALL COUNCIL,http://opendatacommunities.org/id/metropolitan-district-council/walsall ,30/06/2022,RESOURCES AND TRANSFORMATION,CHICKEN JOES LTD,01/04/2022,H59620220405EUOZLUTQF-1,102.88,CATERING - SCHOOLS-FOOD & DRINK SUPPLIES,CATERERS,GPC
WALSALL COUNCIL,http://opendatacommunities.org/id/metropolitan-district-council/walsall ,30/06/2022,CHILDRENS SERVICES,SP * PLANBEE,01/04/2022,H59620220405FNGVAGWON-1,9.50,E19-MATERIALS,COMPUTER SOFTWARE STORES,GPC
WALSALL COUNCIL,http://opendatacommunities.org/id/metropolitan-district-council/walsall ,30/06/2022,ECONOMY & ENVIRONMENT,STRIKE ELECTRICAL DIST,01/04/2022,H59620220405FOWOVPFOQ-1,4.68,LEATHER MUSEUM-MATERIALS,HOUSEHOLD APPLIANCE STORES,GPC
WALSALL COUNCIL,http://opendatacommunities.org/id/metropolitan-district-council/walsall ,30/06/2022,RESOURCES AND TRANSFORMATION,POST OFFICE COUNTER,01/04/2022,H59620220405FPBEGNFHB-1,3.43,YEI ESF FUNDING-POSTAGES & COURIER SERVICES,POSTAL SERVICES - GOVERNMENT ONLY,GPC
WALSALL COUNCIL,http://opendatacommunities.org/id/metropolitan-district-council/walsall ,30/06/2022,RESOURCES AND TRANSFORMATION,POST OFFICE COUNTER,01/04/2022,H59620220405FPBEGNFHB-2,3.42,YEI (IMPACT) PROGRAMME-POSTAGES & COURIER SERVICES,POSTAL SERVICES - GOVERNMENT ONLY,GPC
WALSALL COUNCIL,http://opendatacommunities.org/id/metropolitan-district-council/walsall ,30/06/2022,CHILDRENS SERVICES,247 CARS WILLENHALL LTD,01/04/2022,H59620220405FYIILLRIF-1,-7.60,SAFEGUARDING & FAMILY SUPPORT-TAXI FARES,TAXI SERVICES,GPC
WALSALL COUNCIL,http://opendatacommunities.org/id/metropolitan-district-council/walsall ,30/06/2022,CHILDRENS SERVICES,HIGHSPEEDTRAINING.CO.U,01/04/2022,H59620220405GGSNETTUD-1,72.00,WHITEHALL JUNIOR COMMUNITY SCH-EXTERNAL TRAINING,"SCHOOLS, BUSINESS AND SECRETARIAL",GPC
WALSALL COUNCIL,http://opendatacommunities.org/id/metropolitan-district-council/walsall ,30/06/2022,CHILDRENS SERVICES,AMZNMKTPLACE,01/04/2022,H59620220405GICNZVUIH-1,102.95,SAFEGUARDING & FAMILY SUPPORT-MATERIALS,MISCELLANEOUS AND SPECIALTY RETAIL STORES,GPC
WALSALL COUNCIL,http://opendatacommunities.org/id/metropolitan-district-council/walsall ,30/06/2022,RESOURCES AND TRANSFORMATION,CHICKEN JOES LTD,01/04/2022,H59620220405HCBWUMYWH-1,112.48,CATERING - SCHOOLS-FOOD & DRINK SUPPLIES,CATERERS,GPC
WALSALL COUNCIL,http://opendatacommunities.org/id/metropolitan-district-council/walsall ,30/06/2022,ECONOMY & ENVIRONMENT,WILKO RETAIL LIMITED,01/04/2022,H59620220405HFONNFXKW-1,12.00,LEATHER MUSEUM-MATERIALS,MISCELLANEOUS GENERAL MERCHANDISE,GPC
WALSALL COUNCIL,http://opendatacommunities.org/id/metropolitan-district-council/walsall ,30/06/2022,CHILDRENS SERVICES,BUNCHES,01/04/2022,H59620220405HTIYQYUUG-1,21.25,PALFREY JUNIOR SCHOOL-MATERIALS,FLORISTS,GPC
WALSALL COUNCIL,http://opendatacommunities.org/id/metropolitan-district-council/walsall ,30/06/2022,CHILDRENS SERVICES,123 REG LTD,01/04/2022,H59620220405HWSJPNYFR-1,11.99,ADMINISTRATIVE SUPPLIES-STATIONERY & GENERAL OFFICE SU,DIRECT MARKETING CONTINUITY SUBSCRIPTION MERCHANTS,GPC
WALSALL COUNCIL,http://opendatacommunities.org/id/metropolitan-district-council/walsall ,30/06/2022,CHILDRENS SERVICES,DRAWING AND TALKING,01/04/2022,H59620220405HYSJEGTXG-1,99.00,MEADOW VIEW JMI PRIMARY SCHOOL-EXTERNAL TRAINING,"CONSULTING, MANAGEMENT, AND PR SERVICES",GPC
WALSALL COUNCIL,http://opendatacommunities.org/id/metropolitan-district-council/walsall ,30/06/2022,CHILDRENS SERVICES,WWW.JOHNLEWIS.COM,01/04/2022,H59620220405IBLWWKSYJ-1,285.00,CARE LEAVER ENTITLEMENTS-SETTING UP HOME GRANT,DEPARTMENT STORES,GPC
WALSALL COUNCIL,http://opendatacommunities.org/id/metropolitan-district-council/walsall ,30/06/2022,RESOURCES AND TRANSFORMATION,CHICKEN JOES LTD,01/04/2022,H59620220405IHDEBLDRF-1,87.03,CATERING - SCHOOLS-FOOD & DRINK SUPPLIES,CATERERS,GPC
WALSALL COUNCIL,http://opendatacommunities.org/id/metropolitan-district-council/walsall ,30/06/2022,ECONOMY & ENVIRONMENT,WETRANSFER,01/04/2022,H59620220405IJBLTCXAF-1,8.44,NAG - ART GALLERY MARKETING-SUBSCRIPTIONS,"COMPUTER PROGRAM, SYSTEM DESIGN",GPC
WALSALL COUNCIL,http://opendatacommunities.org/id/metropolitan-district-council/walsall ,30/06/2022,CHILDRENS SERVICES,G & B KENDALLS & SONS,01/04/2022,H59620220405IJJDHQGBJ-1,118.79,MARY ELLIOTT SCHOOL-FOOD & DRINK SUPPLIES,MISCELLANEOUS FOOD STORES & CONVENIENCE STORES,GPC
WALSALL COUNCIL,http://opendatacommunities.org/id/metropolitan-district-council/walsall ,30/06/2022,RESOURCES AND TRANSFORMATION,NOBISCO LIMITED,01/04/2022,H59620220405IWKLPSLQS-1,115.94,CATERING - SCHOOLS-FOOD & DRINK SUPPLIES,OTHER INDUSTRIAL SUPPLIES,GPC
WALSALL COUNCIL,http://opendatacommunities.org/id/metropolitan-district-council/walsall ,30/06/2022,CHILDRENS SERVICES,247 CARS WILLENHALL LTD,01/04/2022,H59620220405IXFIIRZHJ-1,7.20,SAFEGUARDING & FAMILY SUPPORT-TAXI FARES,TAXI SERVICES,GPC
WALSALL COUNCIL,http://opendatacommunities.org/id/metropolitan-district-council/walsall ,30/06/2022,RESOURCES AND TRANSFORMATION,CHICKEN JOES LTD,01/04/2022,H59620220405JAHIYIYJT-1,87.03,CATERING - SCHOOLS-FOOD & DRINK SUPPLIES,CATERERS,GPC
WALSALL COUNCIL,http://opendatacommunities.org/id/metropolitan-district-council/walsall ,30/06/2022,RESOURCES AND TRANSFORMATION,CHICKEN JOES LTD,01/04/2022,H59620220405JGQSCXFHA-1,123.04,CATERING - SCHOOLS-FOOD & DRINK SUPPLIES,CATERERS,GPC
WALSALL COUNCIL,http://opendatacommunities.org/id/metropolitan-district-council/walsall ,30/06/2022,RESOURCES AND TRANSFORMATION,CHICKEN JOES LTD,01/04/2022,H59620220405JHSCVEMYP-1,428.54,CATERING - SCHOOLS-FOOD & DRINK SUPPLIES,CATERERS,GPC
WALSALL COUNCIL,http://opendatacommunities.org/id/metropolitan-district-council/walsall ,30/06/2022,RESOURCES AND TRANSFORMATION,CHICKEN JOES LTD,01/04/2022,H59620220405KCAFGMZVS-1,89.12,CATERING - SCHOOLS-FOOD & DRINK SUPPLIES,CATERERS,GPC
WALSALL COUNCIL,http://opendatacommunities.org/id/metropolitan-district-council/walsall ,30/06/2022,RESOURCES AND TRANSFORMATION,CHICKEN JOES LTD,01/04/2022,H59620220405KDNODNMGD-1,88.03,CATERING - SCHOOLS-FOOD & DRINK SUPPLIES,CATERERS,GPC
WALSALL COUNCIL,http://opendatacommunities.org/id/metropolitan-district-council/walsall ,30/06/2022,RESOURCES AND TRANSFORMATION,CHICKEN JOES LTD,01/04/2022,H59620220405KFGPPVJIY-1,84.88,CATERING - SCHOOLS-FOOD & DRINK SUPPLIES,CATERERS,GPC
WALSALL COUNCIL,http://opendatacommunities.org/id/metropolitan-district-council/walsall ,30/06/2022,RESOURCES AND TRANSFORMATION,POST OFFICE COUNTER,01/04/2022,H59620220405KMULJIIZO-1,3.43,YEI ESF FUNDING-POSTAGES & COURIER SERVICES,POSTAL SERVICES - GOVERNMENT ONLY,GPC
WALSALL COUNCIL,http://opendatacommunities.org/id/metropolitan-district-council/walsall ,30/06/2022,RESOURCES AND TRANSFORMATION,POST OFFICE COUNTER,01/04/2022,H59620220405KMULJIIZO-2,3.42,YEI ESF FUNDING-POSTAGES & COURIER SERVICES,POSTAL SERVICES - GOVERNMENT ONLY,GPC
WALSALL COUNCIL,http://opendatacommunities.org/id/metropolitan-district-council/walsall ,30/06/2022,CHILDRENS SERVICES,IKEA LTD 142 BIRMINGHAM M,01/04/2022,H59620220405KMYZCUMEB-1,200.50,E19-MATERIALS,"EQUIPMENT, FURNITURE, AND HOME FURNISHINGS STORES ",GPC
WALSALL COUNCIL,http://opendatacommunities.org/id/metropolitan-district-council/walsall ,30/06/2022,RESOURCES AND TRANSFORMATION,AO RETAIL LIMITED,01/04/2022,H59620220405KTDWPCNBU-1,139.00,LAW LIBRARY-PURCHASE OF FURNITURE & EQUIPM,HOUSEHOLD APPLIANCE STORES,GPC
WALSALL COUNCIL,http://opendatacommunities.org/id/metropolitan-district-council/walsall ,30/06/2022,RESOURCES AND TRANSFORMATION,ARTHUR BRETT CATER,01/04/2022,H59620220405LBDNWMUQZ-1,58.34,CATERING - SCHOOLS-FOOD & DRINK SUPPLIES,MISCELLANEOUS FOOD STORES & CONVENIENCE STORES,GPC
WALSALL COUNCIL,http://opendatacommunities.org/id/metropolitan-district-council/walsall ,30/06/2022,RESOURCES AND TRANSFORMATION,CHICKEN JOES LTD,01/04/2022,H59620220405LDYYTXVSA-1,87.03,CATERING - SCHOOLS-FOOD & DRINK SUPPLIES,CATERERS,GPC
WALSALL COUNCIL,http://opendatacommunities.org/id/metropolitan-district-council/walsall ,30/06/2022,RESOURCES AND TRANSFORMATION,CHICKEN JOES LTD,01/04/2022,H59620220405LMEDPOXDE-1,141.35,CATERING - SCHOOLS-FOOD & DRINK SUPPLIES,CATERERS,GPC
WALSALL COUNCIL,http://opendatacommunities.org/id/metropolitan-district-council/walsall ,30/06/2022,RESOURCES AND TRANSFORMATION,CHICKEN JOES LTD,01/04/2022,H59620220405LPHPZXREL-1,123.08,CATERING - SCHOOLS-FOOD & DRINK SUPPLIES,CATERERS,GPC
WALSALL COUNCIL,http://opendatacommunities.org/id/metropolitan-district-council/walsall ,30/06/2022,#N/A,AMZNMKTPLACE,01/04/2022,H59620220405LRBPIGEOD-1,40.20,FOREST SCHOOL-MATERIALS,MISCELLANEOUS AND SPECIALTY RETAIL STORES,GPC
WALSALL COUNCIL,http://opendatacommunities.org/id/metropolitan-district-council/walsall ,30/06/2022,ECONOMY & ENVIRONMENT,MARSHALL FLEET,01/04/2022,H59620220405LRWTSVBEY-1,465.56,FLEET-MATERIALS,AUTOMOTIVE SERVICE SHOPS,GPC
WALSALL COUNCIL,http://opendatacommunities.org/id/metropolitan-district-council/walsall ,30/06/2022,RESOURCES AND TRANSFORMATION,CHICKEN JOES LTD,01/04/2022,H59620220405LWIDUUZWT-1,87.80,CATERING - SCHOOLS-FOOD & DRINK SUPPLIES,CATERERS,GPC
WALSALL COUNCIL,http://opendatacommunities.org/id/metropolitan-district-council/walsall ,30/06/2022,RESOURCES AND TRANSFORMATION,CHICKEN JOES LTD,01/04/2022,H59620220405MPOQKJGCZ-1,325.83,CATERING - SCHOOLS-FOOD & DRINK SUPPLIES,CATERERS,GPC
WALSALL COUNCIL,http://opendatacommunities.org/id/metropolitan-district-council/walsall ,30/06/2022,CHILDRENS SERVICES,PAYPAL *SAMPLESFORS,01/04/2022,H59620220405MQIPNTTSY-1,57.95,E19-MATERIALS,OTHER NONDURABLE GOODS,GPC
WALSALL COUNCIL,http://opendatacommunities.org/id/metropolitan-district-council/walsall ,30/06/2022,RESOURCES AND TRANSFORMATION,AMZNMKTPLACE,01/04/2022,H59620220405MTKJPJHKN-1,7.29,ELECTORAL SERVICES-STATIONERY & GENERAL OFFICE SU,MISCELLANEOUS AND SPECIALTY RETAIL STORES,GPC
WALSALL COUNCIL,http://opendatacommunities.org/id/metropolitan-district-council/walsall ,30/06/2022,RESOURCES AND TRANSFORMATION,CHICKEN JOES LTD,01/04/2022,H59620220405MWIDSDRGE-1,87.03,CATERING - SCHOOLS-FOOD & DRINK SUPPLIES,CATERERS,GPC
WALSALL COUNCIL,http://opendatacommunities.org/id/metropolitan-district-council/walsall ,30/06/2022,RESOURCES AND TRANSFORMATION,CHICKEN JOES LTD,01/04/2022,H59620220405NBRQSVJVH-1,102.46,CATERING - SCHOOLS-FOOD & DRINK SUPPLIES,CATERERS,GPC
WALSALL COUNCIL,http://opendatacommunities.org/id/metropolitan-district-council/walsall ,30/06/2022,CHILDRENS SERVICES,H D RICKETTS,01/04/2022,H59620220405NHSYMSOKY-1,"1,776.00",PELSALL VILLAGE SCHOOL-OPERATIONAL MAINTENANCE,LUMBER & BUILDING MATERIALS STORES,GPC
WALSALL COUNCIL,http://opendatacommunities.org/id/metropolitan-district-council/walsall ,30/06/2022,RESOURCES AND TRANSFORMATION,POST OFFICE COUNTER,01/04/2022,H59620220405NSQWFCPQO-1,3.43,YEI ESF FUNDING-POSTAGES & COURIER SERVICES,POSTAL SERVICES - GOVERNMENT ONLY,GPC
WALSALL COUNCIL,http://opendatacommunities.org/id/metropolitan-district-council/walsall ,30/06/2022,RESOURCES AND TRANSFORMATION,POST OFFICE COUNTER,01/04/2022,H59620220405NSQWFCPQO-2,3.42,YEI (IMPACT) PROGRAMME-POSTAGES & COURIER SERVICES,POSTAL SERVICES - GOVERNMENT ONLY,GPC
WALSALL COUNCIL,http://opendatacommunities.org/id/metropolitan-district-council/walsall ,30/06/2022,RESOURCES AND TRANSFORMATION,CHICKEN JOES LTD,01/04/2022,H59620220405NVKXMLRIV-1,97.97,CATERING - SCHOOLS-FOOD & DRINK SUPPLIES,CATERERS,GPC
WALSALL COUNCIL,http://opendatacommunities.org/id/metropolitan-district-council/walsall ,30/06/2022,RESOURCES AND TRANSFORMATION,ARTHUR BRETT CATER,01/04/2022,H59620220405NZZSHBSSY-1,34.62,CATERING - SCHOOLS-FOOD & DRINK SUPPLIES,MISCELLANEOUS FOOD STORES & CONVENIENCE STORES,GPC
WALSALL COUNCIL,http://opendatacommunities.org/id/metropolitan-district-council/walsall ,30/06/2022,RESOURCES AND TRANSFORMATION,CHICKEN JOES LTD,01/04/2022,H59620220405OGCMWGWKP-1,179.75,CATERING - SCHOOLS-FOOD & DRINK SUPPLIES,CATERERS,GPC
WALSALL COUNCIL,http://opendatacommunities.org/id/metropolitan-district-council/walsall ,30/06/2022,CHILDRENS SERVICES,247 CARS WILLENHALL LTD,01/04/2022,H59620220405OLJTMDYDX-1,7.60,SAFEGUARDING & FAMILY SUPPORT-TAXI FARES,TAXI SERVICES,GPC
WALSALL COUNCIL,http://opendatacommunities.org/id/metropolitan-district-council/walsall ,30/06/2022,ECONOMY & ENVIRONMENT,PHOTO-ME INTERNATIONAL PL,01/04/2022,H59620220405PVWXYXQYD-1,8.00,RESTART-CLOTHING & LAUNDRY,LAUNDRY SERVICES FAMILY AND COMMERCIAL,GPC
WALSALL COUNCIL,http://opendatacommunities.org/id/metropolitan-district-council/walsall ,30/06/2022,CHILDRENS SERVICES,AMZNMKTPLACE,01/04/2022,H59620220405PYFXPJGOS-1,349.00,DT & ART-PURCHASE OF FURNITURE & EQUIPM,MISCELLANEOUS AND SPECIALTY RETAIL STORES,GPC
WALSALL COUNCIL,http://opendatacommunities.org/id/metropolitan-district-council/walsall ,30/06/2022,CHILDRENS SERVICES,ALDI 772 129,01/04/2022,H59620220405QEIGBOCJS-1,15.25,HOUSING YEI/ESF MATCH-CLEANING MATERIALS,GROCERY STORES AND SUPERMARKETS,GPC
WALSALL COUNCIL,http://opendatacommunities.org/id/metropolitan-district-council/walsall ,30/06/2022,CHILDRENS SERVICES,DECATHLON WEDNESBURY,01/04/2022,H59620220405QELJHOXSI-1,9.98,FAMILY PLACEMENTS-PURCHASE OF FURNITURE & EQUIPM,SPORTING GOODS STORES,GPC
WALSALL COUNCIL,http://opendatacommunities.org/id/metropolitan-district-council/walsall ,30/06/2022,CHILDRENS SERVICES,ASDA STORES,01/04/2022,H59620220405QFOILOWPP-1,11.00,LOOKED AFTER CHILDRENS SOCIAL -FOOD & DRINK SUPPLIES,GROCERY STORES AND SUPERMARKETS,GPC
WALSALL COUNCIL,http://opendatacommunities.org/id/metropolitan-district-council/walsall ,30/06/2022,RESOURCES AND TRANSFORMATION,ARTHUR BRETT CATER,01/04/2022,H59620220405QPMMNXDSE-1,36.26,CATERING - SCHOOLS-FOOD & DRINK SUPPLIES,MISCELLANEOUS FOOD STORES & CONVENIENCE STORES,GPC
WALSALL COUNCIL,http://opendatacommunities.org/id/metropolitan-district-council/walsall ,30/06/2022,ECONOMY & ENVIRONMENT,WALSALL STN T/O,01/04/2022,H59620220405QQVKSPGZB-1,35.50,RESTART-OFFICERS & STAFF PUBLIC TRANSP,PASSENGER RAILWAYS,GPC
WALSALL COUNCIL,http://opendatacommunities.org/id/metropolitan-district-council/walsall ,30/06/2022,RESOURCES AND TRANSFORMATION,CHICKEN JOES LTD,01/04/2022,H59620220405QTVXIKHLU-1,97.97,CATERING - SCHOOLS-FOOD & DRINK SUPPLIES,CATERERS,GPC
WALSALL COUNCIL,http://opendatacommunities.org/id/metropolitan-district-council/walsall ,30/06/2022,RESOURCES AND TRANSFORMATION,CHICKEN JOES LTD,01/04/2022,H59620220405QVDFSBHEO-1,90.88,CATERING - SCHOOLS-FOOD & DRINK SUPPLIES,CATERERS,GPC
WALSALL COUNCIL,http://opendatacommunities.org/id/metropolitan-district-council/walsall ,30/06/2022,RESOURCES AND TRANSFORMATION,CHICKEN JOES LTD,01/04/2022,H59620220405QWWMIAJMS-1,109.46,CATERING - SCHOOLS-FOOD & DRINK SUPPLIES,CATERERS,GPC
WALSALL COUNCIL,http://opendatacommunities.org/id/metropolitan-district-council/walsall ,30/06/2022,RESOURCES AND TRANSFORMATION,CHICKEN JOES LTD,01/04/2022,H59620220405RBXNNQTBH-1,159.74,CATERING - SCHOOLS-CATERING & REFRESHMENTS,CATERERS,GPC
WALSALL COUNCIL,http://opendatacommunities.org/id/metropolitan-district-council/walsall ,30/06/2022,CHILDRENS SERVICES,AMZNMKTPLACE,01/04/2022,H59620220405RDZJTVSTD-1,24.99,LEIGHSWOOD PRIMARY SCHOOL-PERSONAL REQUISITES-MATERIALS,MISCELLANEOUS AND SPECIALTY RETAIL STORES,GPC
WALSALL COUNCIL,http://opendatacommunities.org/id/metropolitan-district-council/walsall ,30/06/2022,CHILDRENS SERVICES,AMZNMKTPLACE,01/04/2022,H59620220405RIFOTUCNX-1,13.47,ROSEDALE C.E. PRIMARY SCHOOL-OPERATIONAL MAINTENANCE,MISCELLANEOUS AND SPECIALTY RETAIL STORES,GPC
WALSALL COUNCIL,http://opendatacommunities.org/id/metropolitan-district-council/walsall ,30/06/2022,CHILDRENS SERVICES,SCOTT ARMS ASSOCIATES LT,01/04/2022,H59620220405RJXQLEYBB-1,397.00,LOOKED AFTER CHILDRENS SOCIAL -PROFESSIONAL FEES & SERVICES,"DENTISTS, ORTHODONTISTS",GPC
WALSALL COUNCIL,http://opendatacommunities.org/id/metropolitan-district-council/walsall ,30/06/2022,RESOURCES AND TRANSFORMATION,CHICKEN JOES LTD,01/04/2022,H59620220405RNRMNUYEC-1,127.88,CATERING - SCHOOLS-FOOD & DRINK SUPPLIES,CATERERS,GPC
WALSALL COUNCIL,http://opendatacommunities.org/id/metropolitan-district-council/walsall ,30/06/2022,RESOURCES AND TRANSFORMATION,NOBISCO LIMITED,01/04/2022,H59620220405RXHFJXMOE-1,53.93,CATERING - SCHOOLS-FOOD & DRINK SUPPLIES,OTHER INDUSTRIAL SUPPLIES,GPC
WALSALL COUNCIL,http://opendatacommunities.org/id/metropolitan-district-council/walsall ,30/06/2022,CHILDRENS SERVICES,WOB.COM,01/04/2022,H59620220405SEMQKLQLW-1,11.88,SPECIAL FACILITIES-MATERIALS,"BOOKS, PERIODICALS AND NEWSPAPERS",GPC
WALSALL COUNCIL,http://opendatacommunities.org/id/metropolitan-district-council/walsall ,30/06/2022,CHILDRENS SERVICES,WALSALL COUNCIL,01/04/2022,H59620220405SLQUQGOOR-1,42.22,PELSALL VILLAGE SCHOOL-POLICE CHECKS,GOVERNMENT SERVICES,GPC
WALSALL COUNCIL,http://opendatacommunities.org/id/metropolitan-district-council/walsall ,30/06/2022,CHILDRENS SERVICES,SPORTSDIRECT 153,01/04/2022,H59620220405STTKFYSEV-1,172.14,"43A HILTON ROAD, WILLENHALL-RESIDENTS PERSONAL EXPENSES-AL",SPORTING GOODS STORES,GPC
WALSALL COUNCIL,http://opendatacommunities.org/id/metropolitan-district-council/walsall ,30/06/2022,ECONOMY & ENVIRONMENT,AMAZON.CO.UK*294S10VQ4,01/04/2022,H59620220405TAYMWNDFL-1,92.50,BLOXWICH ACTIVE LIVING CENTRE-MATERIALS,OTHER DIRECT MARKETING-OTHER DIRECT MARKETERS,GPC
WALSALL COUNCIL,http://opendatacommunities.org/id/metropolitan-district-council/walsall ,30/06/2022,ECONOMY & ENVIRONMENT,AMAZON.CO.UK*294S10VQ4,01/04/2022,H59620220405TAYMWNDFL-2,92.50,DARLASTON SWIMMING AND FITNESS-MATERIALS,OTHER DIRECT MARKETING-OTHER DIRECT MARKETERS,GPC
WALSALL COUNCIL,http://opendatacommunities.org/id/metropolitan-district-council/walsall ,30/06/2022,ECONOMY & ENVIRONMENT,AMAZON.CO.UK*294S10VQ4,01/04/2022,H59620220405TAYMWNDFL-3,92.50,OAK PARK ACTIVE LIVING CENTRE-MATERIALS,OTHER DIRECT MARKETING-OTHER DIRECT MARKETERS,GPC
WALSALL COUNCIL,http://opendatacommunities.org/id/metropolitan-district-council/walsall ,30/06/2022,ECONOMY & ENVIRONMENT,AMAZON.CO.UK*294S10VQ4,01/04/2022,H59620220405TAYMWNDFL-4,92.49,WALSALL GALA SWIMMING AND FITN-MATERIALS,OTHER DIRECT MARKETING-OTHER DIRECT MARKETERS,GPC
WALSALL COUNCIL,http://opendatacommunities.org/id/metropolitan-district-council/walsall ,30/06/2022,CHILDRENS SERVICES,WALSALL COUNCIL,01/04/2022,H59620220405TDLXMXYSX-1,41.00,LOOKED AFTER CHILDRENS SOCIAL -FEES & LICENCES,GOVERNMENT SERVICES,GPC
WALSALL COUNCIL,http://opendatacommunities.org/id/metropolitan-district-council/walsall ,30/06/2022,RESOURCES AND TRANSFORMATION,CHICKEN JOES LTD,01/04/2022,H59620220405TFOMUTZAL-1,114.08,CATERING - SCHOOLS-FOOD & DRINK SUPPLIES,CATERERS,GPC
WALSALL COUNCIL,http://opendatacommunities.org/id/metropolitan-district-council/walsall ,30/06/2022,RESOURCES AND TRANSFORMATION,CHICKEN JOES LTD,01/04/2022,H59620220405THOGGYOIF-1,95.82,CATERING - SCHOOLS-CATERING & REFRESHMENTS,CATERERS,GPC
WALSALL COUNCIL,http://opendatacommunities.org/id/metropolitan-district-council/walsall ,30/06/2022,RESOURCES AND TRANSFORMATION,CHICKEN JOES LTD,01/04/2022,H59620220405TMHZSCPGK-1,88.14,CATERING - SCHOOLS-FOOD & DRINK SUPPLIES,CATERERS,GPC
WALSALL COUNCIL,http://opendatacommunities.org/id/metropolitan-district-council/walsall ,30/06/2022,RESOURCES AND TRANSFORMATION,CHICKEN JOES LTD,01/04/2022,H59620220405TWOOPIDVI-1,114.88,CATERING - SCHOOLS-FOOD & DRINK SUPPLIES,CATERERS,GPC
WALSALL COUNCIL,http://opendatacommunities.org/id/metropolitan-district-council/walsall ,30/06/2022,RESOURCES AND TRANSFORMATION,CHICKEN JOES LTD,01/04/2022,H59620220405UDKPKMZWN-1,87.34,CATERING - SCHOOLS-FOOD & DRINK SUPPLIES,CATERERS,GPC
WALSALL COUNCIL,http://opendatacommunities.org/id/metropolitan-district-council/walsall ,30/06/2022,RESOURCES AND TRANSFORMATION,CHICKEN JOES LTD,01/04/2022,H59620220405UOWVZGSZV-1,96.08,CATERING - SCHOOLS-FOOD & DRINK SUPPLIES,CATERERS,GPC
WALSALL COUNCIL,http://opendatacommunities.org/id/metropolitan-district-council/walsall ,30/06/2022,RESOURCES AND TRANSFORMATION,CHICKEN JOES LTD,01/04/2022,H59620220405UTMLLOUJQ-1,88.99,CATERING - SCHOOLS-FOOD & DRINK SUPPLIES,CATERERS,GPC
WALSALL COUNCIL,http://opendatacommunities.org/id/metropolitan-district-council/walsall ,30/06/2022,CHILDRENS SERVICES,METRO WALSALL,01/04/2022,H59620220405UVLJSCZET-1,114.00,WALSALL CRISIS SUPPORT SCHEME-BED & BREAKFAST PAYMENTS,"HOTELS, MOTELS, RESORTS",GPC
WALSALL COUNCIL,http://opendatacommunities.org/id/metropolitan-district-council/walsall ,30/06/2022,RESOURCES AND TRANSFORMATION,AMZNMKTPLACE,01/04/2022,H59620220405VFOPFFXPL-1,27.96,RECHARGEABLE - NON SCHOOLS MAI-OPERATIONAL MAINTENANCE,MISCELLANEOUS AND SPECIALTY RETAIL STORES,GPC
WALSALL COUNCIL,http://opendatacommunities.org/id/metropolitan-district-council/walsall ,30/06/2022,CHILDRENS SERVICES,ROYAL MAIL ONLINE SHOP,01/04/2022,H59620220405VHXIOBBKF-1,255.00,CHILDREN'S COMMISSIONING-POSTAGES & COURIER SERVICES,POSTAL SERVICES - GOVERNMENT ONLY,GPC
WALSALL COUNCIL,http://opendatacommunities.org/id/metropolitan-district-council/walsall ,30/06/2022,RESOURCES AND TRANSFORMATION,CHICKEN JOES LTD,01/04/2022,H59620220405VMDFKBCOE-1,99.88,CATERING - SCHOOLS-FOOD & DRINK SUPPLIES,CATERERS,GPC
WALSALL COUNCIL,http://opendatacommunities.org/id/metropolitan-district-council/walsall ,30/06/2022,RESOURCES AND TRANSFORMATION,CHICKEN JOES LTD,01/04/2022,H59620220405VNWPLRTHI-1,101.64,CATERING - SCHOOLS-FOOD & DRINK SUPPLIES,CATERERS,GPC
WALSALL COUNCIL,http://opendatacommunities.org/id/metropolitan-district-council/walsall ,30/06/2022,CHILDRENS SERVICES,ALDI 14 772,01/04/2022,H59620220405VOHOCOIOE-1,42.77,PARENTING TEAM-FOOD & DRINK SUPPLIES,GROCERY STORES AND SUPERMARKETS,GPC
WALSALL COUNCIL,http://opendatacommunities.org/id/metropolitan-district-council/walsall ,30/06/2022,RESOURCES AND TRANSFORMATION,CHICKEN JOES LTD,01/04/2022,H59620220405VWHFVTPTN-1,90.88,CATERING - SCHOOLS-FOOD & DRINK SUPPLIES,CATERERS,GPC
WALSALL COUNCIL,http://opendatacommunities.org/id/metropolitan-district-council/walsall ,30/06/2022,CHILDRENS SERVICES,WWW.OFFICEFURNITUREONLINE,01/04/2022,H59620220405WKWWREDHG-1,113.94,ADMINISTRATIVE SUPPLIES-MATERIALS,OFFICE AND COMMERCIAL FURNITURE,GPC
WALSALL COUNCIL,http://opendatacommunities.org/id/metropolitan-district-council/walsall ,30/06/2022,CHILDRENS SERVICES,WALSALL COUNCIL,01/04/2022,H59620220405WKXBDYPEY-1,42.22,ST FRANCIS OF ASSISI CATHOLIC -POLICE CHECKS,GOVERNMENT SERVICES,GPC
WALSALL COUNCIL,http://opendatacommunities.org/id/metropolitan-district-council/walsall ,30/06/2022,ECONOMY & ENVIRONMENT,B&Q LTD,01/04/2022,H59620220405WNEEPUWSX-1,-12.60,RESTART-MATERIALS,LUMBER & BUILDING MATERIALS STORES,GPC
WALSALL COUNCIL,http://opendatacommunities.org/id/metropolitan-district-council/walsall ,30/06/2022,RESOURCES AND TRANSFORMATION,CHICKEN JOES LTD,01/04/2022,H59620220405XHGQYCUYE-1,90.88,CATERING - SCHOOLS-FOOD & DRINK SUPPLIES,CATERERS,GPC
WALSALL COUNCIL,http://opendatacommunities.org/id/metropolitan-district-council/walsall ,30/06/2022,ECONOMY & ENVIRONMENT,ASDA,01/04/2022,H59620220405XSKTILWGX-1,10.20,RESTART-CLOTHING & LAUNDRY,GROCERY STORES AND SUPERMARKETS,GPC
WALSALL COUNCIL,http://opendatacommunities.org/id/metropolitan-district-council/walsall ,30/06/2022,CHILDRENS SERVICES,AMZNMKTPLACE,01/04/2022,H59620220405YCVGJJVDU-1,26.95,SAFEGUARDING & FAMILY SUPPORT-MATERIALS,MISCELLANEOUS AND SPECIALTY RETAIL STORES,GPC
WALSALL COUNCIL,http://opendatacommunities.org/id/metropolitan-district-council/walsall ,30/06/2022,#N/A,AMZNMKTPLACE,01/04/2022,H59620220405YHXXBSSEH-1,4.99,FOREST SCHOOL-MATERIALS,MISCELLANEOUS AND SPECIALTY RETAIL STORES,GPC
WALSALL COUNCIL,http://opendatacommunities.org/id/metropolitan-district-council/walsall ,30/06/2022,CHILDRENS SERVICES,ALLPAY *WALSALL HOUSING G,01/04/2022,H59620220405YIRUYIIIF-1,94.84,HOMELESSNESS PREVENTION STRATE-RENTS,"ORGANIZATIONS, CHARITABLE AND SOCIAL SERVICE",GPC
WALSALL COUNCIL,http://opendatacommunities.org/id/metropolitan-district-council/walsall ,30/06/2022,CHILDRENS SERVICES,HOWARD PLASTICS,01/04/2022,H59620220405ZIHDXJKYD-1,155.40,E19-MATERIALS,OTHER INDUSTRIAL SUPPLIES,GPC
WALSALL COUNCIL,http://opendatacommunities.org/id/metropolitan-district-council/walsall ,30/06/2022,RESOURCES AND TRANSFORMATION,WWW.SCC.COM,01/04/2022,H59620220408RPPDJQAVL-1,"1,126.80",RECHARGEABLE EQUIPMENT-COMPUTER EQUIPMENT,"COMPUTERS, COMPUTER PERIPHERAL EQUIPMENT, SOFTWARE",GPC
WALSALL COUNCIL,http://opendatacommunities.org/id/metropolitan-district-council/walsall ,30/06/2022,#N/A,AMZNMKTPLACE,02/04/2022,H59620220405BMDSEPJLY-1,16.60,FOREST SCHOOL-MATERIALS,MISCELLANEOUS AND SPECIALTY RETAIL STORES,GPC
WALSALL COUNCIL,http://opendatacommunities.org/id/metropolitan-district-council/walsall ,30/06/2022,CHILDRENS SERVICES,POST OFFICE COUNTER,02/04/2022,H59620220405CGVRPKHYE-1,2.25,LOOKED AFTER CHILDRENS SOCIAL -POSTAGES & COURIER SERVICES,POSTAL SERVICES - GOVERNMENT ONLY,GPC
WALSALL COUNCIL,http://opendatacommunities.org/id/metropolitan-district-council/walsall ,30/06/2022,ECONOMY & ENVIRONMENT,ASDA SUPERSTORE,02/04/2022,H59620220405HMCIQJOUZ-1,9.85,BLOXWICH ACTIVE LIVING CENTRE-FOOD & DRINK SUPPLIES,GROCERY STORES AND SUPERMARKETS,GPC
WALSALL COUNCIL,http://opendatacommunities.org/id/metropolitan-district-council/walsall ,30/06/2022,CHILDRENS SERVICES,ALDI 772 129,02/04/2022,H59620220405JJRGPVRQE-1,48.06,"43A HILTON ROAD, WILLENHALL-FOOD & DRINK SUPPLIES",GROCERY STORES AND SUPERMARKETS,GPC
WALSALL COUNCIL,http://opendatacommunities.org/id/metropolitan-district-council/walsall ,30/06/2022,CHILDRENS SERVICES,ALDI 772 129,02/04/2022,H59620220405JJRGPVRQE-2,19.07,"43A HILTON ROAD, WILLENHALL-FOOD & DRINK SUPPLIES",GROCERY STORES AND SUPERMARKETS,GPC
WALSALL COUNCIL,http://opendatacommunities.org/id/metropolitan-district-council/walsall ,30/06/2022,ECONOMY & ENVIRONMENT,POUNDLAND LTD 1427,02/04/2022,H59620220405JSDGGQITD-1,2.00,AUDIENCE DEVELOPMENT-CATERING & REFRESHMENTS,DISCOUNT STORES,GPC
WALSALL COUNCIL,http://opendatacommunities.org/id/metropolitan-district-council/walsall ,30/06/2022,ECONOMY & ENVIRONMENT,POUNDLAND LTD 1427,02/04/2022,H59620220405JSDGGQITD-2,6.75,AUDIENCE DEVELOPMENT-CATERING & REFRESHMENTS,DISCOUNT STORES,GPC
WALSALL COUNCIL,http://opendatacommunities.org/id/metropolitan-district-council/walsall ,30/06/2022,CHILDRENS SERVICES,"BOOTS,WALSALL",02/04/2022,H59620220405JYLANVBNR-1,8.75,GENERAL MANAGEMENT SUPPORT (IN-FOOD & DRINK SUPPLIES,"DRUG STORES, PHARMACIES",GPC
WALSALL COUNCIL,http://opendatacommunities.org/id/metropolitan-district-council/walsall ,30/06/2022,CHILDRENS SERVICES,CS* TESCO STORES GC,02/04/2022,H59620220405NGJSEAYZM-1,15.00,RUSHALL PRIMARY SCHOOL-FOOD & DRINK SUPPLIES,OTHER BUSINESS SERVICES,GPC
WALSALL COUNCIL,http://opendatacommunities.org/id/metropolitan-district-council/walsall ,30/06/2022,CHILDRENS SERVICES,ADOBE ACROPRO SUBS,02/04/2022,H59620220405OKQYBYFNT-1,15.17,ADMINISTRATIVE SUPPLIES-MATERIALS,COMPUTER SOFTWARE STORES,GPC
WALSALL COUNCIL,http://opendatacommunities.org/id/metropolitan-district-council/walsall ,30/06/2022,ECONOMY & ENVIRONMENT,AMZNMKTPLACE,02/04/2022,H59620220405TBQYNRIBZ-1,26.97,DARLASTON SWIMMING AND FITNESS-PURCHASE OF FURNITURE & EQUIPM,MISCELLANEOUS AND SPECIALTY RETAIL STORES,GPC
WALSALL COUNCIL,http://opendatacommunities.org/id/metropolitan-district-council/walsall ,30/06/2022,CHILDRENS SERVICES,WWW.GAME.CO.UK,02/04/2022,H59620220405VKFWKQOWW-1,5.00,REDRUTH ROAD-RESIDENTS PERSONAL EXPENSES-AL,"GAME, TOY, AND HOBBY SHOPS",GPC
WALSALL COUNCIL,http://opendatacommunities.org/id/metropolitan-district-council/walsall ,30/06/2022,CHILDRENS SERVICES,WWW.GAME.CO.UK,02/04/2022,H59620220405VYIZFBYDC-1,5.00,REDRUTH ROAD-RESIDENTS PERSONAL EXPENSES-AL,"GAME, TOY, AND HOBBY SHOPS",GPC
WALSALL COUNCIL,http://opendatacommunities.org/id/metropolitan-district-council/walsall ,30/06/2022,CHILDRENS SERVICES,WWW.GAME.CO.UK,02/04/2022,H59620220405XCBFTQNRT-1,10.00,REDRUTH ROAD-MATERIALS,"GAME, TOY, AND HOBBY SHOPS",GPC
WALSALL COUNCIL,http://opendatacommunities.org/id/metropolitan-district-council/walsall ,30/06/2022,CHILDRENS SERVICES,GSUITE_ALUMWELLJUNIOR.CO.,02/04/2022,H59620220405YHWWNOFFO-1,6.00,ADMINISTRATIVE SUPPLIES-MATERIALS,COMPUTER NETWORK/INFORMATION SERVICES,GPC
WALSALL COUNCIL,http://opendatacommunities.org/id/metropolitan-district-council/walsall ,30/06/2022,CHILDRENS SERVICES,AMZNMKTPLACE,02/04/2022,H59620220405ZKMYBIVTS-1,43.46,E19-MATERIALS,MISCELLANEOUS AND SPECIALTY RETAIL STORES,GPC
WALSALL COUNCIL,http://opendatacommunities.org/id/metropolitan-district-council/walsall ,30/06/2022,RESOURCES AND TRANSFORMATION,AMZNMKTPLACE,02/04/2022,H59620220405ZPKOZVYFQ-1,12.99,RECHARGEABLE - NON SCHOOLS MAI-OPERATIONAL MAINTENANCE,MISCELLANEOUS AND SPECIALTY RETAIL STORES,GPC
WALSALL COUNCIL,http://opendatacommunities.org/id/metropolitan-district-council/walsall ,30/06/2022,CHILDRENS SERVICES,AMZNMKTPLACE,03/04/2022,H59620220405BGMEIXBOV-1,25.98,ST FRANCIS OF ASSISI CATHOLIC -OPERATIONAL MAINTENANCE,MISCELLANEOUS AND SPECIALTY RETAIL STORES,GPC
WALSALL COUNCIL,http://opendatacommunities.org/id/metropolitan-district-council/walsall ,30/06/2022,RESOURCES AND TRANSFORMATION,FACEBK PDBTZBFA42,03/04/2022,H59620220405DFKQIIDOF-1,25.00,YEI ESF FUNDING-PUBLICITY & ADVERTISING (NON S,ADVERTISING SERVICES,GPC
WALSALL COUNCIL,http://opendatacommunities.org/id/metropolitan-district-council/walsall ,30/06/2022,RESOURCES AND TRANSFORMATION,FACEBK PDBTZBFA42,03/04/2022,H59620220405DFKQIIDOF-2,25.00,YEI (IMPACT) PROGRAMME-PUBLICITY & ADVERTISING (NON S,ADVERTISING SERVICES,GPC
WALSALL COUNCIL,http://opendatacommunities.org/id/metropolitan-district-council/walsall ,30/06/2022,CHILDRENS SERVICES,AMZNMKTPLACE,03/04/2022,H59620220405DIVEOVJDV-1,17.99,SAFEGUARDING & FAMILY SUPPORT-STATIONERY & GENERAL OFFICE SU,MISCELLANEOUS AND SPECIALTY RETAIL STORES,GPC
WALSALL COUNCIL,http://opendatacommunities.org/id/metropolitan-district-council/walsall ,30/06/2022,CHILDRENS SERVICES,AMZNMKTPLACE,03/04/2022,H59620220405DMVXLYVFZ-1,18.78,ST FRANCIS OF ASSISI CATHOLIC -OPERATIONAL MAINTENANCE,MISCELLANEOUS AND SPECIALTY RETAIL STORES,GPC
WALSALL COUNCIL,http://opendatacommunities.org/id/metropolitan-district-council/walsall ,30/06/2022,CHILDRENS SERVICES,AMZNMKTPLACE,03/04/2022,H59620220405EBUVSNSHY-1,17.44,ADMINISTRATIVE SUPPLIES-MATERIALS,MISCELLANEOUS AND SPECIALTY RETAIL STORES,GPC
WALSALL COUNCIL,http://opendatacommunities.org/id/metropolitan-district-council/walsall ,30/06/2022,CHILDRENS SERVICES,AMZNMKTPLACE,03/04/2022,H59620220405FTNDUFEKB-1,11.98,SAFEGUARDING & FAMILY SUPPORT-MATERIALS,MISCELLANEOUS AND SPECIALTY RETAIL STORES,GPC
WALSALL COUNCIL,http://opendatacommunities.org/id/metropolitan-district-council/walsall ,30/06/2022,#N/A,AMZNMKTPLACE,03/04/2022,H59620220405GCKRZGUAD-1,7.99,FOREST SCHOOL-MATERIALS,MISCELLANEOUS AND SPECIALTY RETAIL STORES,GPC
WALSALL COUNCIL,http://opendatacommunities.org/id/metropolitan-district-council/walsall ,30/06/2022,CHILDRENS SERVICES,AMZNMKTPLACE,03/04/2022,H59620220405GHOFHJOEM-1,127.96,E19-MATERIALS,MISCELLANEOUS AND SPECIALTY RETAIL STORES,GPC
WALSALL COUNCIL,http://opendatacommunities.org/id/metropolitan-district-council/walsall ,30/06/2022,CHILDRENS SERVICES,AMZNMKTPLACE,03/04/2022,H59620220405GTNHSCBSY-1,9.99,GENERAL-MATERIALS,MISCELLANEOUS AND SPECIALTY RETAIL STORES,GPC
WALSALL COUNCIL,http://opendatacommunities.org/id/metropolitan-district-council/walsall ,30/06/2022,CHILDRENS SERVICES,SMARTY CO UK,03/04/2022,H59620220405HQXKEEROR-1,12.00,"43A HILTON ROAD, WILLENHALL-LANDLINE PHONES",TELECOMMUNICATION SERVICES,GPC
WALSALL COUNCIL,http://opendatacommunities.org/id/metropolitan-district-council/walsall ,30/06/2022,#N/A,AMZNMKTPLACE,03/04/2022,H59620220405JCCFGTYHZ-1,17.08,FOREST SCHOOL-MATERIALS,MISCELLANEOUS AND SPECIALTY RETAIL STORES,GPC
WALSALL COUNCIL,http://opendatacommunities.org/id/metropolitan-district-council/walsall ,30/06/2022,CHILDRENS SERVICES,AMZNMKTPLACE,03/04/2022,H59620220405LMESBNRCD-1,48.30,LEAMORE PRIMARY SCHOOL-OPERATIONAL MAINTENANCE,MISCELLANEOUS AND SPECIALTY RETAIL STORES,GPC
WALSALL COUNCIL,http://opendatacommunities.org/id/metropolitan-district-council/walsall ,30/06/2022,#N/A,AMZNMKTPLACE,03/04/2022,H59620220405NAEEJLILC-1,13.98,FOREST SCHOOL-MATERIALS,MISCELLANEOUS AND SPECIALTY RETAIL STORES,GPC
WALSALL COUNCIL,http://opendatacommunities.org/id/metropolitan-district-council/walsall ,30/06/2022,CHILDRENS SERVICES,AMAZON.CO.UK*290AV4QN4,03/04/2022,H59620220405NLLKRLGEY-1,108.00,E19-MATERIALS,OTHER DIRECT MARKETING-OTHER DIRECT MARKETERS,GPC
WALSALL COUNCIL,http://opendatacommunities.org/id/metropolitan-district-council/walsall ,30/06/2022,CHILDRENS SERVICES,AMAZON.CO.UK*290N46QZ4,03/04/2022,H59620220405NOSMLQMCZ-1,24.99,SAFEGUARDING & FAMILY SUPPORT-MATERIALS,OTHER DIRECT MARKETING-OTHER DIRECT MARKETERS,GPC
WALSALL COUNCIL,http://opendatacommunities.org/id/metropolitan-district-council/walsall ,30/06/2022,CHILDRENS SERVICES,AMZNMKTPLACE,03/04/2022,H59620220405NWQMTRNDQ-1,16.98,SAFEGUARDING & FAMILY SUPPORT-MATERIALS,MISCELLANEOUS AND SPECIALTY RETAIL STORES,GPC
WALSALL COUNCIL,http://opendatacommunities.org/id/metropolitan-district-council/walsall ,30/06/2022,CHILDRENS SERVICES,AMZNMKTPLACE,03/04/2022,H59620220405ODUWEWCDN-1,12.96,SAFEGUARDING & FAMILY SUPPORT-MATERIALS,MISCELLANEOUS AND SPECIALTY RETAIL STORES,GPC
WALSALL COUNCIL,http://opendatacommunities.org/id/metropolitan-district-council/walsall ,30/06/2022,CHILDRENS SERVICES,AMZNMKTPLACE,03/04/2022,H59620220405OWHBVMBLB-1,21.98,NURTURE GROUP-MATERIALS,MISCELLANEOUS AND SPECIALTY RETAIL STORES,GPC
WALSALL COUNCIL,http://opendatacommunities.org/id/metropolitan-district-council/walsall ,30/06/2022,RESOURCES AND TRANSFORMATION,WP ENGINE,03/04/2022,H59620220405PXGIVNJPX-1,265.99,APPLICATIONS-COMPUTER EQUIPMENT,COMPUTER NETWORK/INFORMATION SERVICES,GPC
WALSALL COUNCIL,http://opendatacommunities.org/id/metropolitan-district-council/walsall ,30/06/2022,CHILDRENS SERVICES,B&M 419 - HS REEDSWOOD,03/04/2022,H59620220405QIDAECHWC-1,15.19,"43A HILTON ROAD, WILLENHALL-CATERING & REFRESHMENTS",MISCELLANEOUS GENERAL MERCHANDISE,GPC
WALSALL COUNCIL,http://opendatacommunities.org/id/metropolitan-district-council/walsall ,30/06/2022,CHILDRENS SERVICES,AMZNMKTPLACE,03/04/2022,H59620220405RKEHOXJOM-1,19.66,SPECIAL FACILITIES-STATIONERY & GENERAL OFFICE SU,MISCELLANEOUS AND SPECIALTY RETAIL STORES,GPC
WALSALL COUNCIL,http://opendatacommunities.org/id/metropolitan-district-council/walsall ,30/06/2022,CHILDRENS SERVICES,AMZNMKTPLACE,03/04/2022,H59620220405STRDJNLPE-1,6.98,SAFEGUARDING & FAMILY SUPPORT-MATERIALS,MISCELLANEOUS AND SPECIALTY RETAIL STORES,GPC
WALSALL COUNCIL,http://opendatacommunities.org/id/metropolitan-district-council/walsall ,30/06/2022,CHILDRENS SERVICES,AMAZON.CO.UK*2964X3QB4,03/04/2022,H59620220405SWLFSUMOV-1,50.00,PASTROL (REWARDS & PRIZES)-MATERIALS,OTHER DIRECT MARKETING-OTHER DIRECT MARKETERS,GPC
WALSALL COUNCIL,http://opendatacommunities.org/id/metropolitan-district-council/walsall ,30/06/2022,ECONOMY & ENVIRONMENT,WILKO RETAIL LIMITED,03/04/2022,H59620220405VOSUAWASU-1,22.65,STREETLY LIBRARY-STATIONERY & GENERAL OFFICE SU,MISCELLANEOUS GENERAL MERCHANDISE,GPC
WALSALL COUNCIL,http://opendatacommunities.org/id/metropolitan-district-council/walsall ,30/06/2022,#N/A,AMZNMKTPLACE,03/04/2022,H59620220405WPZJNNQON-1,11.65,FOREST SCHOOL-MATERIALS,MISCELLANEOUS AND SPECIALTY RETAIL STORES,GPC
WALSALL COUNCIL,http://opendatacommunities.org/id/metropolitan-district-council/walsall ,30/06/2022,CHILDRENS SERVICES,AMAZON.CO.UK*294TJ26X4,03/04/2022,H59620220405XJLDXNGLU-1,66.44,AWARDS/ ATTEND / PRIZES-MATERIALS,OTHER DIRECT MARKETING-OTHER DIRECT MARKETERS,GPC
WALSALL COUNCIL,http://opendatacommunities.org/id/metropolitan-district-council/walsall ,30/06/2022,CHILDRENS SERVICES,AMZNMKTPLACE,03/04/2022,H59620220405XMRYMGLIM-1,24.98,E19-MATERIALS,MISCELLANEOUS AND SPECIALTY RETAIL STORES,GPC
WALSALL COUNCIL,http://opendatacommunities.org/id/metropolitan-district-council/walsall ,30/06/2022,CHILDRENS SERVICES,AMZNMKTPLACE,03/04/2022,H59620220405YDCWRYRQW-1,33.99,E19-STATIONERY & GENERAL OFFICE SU,MISCELLANEOUS AND SPECIALTY RETAIL STORES,GPC
WALSALL COUNCIL,http://opendatacommunities.org/id/metropolitan-district-council/walsall ,30/06/2022,CHILDRENS SERVICES,AMAZON.CO.UK*296GR9QZ4,03/04/2022,H59620220405YMJWONNBJ-1,108.00,E19-MATERIALS,OTHER DIRECT MARKETING-OTHER DIRECT MARKETERS,GPC
WALSALL COUNCIL,http://opendatacommunities.org/id/metropolitan-district-council/walsall ,30/06/2022,#N/A,AMZNMKTPLACE,03/04/2022,H59620220405ZTEQKITGX-1,30.52,FOREST SCHOOL-MATERIALS,MISCELLANEOUS AND SPECIALTY RETAIL STORES,GPC
WALSALL COUNCIL,http://opendatacommunities.org/id/metropolitan-district-council/walsall ,30/06/2022,ECONOMY & ENVIRONMENT,AMZNMKTPLACE,04/04/2022,H59620220405KPGDSQZBO-1,124.95,LIBRARY MANAGEMENT-PURCHASE OF FURNITURE & EQUIPM,MISCELLANEOUS AND SPECIALTY RETAIL STORES,GPC
WALSALL COUNCIL,http://opendatacommunities.org/id/metropolitan-district-council/walsall ,30/06/2022,ECONOMY & ENVIRONMENT,FOREIGN EXCHANGE FEE,04/04/2022,H59620220405NBSYMFONE-1,0.23,NAG - ART GALLERY MARKETING-SUBSCRIPTIONS,,GPC
WALSALL COUNCIL,http://opendatacommunities.org/id/metropolitan-district-council/walsall ,30/06/2022,#N/A,AMZNMKTPLACE,04/04/2022,H59620220405XJDMDMNDD-1,9.41,FOREST SCHOOL-MATERIALS,MISCELLANEOUS AND SPECIALTY RETAIL STORES,GPC
WALSALL COUNCIL,http://opendatacommunities.org/id/metropolitan-district-council/walsall ,30/06/2022,RESOURCES AND TRANSFORMATION,FOREIGN EXCHANGE FEE,04/04/2022,H59620220405XUBHNKQTE-1,7.31,APPLICATIONS-COMPUTER EQUIPMENT,,GPC
WALSALL COUNCIL,http://opendatacommunities.org/id/metropolitan-district-council/walsall ,30/06/2022,RESOURCES AND TRANSFORMATION,BLAKEMORE FOODSERVICE,04/04/2022,H59620220406AFINWGDJP-1,10.11,CATERING - SCHOOLS-FOOD & DRINK SUPPLIES,CATERERS,GPC
WALSALL COUNCIL,http://opendatacommunities.org/id/metropolitan-district-council/walsall ,30/06/2022,CHILDRENS SERVICES,THE RANGE,04/04/2022,H59620220406ARCMVESGT-1,136.76,CARE LEAVER ENTITLEMENTS-SETTING UP HOME GRANT,MISCELLANEOUS HOUSE FURNISHING SPECIALTY SHOPS,GPC
WALSALL COUNCIL,http://opendatacommunities.org/id/metropolitan-district-council/walsall ,30/06/2022,CHILDRENS SERVICES,KFC WALSALL,04/04/2022,H59620220406BDKUBTLBJ-1,2.30,FAMILY PLACEMENTS-OFFICERS SUBSISTENCE EXPENSES,QUICK PAYMENT SERVICE-FAST-FOOD RESTAURANTS,GPC
WALSALL COUNCIL,http://opendatacommunities.org/id/metropolitan-district-council/walsall ,30/06/2022,ECONOMY & ENVIRONMENT,TOOLSTATION LTD ALDRIDGE,04/04/2022,H59620220406BWTHXOVMA-1,22.98,INFRASTRUCTURE MAINTENANCE-MATERIALS,LUMBER & BUILDING MATERIALS STORES,GPC
WALSALL COUNCIL,http://opendatacommunities.org/id/metropolitan-district-council/walsall ,30/06/2022,RESOURCES AND TRANSFORMATION,BLAKEMORE FOODSERVICE,04/04/2022,H59620220406CBTIHIPNK-1,363.91,CATERING - SCHOOLS-FOOD & DRINK SUPPLIES,CATERERS,GPC
WALSALL COUNCIL,http://opendatacommunities.org/id/metropolitan-district-council/walsall ,30/06/2022,RESOURCES AND TRANSFORMATION,BLAKEMORE FOODSERVICE,04/04/2022,H59620220406CBTIHIPNK-2,61.87,CATERING - SCHOOLS-FOOD & DRINK SUPPLIES,CATERERS,GPC
WALSALL COUNCIL,http://opendatacommunities.org/id/metropolitan-district-council/walsall ,30/06/2022,CHILDRENS SERVICES,WICKES BUILDING,04/04/2022,H59620220406CBYHKIOMZ-1,178.00,ELMWOOD SCHOOL-OPERATIONAL MAINTENANCE,LUMBER & BUILDING MATERIALS STORES,GPC
WALSALL COUNCIL,http://opendatacommunities.org/id/metropolitan-district-council/walsall ,30/06/2022,RESOURCES AND TRANSFORMATION,BLAKEMORE FOODSERVICE,04/04/2022,H59620220406CSILFHXSH-1,563.62,CATERING - SCHOOLS-FOOD & DRINK SUPPLIES,CATERERS,GPC
WALSALL COUNCIL,http://opendatacommunities.org/id/metropolitan-district-council/walsall ,30/06/2022,RESOURCES AND TRANSFORMATION,BLAKEMORE FOODSERVICE,04/04/2022,H59620220406CSILFHXSH-2,40.28,CATERING - SCHOOLS-FOOD & DRINK SUPPLIES,CATERERS,GPC
WALSALL COUNCIL,http://opendatacommunities.org/id/metropolitan-district-council/walsall ,30/06/2022,RESOURCES AND TRANSFORMATION,WWW.BANNERUK.COM,04/04/2022,H59620220406EHYBERGHP-1,14.57,HR ADMIN HUB-STATIONERY & GENERAL OFFICE SU,"STATIONERY, OFFICE SUPPLIES AND WRITING PAPER",GPC
WALSALL COUNCIL,http://opendatacommunities.org/id/metropolitan-district-council/walsall ,30/06/2022,CHILDRENS SERVICES,THE RANGE,04/04/2022,H59620220406ETDPLDPJF-1,24.99,CARE LEAVER ENTITLEMENTS-SETTING UP HOME GRANT,MISCELLANEOUS HOUSE FURNISHING SPECIALTY SHOPS,GPC
WALSALL COUNCIL,http://opendatacommunities.org/id/metropolitan-district-council/walsall ,30/06/2022,RESOURCES AND TRANSFORMATION,BLAKEMORE FOODSERVICE,04/04/2022,H59620220406EUKDSFRVQ-1,-69.80,CATERING - SCHOOLS-FOOD & DRINK SUPPLIES,CATERERS,GPC
WALSALL COUNCIL,http://opendatacommunities.org/id/metropolitan-district-council/walsall ,30/06/2022,CHILDRENS SERVICES,AMZNMKTPLACE,04/04/2022,H59620220406FDUWIVHDE-1,12.97,SAFEGUARDING & FAMILY SUPPORT-MATERIALS,MISCELLANEOUS AND SPECIALTY RETAIL STORES,GPC
WALSALL COUNCIL,http://opendatacommunities.org/id/metropolitan-district-council/walsall ,30/06/2022,RESOURCES AND TRANSFORMATION,REEDSWOOD,04/04/2022,H59620220406FFCGMVWVM-1,7.00,CATERING - MANAGEMENT-PURCHASE OF FURNITURE & EQUIPM,DISCOUNT STORES,GPC
WALSALL COUNCIL,http://opendatacommunities.org/id/metropolitan-district-council/walsall ,30/06/2022,CHILDRENS SERVICES,NATIONAL ED GROUP LTD,04/04/2022,H59620220406FGCWBLWWD-1,60.00,LEIGHSWOOD PRIMARY SCHOOL-EXTERNAL TRAINING,OTHER SCHOOLS AND EDUCATIONAL SERVICES,GPC
WALSALL COUNCIL,http://opendatacommunities.org/id/metropolitan-district-council/walsall ,30/06/2022,RESOURCES AND TRANSFORMATION,NOBISCO LIMITED,04/04/2022,H59620220406FNPLPZIDF-1,27.70,CATERING - SCHOOLS-FOOD & DRINK SUPPLIES,OTHER INDUSTRIAL SUPPLIES,GPC
WALSALL COUNCIL,http://opendatacommunities.org/id/metropolitan-district-council/walsall ,30/06/2022,RESOURCES AND TRANSFORMATION,BLAKEMORE FOODSERVICE,04/04/2022,H59620220406FYZYMWFKO-1,"1,559.01",CATERING - SCHOOLS-FOOD & DRINK SUPPLIES,CATERERS,GPC
WALSALL COUNCIL,http://opendatacommunities.org/id/metropolitan-district-council/walsall ,30/06/2022,RESOURCES AND TRANSFORMATION,BLAKEMORE FOODSERVICE,04/04/2022,H59620220406GNVSBHZBC-1,567.34,CATERING - SCHOOLS-FOOD & DRINK SUPPLIES,CATERERS,GPC
WALSALL COUNCIL,http://opendatacommunities.org/id/metropolitan-district-council/walsall ,30/06/2022,ADULT SOCIAL CARE,REMOVALS.CO.UK,04/04/2022,H59620220406GZTPYCHUG-1,345.60,HOLLYBANK-REPAIR & MAINTENANCE OF FURNIT,MOTOR FREIGHT CARRIERS,GPC
WALSALL COUNCIL,http://opendatacommunities.org/id/metropolitan-district-council/walsall ,30/06/2022,RESOURCES AND TRANSFORMATION,WWW.BANNERUK.COM,04/04/2022,H59620220406HDBLSGIEE-1,1.58,LAW LIBRARY-STATIONERY & GENERAL OFFICE SU,"STATIONERY, OFFICE SUPPLIES AND WRITING PAPER",GPC
WALSALL COUNCIL,http://opendatacommunities.org/id/metropolitan-district-council/walsall ,30/06/2022,CHILDRENS SERVICES,TRAVELODGE GB0000,04/04/2022,H59620220406HERELMCSK-1,412.00,BED & BREAKFAST PAYMENTS-ACCOMMODATION AND RELATED COST,TRAVELODGE,GPC
WALSALL COUNCIL,http://opendatacommunities.org/id/metropolitan-district-council/walsall ,30/06/2022,CHILDRENS SERVICES,WALSALL COUNCIL,04/04/2022,H59620220406IBSIWHCCJ-1,17.00,SAFEGUARDING & FAMILY SUPPORT-FEES & LICENCES,GOVERNMENT SERVICES,GPC
WALSALL COUNCIL,http://opendatacommunities.org/id/metropolitan-district-council/walsall ,30/06/2022,RESOURCES AND TRANSFORMATION,BLAKEMORE FOODSERVICE,04/04/2022,H59620220406IHDLSKMMP-1,549.95,CATERING - SCHOOLS-FOOD & DRINK SUPPLIES,CATERERS,GPC
WALSALL COUNCIL,http://opendatacommunities.org/id/metropolitan-district-council/walsall ,30/06/2022,RESOURCES AND TRANSFORMATION,BLAKEMORE FOODSERVICE,04/04/2022,H59620220406IHDLSKMMP-2,37.17,CATERING - SCHOOLS-FOOD & DRINK SUPPLIES,CATERERS,GPC
WALSALL COUNCIL,http://opendatacommunities.org/id/metropolitan-district-council/walsall ,30/06/2022,CHILDRENS SERVICES,HIGHSPEEDTRAINING.CO.U,04/04/2022,H59620220406INTGOZUIO-1,144.00,WHITEHALL JUNIOR COMMUNITY SCH-EXTERNAL TRAINING,"SCHOOLS, BUSINESS AND SECRETARIAL",GPC
WALSALL COUNCIL,http://opendatacommunities.org/id/metropolitan-district-council/walsall ,30/06/2022,RESOURCES AND TRANSFORMATION,BLAKEMORE FOODSERVICE,04/04/2022,H59620220406IOGLPOMFF-1,337.48,CATERING - SCHOOLS-FOOD & DRINK SUPPLIES,CATERERS,GPC
WALSALL COUNCIL,http://opendatacommunities.org/id/metropolitan-district-council/walsall ,30/06/2022,CHILDRENS SERVICES,WWW.BROMFORD.CO.UK,04/04/2022,H59620220406IOPQCSWMT-1,478.86,HOMELESSNESS PREVENTION STRATE-RENTS,REAL ESTATE MANAGERS - RENTALS,GPC
WALSALL COUNCIL,http://opendatacommunities.org/id/metropolitan-district-council/walsall ,30/06/2022,CHILDRENS SERVICES,FBX*S4K FRANCHISING,04/04/2022,H59620220406IYTXQEVFS-1,118.00,LOOKED AFTER CHILDRENS SOCIAL -CRECHE FACILITIES,CHILD CARE SERVICES ,GPC
WALSALL COUNCIL,http://opendatacommunities.org/id/metropolitan-district-council/walsall ,30/06/2022,ECONOMY & ENVIRONMENT,POST OFFICE COUNTER,04/04/2022,H59620220406JEDESHFCX-1,4.45,LEATHER MUSEUM-POSTAGES & COURIER SERVICES,POSTAL SERVICES - GOVERNMENT ONLY,GPC
WALSALL COUNCIL,http://opendatacommunities.org/id/metropolitan-district-council/walsall ,30/06/2022,CHILDRENS SERVICES,KFC,04/04/2022,H59620220406JNMHHDPRE-1,18.36,"43A HILTON ROAD, WILLENHALL-RESIDENTS PERSONAL EXPENSES-AL",QUICK PAYMENT SERVICE-FAST-FOOD RESTAURANTS,GPC
WALSALL COUNCIL,http://opendatacommunities.org/id/metropolitan-district-council/walsall ,30/06/2022,CHILDRENS SERVICES,AMZNMKTPLACE,04/04/2022,H59620220406JTQOSPQLC-1,13.99,SAFEGUARDING & FAMILY SUPPORT-MATERIALS,MISCELLANEOUS AND SPECIALTY RETAIL STORES,GPC
WALSALL COUNCIL,http://opendatacommunities.org/id/metropolitan-district-council/walsall ,30/06/2022,RESOURCES AND TRANSFORMATION,SAINSBURYS S/MKT,04/04/2022,H59620220406KLOGGEQKN-1,13.45,CATERING - SCHOOLS-FOOD & DRINK SUPPLIES,GROCERY STORES AND SUPERMARKETS,GPC
WALSALL COUNCIL,http://opendatacommunities.org/id/metropolitan-district-council/walsall ,30/06/2022,CHILDRENS SERVICES,REMOVALS.CO.UK,04/04/2022,H59620220406KLPDOWOMP-1,322.38,SAFEGUARDING & FAMILY SUPPORT-TRANSPORTATION-PRIV CONTRACTOR,MOTOR FREIGHT CARRIERS,GPC
WALSALL COUNCIL,http://opendatacommunities.org/id/metropolitan-district-council/walsall ,30/06/2022,RESOURCES AND TRANSFORMATION,BLAKEMORE FOODSERVICE,04/04/2022,H59620220406LBUBUUCPW-1,-13.43,CATERING - SCHOOLS-FOOD & DRINK SUPPLIES,CATERERS,GPC
WALSALL COUNCIL,http://opendatacommunities.org/id/metropolitan-district-council/walsall ,30/06/2022,RESOURCES AND TRANSFORMATION,NOBISCO LIMITED,04/04/2022,H59620220406MCXGUMUET-1,27.70,CATERING - SCHOOLS-FOOD & DRINK SUPPLIES,OTHER INDUSTRIAL SUPPLIES,GPC
WALSALL COUNCIL,http://opendatacommunities.org/id/metropolitan-district-council/walsall ,30/06/2022,CHILDRENS SERVICES,AMZNMKTPLACE,04/04/2022,H59620220406MHFZZOIIG-1,14.98,SAFEGUARDING & FAMILY SUPPORT-MATERIALS,MISCELLANEOUS AND SPECIALTY RETAIL STORES,GPC
WALSALL COUNCIL,http://opendatacommunities.org/id/metropolitan-district-council/walsall ,30/06/2022,CHILDRENS SERVICES,SILVALEA LIMITED,04/04/2022,H59620220406MKVKVLDCI-1,730.00,PHYSICAL-MATERIALS,DENTAL/LABORATORY/MEDICAL EQUIPMENT & SUPPLIES,GPC
WALSALL COUNCIL,http://opendatacommunities.org/id/metropolitan-district-council/walsall ,30/06/2022,CHILDRENS SERVICES,HIGHSPEEDTRAINING.CO.U,04/04/2022,H59620220406MYRNTEKFZ-1,102.00,WHITEHALL JUNIOR COMMUNITY SCH-EXTERNAL TRAINING,"SCHOOLS, BUSINESS AND SECRETARIAL",GPC
WALSALL COUNCIL,http://opendatacommunities.org/id/metropolitan-district-council/walsall ,30/06/2022,RESOURCES AND TRANSFORMATION,COMPTIA,04/04/2022,H59620220406NHKKKKEMF-1,152.11,ENTERPRISE ARCHITECTURE TEAM-EXTERNAL TRAINING,"ORGANIZATIONS, CHARITABLE AND SOCIAL SERVICE",GPC
WALSALL COUNCIL,http://opendatacommunities.org/id/metropolitan-district-council/walsall ,30/06/2022,CHILDRENS SERVICES,HOME BARGAINS,04/04/2022,H59620220406NWMZHJBGX-1,18.40,REDRUTH ROAD-CLEANING MATERIALS,HARDWARE STORES,GPC
WALSALL COUNCIL,http://opendatacommunities.org/id/metropolitan-district-council/walsall ,30/06/2022,RESOURCES AND TRANSFORMATION,BLAKEMORE FOODSERVICE,04/04/2022,H59620220406OCUBQPUAF-1,501.80,CATERING - SCHOOLS-FOOD & DRINK SUPPLIES,CATERERS,GPC
WALSALL COUNCIL,http://opendatacommunities.org/id/metropolitan-district-council/walsall ,30/06/2022,RESOURCES AND TRANSFORMATION,BLAKEMORE FOODSERVICE,04/04/2022,H59620220406OCUBQPUAF-2,10.56,CATERING - SCHOOLS-FOOD & DRINK SUPPLIES,CATERERS,GPC
WALSALL COUNCIL,http://opendatacommunities.org/id/metropolitan-district-council/walsall ,30/06/2022,CHILDRENS SERVICES,O2 UK PAY & GO,04/04/2022,H59620220406OEGSJFBOI-1,10.00,ADMINISTRATIVE SUPPLIES-LANDLINE PHONES,TELECOMMUNICATION SERVICES,GPC
WALSALL COUNCIL,http://opendatacommunities.org/id/metropolitan-district-council/walsall ,30/06/2022,CHILDRENS SERVICES,SCHOOLHIRE* B679744,04/04/2022,H59620220406OOQWNYZSG-1,270.00,E19-MATERIALS,"BOOKS, PERIODICALS AND NEWSPAPERS",GPC
WALSALL COUNCIL,http://opendatacommunities.org/id/metropolitan-district-council/walsall ,30/06/2022,CHILDRENS SERVICES,DUNELM (SOFT FURNISHIN,04/04/2022,H59620220406OXKRHNWDQ-1,35.00,CARE LEAVER ENTITLEMENTS-SETTING UP HOME GRANT,"DRAPERY, UPHOLSTERY, AND WINDOW COVERINGS STORES",GPC
WALSALL COUNCIL,http://opendatacommunities.org/id/metropolitan-district-council/walsall ,30/06/2022,CHILDRENS SERVICES,ASDA GROCERIES ONLINE,04/04/2022,H59620220406PBOEYNKPX-1,8.50,SPECIAL FACILITIES -  BEFORE/A-MATERIALS,GROCERY STORES AND SUPERMARKETS,GPC
WALSALL COUNCIL,http://opendatacommunities.org/id/metropolitan-district-council/walsall ,30/06/2022,CHILDRENS SERVICES,ASDA GROCERIES ONLINE,04/04/2022,H59620220406PBOEYNKPX-2,50.64,SPECIAL FACILITIES -  BEFORE/A-MATERIALS,GROCERY STORES AND SUPERMARKETS,GPC
WALSALL COUNCIL,http://opendatacommunities.org/id/metropolitan-district-council/walsall ,30/06/2022,CHILDRENS SERVICES,SP * HOMEDETAIL-UK,04/04/2022,H59620220406PGPBYHGTG-1,219.00,CARE LEAVER ENTITLEMENTS-SETTING UP HOME GRANT,"EQUIPMENT, FURNITURE, AND HOME FURNISHINGS STORES ",GPC
WALSALL COUNCIL,http://opendatacommunities.org/id/metropolitan-district-council/walsall ,30/06/2022,CHILDRENS SERVICES,ICELAND,04/04/2022,H59620220406QCRVNLDOC-1,26.63,REDRUTH ROAD-FOOD & DRINK SUPPLIES,GROCERY STORES AND SUPERMARKETS,GPC
WALSALL COUNCIL,http://opendatacommunities.org/id/metropolitan-district-council/walsall ,30/06/2022,CHILDRENS SERVICES,AMAZON.CO.UK*293HD6S84,04/04/2022,H59620220406QJOUUHIWB-1,21.12,GENERAL-MATERIALS,OTHER DIRECT MARKETING-OTHER DIRECT MARKETERS,GPC
WALSALL COUNCIL,http://opendatacommunities.org/id/metropolitan-district-council/walsall ,30/06/2022,CHILDRENS SERVICES,WALSALL STN T/O,04/04/2022,H59620220406RBCKKQNKQ-1,63.10,ROUGH SLEEPING INITIATIVE GRAN-OFFICERS & STAFF PUBLIC TRANSP,PASSENGER RAILWAYS,GPC
WALSALL COUNCIL,http://opendatacommunities.org/id/metropolitan-district-council/walsall ,30/06/2022,RESOURCES AND TRANSFORMATION,BLAKEMORE FOODSERVICE,04/04/2022,H59620220406RDFLEDVKO-1,2.76,CATERING - SCHOOLS-FOOD & DRINK SUPPLIES,CATERERS,GPC
WALSALL COUNCIL,http://opendatacommunities.org/id/metropolitan-district-council/walsall ,30/06/2022,RESOURCES AND TRANSFORMATION,BLAKEMORE FOODSERVICE,04/04/2022,H59620220406RGIKCXRLK-1,300.56,CATERING - SCHOOLS-FOOD & DRINK SUPPLIES,CATERERS,GPC
WALSALL COUNCIL,http://opendatacommunities.org/id/metropolitan-district-council/walsall ,30/06/2022,RESOURCES AND TRANSFORMATION,BLAKEMORE FOODSERVICE,04/04/2022,H59620220406RPBRBQJVL-1,399.25,CATERING - SCHOOLS-FOOD & DRINK SUPPLIES,CATERERS,GPC
WALSALL COUNCIL,http://opendatacommunities.org/id/metropolitan-district-council/walsall ,30/06/2022,RESOURCES AND TRANSFORMATION,BLAKEMORE FOODSERVICE,04/04/2022,H59620220406RPBRBQJVL-2,13.42,CATERING - SCHOOLS-FOOD & DRINK SUPPLIES,CATERERS,GPC
WALSALL COUNCIL,http://opendatacommunities.org/id/metropolitan-district-council/walsall ,30/06/2022,RESOURCES AND TRANSFORMATION,BLAKEMORE FOODSERVICE,04/04/2022,H59620220406RTDEMIAIQ-1,557.11,CATERING - SCHOOLS-FOOD & DRINK SUPPLIES,CATERERS,GPC
WALSALL COUNCIL,http://opendatacommunities.org/id/metropolitan-district-council/walsall ,30/06/2022,RESOURCES AND TRANSFORMATION,BLAKEMORE FOODSERVICE,04/04/2022,H59620220406RTDEMIAIQ-2,39.88,CATERING - SCHOOLS-FOOD & DRINK SUPPLIES,CATERERS,GPC
WALSALL COUNCIL,http://opendatacommunities.org/id/metropolitan-district-council/walsall ,30/06/2022,CHILDRENS SERVICES,JANE CONSIDINE EDUCATI,04/04/2022,H59620220406SBXRZKJPH-1,52.25,E19-MATERIALS,"SCHOOLS, ELEMENTARY AND SECONDARY",GPC
WALSALL COUNCIL,http://opendatacommunities.org/id/metropolitan-district-council/walsall ,30/06/2022,RESOURCES AND TRANSFORMATION,BLAKEMORE FOODSERVICE,04/04/2022,H59620220406SECTSSDTL-1,844.37,CATERING - SCHOOLS-FOOD & DRINK SUPPLIES,CATERERS,GPC
WALSALL COUNCIL,http://opendatacommunities.org/id/metropolitan-district-council/walsall ,30/06/2022,RESOURCES AND TRANSFORMATION,BLAKEMORE FOODSERVICE,04/04/2022,H59620220406SECTSSDTL-2,40.28,CATERING - SCHOOLS-FOOD & DRINK SUPPLIES,CATERERS,GPC
WALSALL COUNCIL,http://opendatacommunities.org/id/metropolitan-district-council/walsall ,30/06/2022,ECONOMY & ENVIRONMENT,AMAZON.CO.UK*299D222B4,04/04/2022,H59620220406SLHWKWMUI-1,60.29,TECHNICAL/ART HANDLING-MATERIALS,OTHER DIRECT MARKETING-OTHER DIRECT MARKETERS,GPC
WALSALL COUNCIL,http://opendatacommunities.org/id/metropolitan-district-council/walsall ,30/06/2022,#N/A,AMZNMKTPLACE,04/04/2022,H59620220406SXWWCWJFX-1,12.58,FOREST SCHOOL-MATERIALS,MISCELLANEOUS AND SPECIALTY RETAIL STORES,GPC
WALSALL COUNCIL,http://opendatacommunities.org/id/metropolitan-district-council/walsall ,30/06/2022,#N/A,AMZNMKTPLACE,04/04/2022,H59620220406SYJNLJCXH-1,5.37,FOREST SCHOOL-MATERIALS,MISCELLANEOUS AND SPECIALTY RETAIL STORES,GPC
WALSALL COUNCIL,http://opendatacommunities.org/id/metropolitan-district-council/walsall ,30/06/2022,ECONOMY & ENVIRONMENT,MIDLANDNEWS.COM,04/04/2022,H59620220406TEFTXIHYI-1,124.20,DEVELOPMENT MANAGEMENT-SUBSCRIPTIONS,NEWS DEALERS AND NEWSSTANDS,GPC
WALSALL COUNCIL,http://opendatacommunities.org/id/metropolitan-district-council/walsall ,30/06/2022,CHILDRENS SERVICES,AMZNMKTPLACE,04/04/2022,H59620220406TONHOWPPE-1,41.95,ADMINISTRATIVE SUPPLIES-MATERIALS,MISCELLANEOUS AND SPECIALTY RETAIL STORES,GPC
WALSALL COUNCIL,http://opendatacommunities.org/id/metropolitan-district-council/walsall ,30/06/2022,CHILDRENS SERVICES,ASDA SUPERSTORE,04/04/2022,H59620220406TSKQTIKGE-1,13.50,WALSALL WOOD PRIMARY SCHOOL-PERSONAL REQUISITES-MATERIALS,GROCERY STORES AND SUPERMARKETS,GPC
WALSALL COUNCIL,http://opendatacommunities.org/id/metropolitan-district-council/walsall ,30/06/2022,RESOURCES AND TRANSFORMATION,BLAKEMORE FOODSERVICE,04/04/2022,H59620220406UCEFUXEZK-1,373.83,CATERING - SCHOOLS-FOOD & DRINK SUPPLIES,CATERERS,GPC
WALSALL COUNCIL,http://opendatacommunities.org/id/metropolitan-district-council/walsall ,30/06/2022,RESOURCES AND TRANSFORMATION,BLAKEMORE FOODSERVICE,04/04/2022,H59620220406UCEFUXEZK-2,10.56,CATERING - SCHOOLS-FOOD & DRINK SUPPLIES,CATERERS,GPC
WALSALL COUNCIL,http://opendatacommunities.org/id/metropolitan-district-council/walsall ,30/06/2022,ECONOMY & ENVIRONMENT,THE RANGE,04/04/2022,H59620220406UNRCNPXOE-1,9.16,LEATHER MUSEUM-MATERIALS,MISCELLANEOUS HOUSE FURNISHING SPECIALTY SHOPS,GPC
WALSALL COUNCIL,http://opendatacommunities.org/id/metropolitan-district-council/walsall ,30/06/2022,RESOURCES AND TRANSFORMATION,BLAKEMORE FOODSERVICE,04/04/2022,H59620220406USSJHLYPJ-1,10.32,CATERING - SCHOOLS-FOOD & DRINK SUPPLIES,CATERERS,GPC
WALSALL COUNCIL,http://opendatacommunities.org/id/metropolitan-district-council/walsall ,30/06/2022,CHILDRENS SERVICES,AMZNMKTPLACE,04/04/2022,H59620220406VMCESXIPK-1,209.19,ADMINISTRATIVE SUPPLIES-MATERIALS,MISCELLANEOUS AND SPECIALTY RETAIL STORES,GPC
WALSALL COUNCIL,http://opendatacommunities.org/id/metropolitan-district-council/walsall ,30/06/2022,CHILDRENS SERVICES,AMZNMKTPLACE,04/04/2022,H59620220406VMCESXIPK-2,19.99,CHUCKERY PRIMARY SCHOOL-OPERATIONAL MAINTENANCE,MISCELLANEOUS AND SPECIALTY RETAIL STORES,GPC
WALSALL COUNCIL,http://opendatacommunities.org/id/metropolitan-district-council/walsall ,30/06/2022,CHILDRENS SERVICES,AMZNMKTPLACE,04/04/2022,H59620220406VMCESXIPK-3,218.96,CHUCKERY PRIMARY SCHOOL-OPERATIONAL MAINTENANCE,MISCELLANEOUS AND SPECIALTY RETAIL STORES,GPC
WALSALL COUNCIL,http://opendatacommunities.org/id/metropolitan-district-council/walsall ,30/06/2022,RESOURCES AND TRANSFORMATION,BLAKEMORE FOODSERVICE,04/04/2022,H59620220406WFQYMNUIE-1,654.88,CATERING - SCHOOLS-FOOD & DRINK SUPPLIES,CATERERS,GPC
WALSALL COUNCIL,http://opendatacommunities.org/id/metropolitan-district-council/walsall ,30/06/2022,RESOURCES AND TRANSFORMATION,BLAKEMORE FOODSERVICE,04/04/2022,H59620220406WFQYMNUIE-2,8.08,CATERING - SCHOOLS-FOOD & DRINK SUPPLIES,CATERERS,GPC
WALSALL COUNCIL,http://opendatacommunities.org/id/metropolitan-district-council/walsall ,30/06/2022,CHILDRENS SERVICES,W M MORRISONS.COM,04/04/2022,H59620220406WLHNIEINH-1,35.42,PELSALL VILLAGE SCHOOL-FOOD & DRINK SUPPLIES,GROCERY STORES AND SUPERMARKETS,GPC
WALSALL COUNCIL,http://opendatacommunities.org/id/metropolitan-district-council/walsall ,30/06/2022,CHILDRENS SERVICES,W M MORRISONS.COM,04/04/2022,H59620220406WLHNIEINH-2,40.86,PELSALL VILLAGE SCHOOL-FOOD & DRINK SUPPLIES,GROCERY STORES AND SUPERMARKETS,GPC
WALSALL COUNCIL,http://opendatacommunities.org/id/metropolitan-district-council/walsall ,30/06/2022,#N/A,AMZNMKTPLACE,04/04/2022,H59620220406WWUKRQUVI-1,9.25,FOREST SCHOOL-MATERIALS,MISCELLANEOUS AND SPECIALTY RETAIL STORES,GPC
WALSALL COUNCIL,http://opendatacommunities.org/id/metropolitan-district-council/walsall ,30/06/2022,CHILDRENS SERVICES,AMZNMKTPLACE,04/04/2022,H59620220406XNMHMPTVT-1,15.38,ST JOHNS C.E. PRIMARY SCHOOL-MATERIALS,MISCELLANEOUS AND SPECIALTY RETAIL STORES,GPC
WALSALL COUNCIL,http://opendatacommunities.org/id/metropolitan-district-council/walsall ,30/06/2022,CHILDRENS SERVICES,ASDA GROCERIES ONLINE,04/04/2022,H59620220406YELJQDPPX-1,62.70,BREAKFAST CLUB-FOOD & DRINK SUPPLIES,GROCERY STORES AND SUPERMARKETS,GPC
WALSALL COUNCIL,http://opendatacommunities.org/id/metropolitan-district-council/walsall ,30/06/2022,CHILDRENS SERVICES,AMZNMKTPLACE,04/04/2022,H59620220406YLPDGHJEW-1,31.95,ELMWOOD SCHOOL-EXTERNAL TRAINING,MISCELLANEOUS AND SPECIALTY RETAIL STORES,GPC
WALSALL COUNCIL,http://opendatacommunities.org/id/metropolitan-district-council/walsall ,30/06/2022,RESOURCES AND TRANSFORMATION,BLAKEMORE FOODSERVICE,04/04/2022,H59620220406YPBYZSWNO-1,340.55,CATERING - SCHOOLS-FOOD & DRINK SUPPLIES,CATERERS,GPC
WALSALL COUNCIL,http://opendatacommunities.org/id/metropolitan-district-council/walsall ,30/06/2022,RESOURCES AND TRANSFORMATION,BLAKEMORE FOODSERVICE,04/04/2022,H59620220406YPBYZSWNO-2,26.85,CATERING - SCHOOLS-FOOD & DRINK SUPPLIES,CATERERS,GPC
WALSALL COUNCIL,http://opendatacommunities.org/id/metropolitan-district-council/walsall ,30/06/2022,RESOURCES AND TRANSFORMATION,BLAKEMORE FOODSERVICE,04/04/2022,H59620220406YPLRTRJIV-1,13.20,CATERING - SCHOOLS-FOOD & DRINK SUPPLIES,CATERERS,GPC
WALSALL COUNCIL,http://opendatacommunities.org/id/metropolitan-district-council/walsall ,30/06/2022,CHILDRENS SERVICES,PAYPAL *AXMINSTER,04/04/2022,H59620220406YYYGPDPHJ-1,30.18,DT & ART-MATERIALS,HARDWARE STORES,GPC
WALSALL COUNCIL,http://opendatacommunities.org/id/metropolitan-district-council/walsall ,30/06/2022,CHILDRENS SERVICES,GEN REGISTER OFFICE,04/04/2022,H59620220407OIVPFRYQW-1,14.00,LOOKED AFTER CHILDRENS SOCIAL -FEES & LICENCES,GOVERNMENT SERVICES,GPC
WALSALL COUNCIL,http://opendatacommunities.org/id/metropolitan-district-council/walsall ,30/06/2022,RESOURCES AND TRANSFORMATION,WWW.SCC.COM,04/04/2022,H59620220408BHQVADCCN-1,"17,160.00",RECHARGEABLE EQUIPMENT-COMPUTER EQUIPMENT,"COMPUTERS, COMPUTER PERIPHERAL EQUIPMENT, SOFTWARE",GPC
WALSALL COUNCIL,http://opendatacommunities.org/id/metropolitan-district-council/walsall ,30/06/2022,RESOURCES AND TRANSFORMATION,FOREIGN EXCHANGE FEE,05/04/2022,H59620220406ATPSPKYON-1,4.18,ENTERPRISE ARCHITECTURE TEAM-EXTERNAL TRAINING,,GPC
WALSALL COUNCIL,http://opendatacommunities.org/id/metropolitan-district-council/walsall ,30/06/2022,ECONOMY & ENVIRONMENT,ADOBE CREATIVE CLOUD,05/04/2022,H59620220406IFYLUWRJT-1,70.80,NAG - ART GALLERY MARKETING-SUBSCRIPTIONS,COMPUTER SOFTWARE STORES,GPC
WALSALL COUNCIL,http://opendatacommunities.org/id/metropolitan-district-council/walsall ,30/06/2022,CHILDRENS SERVICES,MCDONALDS,05/04/2022,H59620220407ATKHRUUYR-1,1.39,FAMILY PLACEMENTS-FOOD & DRINK SUPPLIES,QUICK PAYMENT SERVICE-FAST-FOOD RESTAURANTS,GPC
WALSALL COUNCIL,http://opendatacommunities.org/id/metropolitan-district-council/walsall ,30/06/2022,RESOURCES AND TRANSFORMATION,ARTHUR BRETT CATER,05/04/2022,H59620220407BCTDGDRLK-1,25.66,CATERING - SCHOOLS-FOOD & DRINK SUPPLIES,MISCELLANEOUS FOOD STORES & CONVENIENCE STORES,GPC
WALSALL COUNCIL,http://opendatacommunities.org/id/metropolitan-district-council/walsall ,30/06/2022,RESOURCES AND TRANSFORMATION,ARTHUR BRETT CATER,05/04/2022,H59620220407BVMXSEDKK-1,73.73,CATERING - SCHOOLS-FOOD & DRINK SUPPLIES,MISCELLANEOUS FOOD STORES & CONVENIENCE STORES,GPC
WALSALL COUNCIL,http://opendatacommunities.org/id/metropolitan-district-council/walsall ,30/06/2022,ECONOMY & ENVIRONMENT,AMAZON.CO.UK*299QM02Q4,05/04/2022,H59620220407CGFKELWRO-1,27.97,OAK PARK ACTIVE LIVING CENTRE-MATERIALS,OTHER DIRECT MARKETING-OTHER DIRECT MARKETERS,GPC
WALSALL COUNCIL,http://opendatacommunities.org/id/metropolitan-district-council/walsall ,30/06/2022,RESOURCES AND TRANSFORMATION,ARTHUR BRETT CATER,05/04/2022,H59620220407CLXWNWGQF-1,33.28,CATERING - SCHOOLS-FOOD & DRINK SUPPLIES,MISCELLANEOUS FOOD STORES & CONVENIENCE STORES,GPC
WALSALL COUNCIL,http://opendatacommunities.org/id/metropolitan-district-council/walsall ,30/06/2022,ECONOMY & ENVIRONMENT,J P LENNARD LTD,05/04/2022,H59620220407CNAQNQVPF-1,256.92,WALSALL GALA SWIMMING AND FITN-PURCHASE OF FURNITURE & EQUIPM,SPORTING GOODS STORES,GPC
WALSALL COUNCIL,http://opendatacommunities.org/id/metropolitan-district-council/walsall ,30/06/2022,CHILDRENS SERVICES,BEVERLEY HOTEL LTD - T,05/04/2022,H59620220407CZQCLFYBF-1,53.00,BED & BREAKFAST PAYMENTS-BED & BREAKFAST PAYMENTS,"HOTELS, MOTELS, RESORTS",GPC
WALSALL COUNCIL,http://opendatacommunities.org/id/metropolitan-district-council/walsall ,30/06/2022,CHILDRENS SERVICES,BEVERLEY HOTEL LTD - T,05/04/2022,H59620220407CZQCLFYBF-2,6.50,BED & BREAKFAST PAYMENTS-BED & BREAKFAST PAYMENTS,"HOTELS, MOTELS, RESORTS",GPC
WALSALL COUNCIL,http://opendatacommunities.org/id/metropolitan-district-council/walsall ,30/06/2022,RESOURCES AND TRANSFORMATION,ARTHUR BRETT CATER,05/04/2022,H59620220407DFLTMIQFC-1,41.84,CATERING - SCHOOLS-FOOD & DRINK SUPPLIES,MISCELLANEOUS FOOD STORES & CONVENIENCE STORES,GPC
WALSALL COUNCIL,http://opendatacommunities.org/id/metropolitan-district-council/walsall ,30/06/2022,CHILDRENS SERVICES,FINDEL EDUCATION,05/04/2022,H59620220407DZVZEULOB-1,39.59,SEN-STATIONERY & GENERAL OFFICE SU,OTHER DIRECT MARKETING-OTHER DIRECT MARKETERS,GPC
WALSALL COUNCIL,http://opendatacommunities.org/id/metropolitan-district-council/walsall ,30/06/2022,CHILDRENS SERVICES,FINDEL EDUCATION,05/04/2022,H59620220407DZVZEULOB-2,281.72,SEN-STATIONERY & GENERAL OFFICE SU,OTHER DIRECT MARKETING-OTHER DIRECT MARKETERS,GPC
WALSALL COUNCIL,http://opendatacommunities.org/id/metropolitan-district-council/walsall ,30/06/2022,CHILDRENS SERVICES,NANDOS WALSALL,05/04/2022,H59620220407EFUVRWMQE-1,6.95,EDGE OF CARE TEAM-FOOD & DRINK SUPPLIES,"EATING PLACES, RESTAURANTS",GPC
WALSALL COUNCIL,http://opendatacommunities.org/id/metropolitan-district-council/walsall ,30/06/2022,ECONOMY & ENVIRONMENT,AMZNMKTPLACE,05/04/2022,H59620220407ENCVKWVME-1,110.52,REGISTRAR-STATIONERY & GENERAL OFFICE SU,MISCELLANEOUS AND SPECIALTY RETAIL STORES,GPC
WALSALL COUNCIL,http://opendatacommunities.org/id/metropolitan-district-council/walsall ,30/06/2022,CHILDRENS SERVICES,CURRYS ONLINE,05/04/2022,H59620220407FHTYNIBBP-1,199.00,CARE LEAVER ENTITLEMENTS-SETTING UP HOME GRANT,ELECTRONIC SALES,GPC
WALSALL COUNCIL,http://opendatacommunities.org/id/metropolitan-district-council/walsall ,30/06/2022,CHILDRENS SERVICES,AMZNMKTPLACE,05/04/2022,H59620220407FNGPGGUUG-1,16.88,CLASSROOM RESOURCES-MATERIALS,MISCELLANEOUS AND SPECIALTY RETAIL STORES,GPC
WALSALL COUNCIL,http://opendatacommunities.org/id/metropolitan-district-council/walsall ,30/06/2022,CHILDRENS SERVICES,PAYPAL *SSC,05/04/2022,H59620220407FPIKMJWPM-1,198.93,DT-MATERIALS,"GAME, TOY, AND HOBBY SHOPS",GPC
WALSALL COUNCIL,http://opendatacommunities.org/id/metropolitan-district-council/walsall ,30/06/2022,ECONOMY & ENVIRONMENT,B & Q 1276,05/04/2022,H59620220407GVBKWZGIH-1,14.97,INFRASTRUCTURE MAINTENANCE-MATERIALS,HOME SUPPLY WAREHOUSE STORES,GPC
WALSALL COUNCIL,http://opendatacommunities.org/id/metropolitan-district-council/walsall ,30/06/2022,CHILDRENS SERVICES,AMAZON.CO.UK*290B02964,05/04/2022,H59620220407GWONXHEBP-1,31.92,LITERACY-MATERIALS,OTHER DIRECT MARKETING-OTHER DIRECT MARKETERS,GPC
WALSALL COUNCIL,http://opendatacommunities.org/id/metropolitan-district-council/walsall ,30/06/2022,RESOURCES AND TRANSFORMATION,ARTHUR BRETT CATER,05/04/2022,H59620220407HGOVHWTSH-1,70.12,CATERING - SCHOOLS-FOOD & DRINK SUPPLIES,MISCELLANEOUS FOOD STORES & CONVENIENCE STORES,GPC
WALSALL COUNCIL,http://opendatacommunities.org/id/metropolitan-district-council/walsall ,30/06/2022,CHILDRENS SERVICES,ALDI 109 772,05/04/2022,H59620220407HHOPDOFXX-1,18.59,PARENTING TEAM-FOOD & DRINK SUPPLIES,GROCERY STORES AND SUPERMARKETS,GPC
WALSALL COUNCIL,http://opendatacommunities.org/id/metropolitan-district-council/walsall ,30/06/2022,CHILDRENS SERVICES,ALDI 109 772,05/04/2022,H59620220407HHOPDOFXX-2,4.67,PARENTING TEAM-MATERIALS,GROCERY STORES AND SUPERMARKETS,GPC
WALSALL COUNCIL,http://opendatacommunities.org/id/metropolitan-district-council/walsall ,30/06/2022,CHILDRENS SERVICES,ALDI 109 772,05/04/2022,H59620220407HHOPDOFXX-3,2.94,PARENTING TEAM-FOOD & DRINK SUPPLIES,GROCERY STORES AND SUPERMARKETS,GPC
WALSALL COUNCIL,http://opendatacommunities.org/id/metropolitan-district-council/walsall ,30/06/2022,CHILDRENS SERVICES,ASDA GROCERIES ONLINE,05/04/2022,H59620220407IQKGLSDQW-1,117.80,GENERAL-MATERIALS,GROCERY STORES AND SUPERMARKETS,GPC
WALSALL COUNCIL,http://opendatacommunities.org/id/metropolitan-district-council/walsall ,30/06/2022,CHILDRENS SERVICES,AMAZON.CO.UK*2927469L4,05/04/2022,H59620220407ISJQPEUJR-1,0.08,LITERACY-LIBRARY BOOKS,OTHER DIRECT MARKETING-OTHER DIRECT MARKETERS,GPC
WALSALL COUNCIL,http://opendatacommunities.org/id/metropolitan-district-council/walsall ,30/06/2022,CHILDRENS SERVICES,AMAZON.CO.UK*291J029B4,05/04/2022,H59620220407JCMZHDNMB-1,127.05,PUPIL PREMIUM-MATERIALS,OTHER DIRECT MARKETING-OTHER DIRECT MARKETERS,GPC
WALSALL COUNCIL,http://opendatacommunities.org/id/metropolitan-district-council/walsall ,30/06/2022,RESOURCES AND TRANSFORMATION,ARTHUR BRETT CATER,05/04/2022,H59620220407JUOYCWXCR-1,28.79,CATERING - SCHOOLS-FOOD & DRINK SUPPLIES,MISCELLANEOUS FOOD STORES & CONVENIENCE STORES,GPC
WALSALL COUNCIL,http://opendatacommunities.org/id/metropolitan-district-council/walsall ,30/06/2022,RESOURCES AND TRANSFORMATION,ARTHUR BRETT CATER,05/04/2022,H59620220407KJTIVUVMM-1,30.56,CATERING - SCHOOLS-FOOD & DRINK SUPPLIES,MISCELLANEOUS FOOD STORES & CONVENIENCE STORES,GPC
WALSALL COUNCIL,http://opendatacommunities.org/id/metropolitan-district-council/walsall ,30/06/2022,CHILDRENS SERVICES,AMZ*THE ENTERTAINER,05/04/2022,H59620220407KTNYVMCXS-1,166.98,SEN-MATERIALS,"GAME, TOY, AND HOBBY SHOPS",GPC
WALSALL COUNCIL,http://opendatacommunities.org/id/metropolitan-district-council/walsall ,30/06/2022,RESOURCES AND TRANSFORMATION,ARTHUR BRETT CATER,05/04/2022,H59620220407KVYSMTBKL-1,73.57,CATERING - SCHOOLS-FOOD & DRINK SUPPLIES,MISCELLANEOUS FOOD STORES & CONVENIENCE STORES,GPC
WALSALL COUNCIL,http://opendatacommunities.org/id/metropolitan-district-council/walsall ,30/06/2022,CHILDRENS SERVICES,TESCO STORES 6161,05/04/2022,H59620220407LDLWHXYFY-1,25.00,TENANCY SERVICE-FOOD & DRINK SUPPLIES,GROCERY STORES AND SUPERMARKETS,GPC
WALSALL COUNCIL,http://opendatacommunities.org/id/metropolitan-district-council/walsall ,30/06/2022,CHILDRENS SERVICES,ASDA STORE 4753,05/04/2022,H59620220407LYVNIIMIL-1,1.10,PARENTING TEAM-MATERIALS,GROCERY STORES AND SUPERMARKETS,GPC
WALSALL COUNCIL,http://opendatacommunities.org/id/metropolitan-district-council/walsall ,30/06/2022,CHILDRENS SERVICES,ASDA STORE 4753,05/04/2022,H59620220407LYVNIIMIL-2,6.17,PARENTING TEAM-FOOD & DRINK SUPPLIES,GROCERY STORES AND SUPERMARKETS,GPC
WALSALL COUNCIL,http://opendatacommunities.org/id/metropolitan-district-council/walsall ,30/06/2022,CHILDRENS SERVICES,METRO WALSALL,05/04/2022,H59620220407MDPKTGBBU-1,38.00,WALSALL CRISIS SUPPORT SCHEME-BED & BREAKFAST PAYMENTS,"HOTELS, MOTELS, RESORTS",GPC
WALSALL COUNCIL,http://opendatacommunities.org/id/metropolitan-district-council/walsall ,30/06/2022,CHILDRENS SERVICES,AMAZON.CO.UK*293OH89Q4,05/04/2022,H59620220407MELXINUNG-1,23.85,LITERACY-LIBRARY BOOKS,OTHER DIRECT MARKETING-OTHER DIRECT MARKETERS,GPC
WALSALL COUNCIL,http://opendatacommunities.org/id/metropolitan-district-council/walsall ,30/06/2022,RESOURCES AND TRANSFORMATION,ARTHUR BRETT CATER,05/04/2022,H59620220407MPTGMMQDX-1,63.45,CATERING - SCHOOLS-FOOD & DRINK SUPPLIES,MISCELLANEOUS FOOD STORES & CONVENIENCE STORES,GPC
WALSALL COUNCIL,http://opendatacommunities.org/id/metropolitan-district-council/walsall ,30/06/2022,RESOURCES AND TRANSFORMATION,ARTHUR BRETT CATER,05/04/2022,H59620220407MTSWEXYQL-1,25.81,CATERING - SCHOOLS-FOOD & DRINK SUPPLIES,MISCELLANEOUS FOOD STORES & CONVENIENCE STORES,GPC
WALSALL COUNCIL,http://opendatacommunities.org/id/metropolitan-district-council/walsall ,30/06/2022,CHILDRENS SERVICES,ASDA GROCERIES ONLINE,05/04/2022,H59620220407NILLVYOMR-1,-18.80,GENERAL-MATERIALS,GROCERY STORES AND SUPERMARKETS,GPC
WALSALL COUNCIL,http://opendatacommunities.org/id/metropolitan-district-council/walsall ,30/06/2022,CHILDRENS SERVICES,ROADCHEF NORTON CANES,05/04/2022,H59620220407NKSEFUSCC-1,225.00,BED & BREAKFAST PAYMENTS-BED & BREAKFAST PAYMENTS,"HOTELS, MOTELS, RESORTS",GPC
WALSALL COUNCIL,http://opendatacommunities.org/id/metropolitan-district-council/walsall ,30/06/2022,CHILDRENS SERVICES,HTTPS://WWW.THEDYSLEXI,05/04/2022,H59620220407NNKNKMXVD-1,29.95,SEN-STATIONERY & GENERAL OFFICE SU,MISCELLANEOUS AND SPECIALTY RETAIL STORES,GPC
WALSALL COUNCIL,http://opendatacommunities.org/id/metropolitan-district-council/walsall ,30/06/2022,RESOURCES AND TRANSFORMATION,ARTHUR BRETT CATER,05/04/2022,H59620220407NSHXJKJSJ-1,15.84,CATERING - SCHOOLS-FOOD & DRINK SUPPLIES,MISCELLANEOUS FOOD STORES & CONVENIENCE STORES,GPC
WALSALL COUNCIL,http://opendatacommunities.org/id/metropolitan-district-council/walsall ,30/06/2022,CHILDRENS SERVICES,AMZNMKTPLACE,05/04/2022,H59620220407NXAJHSWBH-1,9.99,SEN-STATIONERY & GENERAL OFFICE SU,MISCELLANEOUS AND SPECIALTY RETAIL STORES,GPC
WALSALL COUNCIL,http://opendatacommunities.org/id/metropolitan-district-council/walsall ,30/06/2022,#N/A,AMZNMKTPLACE,05/04/2022,H59620220407NXECMBRQJ-1,124.01,FOREST SCHOOL-MATERIALS,MISCELLANEOUS AND SPECIALTY RETAIL STORES,GPC
WALSALL COUNCIL,http://opendatacommunities.org/id/metropolitan-district-council/walsall ,30/06/2022,CHILDRENS SERVICES,AMZNMKTPLACE,05/04/2022,H59620220407OCQJZCBHU-1,18.53,CARE LEAVER ENTITLEMENTS-SETTING UP HOME GRANT,MISCELLANEOUS AND SPECIALTY RETAIL STORES,GPC
WALSALL COUNCIL,http://opendatacommunities.org/id/metropolitan-district-council/walsall ,30/06/2022,CHILDRENS SERVICES,AMAZON.CO.UK*291PS87U4,05/04/2022,H59620220407OSEQHDVEI-1,23.85,LITERACY-MATERIALS,OTHER DIRECT MARKETING-OTHER DIRECT MARKETERS,GPC
WALSALL COUNCIL,http://opendatacommunities.org/id/metropolitan-district-council/walsall ,30/06/2022,CHILDRENS SERVICES,WWW.CROSSBOWEDUCATION.COM,05/04/2022,H59620220407OVUWQUNYG-1,46.75,SEN-STATIONERY & GENERAL OFFICE SU,"OFFICE, SCHOOL SUPPLY, AND STATIONERY STORES",GPC
WALSALL COUNCIL,http://opendatacommunities.org/id/metropolitan-district-council/walsall ,30/06/2022,RESOURCES AND TRANSFORMATION,ARTHUR BRETT CATER,05/04/2022,H59620220407PLCCDIVOI-1,26.69,CATERING - SCHOOLS-FOOD & DRINK SUPPLIES,MISCELLANEOUS FOOD STORES & CONVENIENCE STORES,GPC
WALSALL COUNCIL,http://opendatacommunities.org/id/metropolitan-district-council/walsall ,30/06/2022,CHILDRENS SERVICES,AMZNMKTPLACE,05/04/2022,H59620220407PLPDEFUFO-1,10.78,CLASSROOM RESOURCES-MATERIALS,MISCELLANEOUS AND SPECIALTY RETAIL STORES,GPC
WALSALL COUNCIL,http://opendatacommunities.org/id/metropolitan-district-council/walsall ,30/06/2022,CHILDRENS SERVICES,AMAZON.CO.UK*297D019O4,05/04/2022,H59620220407PODPHWMLN-1,103.95,LITERACY-MATERIALS,OTHER DIRECT MARKETING-OTHER DIRECT MARKETERS,GPC
WALSALL COUNCIL,http://opendatacommunities.org/id/metropolitan-district-council/walsall ,30/06/2022,#N/A,AMZNMKTPLACE,05/04/2022,H59620220407PUHMPLQKL-1,8.34,FOREST SCHOOL-MATERIALS,MISCELLANEOUS AND SPECIALTY RETAIL STORES,GPC
WALSALL COUNCIL,http://opendatacommunities.org/id/metropolitan-district-council/walsall ,30/06/2022,RESOURCES AND TRANSFORMATION,ARTHUR BRETT CATER,05/04/2022,H59620220407QFVSQXINI-1,20.70,CATERING - SCHOOLS-FOOD & DRINK SUPPLIES,MISCELLANEOUS FOOD STORES & CONVENIENCE STORES,GPC
WALSALL COUNCIL,http://opendatacommunities.org/id/metropolitan-district-council/walsall ,30/06/2022,#N/A,THE KINGSTANDING,05/04/2022,H59620220407QKYOKWDRY-1,420.00,UKRAINE RELOCATION-BED & BREAKFAST PAYMENTS,"BARS, COCKTAIL LOUNGES, DISCOTHEQUES, NIGHTCLUBS",GPC
WALSALL COUNCIL,http://opendatacommunities.org/id/metropolitan-district-council/walsall ,30/06/2022,ECONOMY & ENVIRONMENT,EB *COMMUNITY IS THE B,05/04/2022,H59620220407SQJIPGIWB-1,156.00,COMMUNITY DEVELOPMENT ADDITION-OTHER EMPLOYEES FEES & EXPENSE,OTHER BUSINESS SERVICES,GPC
WALSALL COUNCIL,http://opendatacommunities.org/id/metropolitan-district-council/walsall ,30/06/2022,ECONOMY & ENVIRONMENT,EDEN FARM,05/04/2022,H59620220407SSGCXPABQ-1,180.53,DARLASTON SWIMMING AND FITNESS-FOOD & DRINK SUPPLIES,OTHER NONDURABLE GOODS,GPC
WALSALL COUNCIL,http://opendatacommunities.org/id/metropolitan-district-council/walsall ,30/06/2022,ECONOMY & ENVIRONMENT,ZOOM.US 888-799-9666,05/04/2022,H59620220407TTICETASG-1,-143.88,BLOXWICH ACTIVE LIVING CENTRE-LANDLINE PHONES,TELECOMMUNICATION SERVICES,GPC
WALSALL COUNCIL,http://opendatacommunities.org/id/metropolitan-district-council/walsall ,30/06/2022,CHILDRENS SERVICES,FINDEL EDUCATION,05/04/2022,H59620220407UKNKOKVDW-1,78.61,SEN-STATIONERY & GENERAL OFFICE SU,OTHER DIRECT MARKETING-OTHER DIRECT MARKETERS,GPC
WALSALL COUNCIL,http://opendatacommunities.org/id/metropolitan-district-council/walsall ,30/06/2022,CHILDRENS SERVICES,ARGOS LTD,05/04/2022,H59620220407VALYZNFAF-1,231.95,CARE LEAVER ENTITLEMENTS-SETTING UP HOME GRANT,DISCOUNT STORES,GPC
WALSALL COUNCIL,http://opendatacommunities.org/id/metropolitan-district-council/walsall ,30/06/2022,ECONOMY & ENVIRONMENT,WWW.BANNERUK.COM,05/04/2022,H59620220407VBIXPNYHN-1,49.17,LEATHER MUSEUM-STATIONERY & GENERAL OFFICE SU,"STATIONERY, OFFICE SUPPLIES AND WRITING PAPER",GPC
WALSALL COUNCIL,http://opendatacommunities.org/id/metropolitan-district-council/walsall ,30/06/2022,CHILDRENS SERVICES,ASDA GROCERIES ONLINE,05/04/2022,H59620220407VHVGUTFWH-1,-26.00,GENERAL-MATERIALS,GROCERY STORES AND SUPERMARKETS,GPC
WALSALL COUNCIL,http://opendatacommunities.org/id/metropolitan-district-council/walsall ,30/06/2022,RESOURCES AND TRANSFORMATION,NOBISCO LIMITED,05/04/2022,H59620220407VYMDIYKYP-1,193.67,CATERING - SCHOOLS-FOOD & DRINK SUPPLIES,OTHER INDUSTRIAL SUPPLIES,GPC
WALSALL COUNCIL,http://opendatacommunities.org/id/metropolitan-district-council/walsall ,30/06/2022,CHILDRENS SERVICES,NPF BASSETTSPOLE,05/04/2022,H59620220407WVNHPGGNS-1,250.00,REWARDS-MATERIALS,"BANDS, ORCHESTRAS, AND MISCELLANEOUS ENTERTAINERS",GPC
WALSALL COUNCIL,http://opendatacommunities.org/id/metropolitan-district-council/walsall ,30/06/2022,ECONOMY & ENVIRONMENT,B & Q 1276,05/04/2022,H59620220407WZNBQYUSH-1,60.22,INFRASTRUCTURE MAINTENANCE-MATERIALS,HOME SUPPLY WAREHOUSE STORES,GPC
WALSALL COUNCIL,http://opendatacommunities.org/id/metropolitan-district-council/walsall ,30/06/2022,CHILDRENS SERVICES,ASDA GROCERIES ONLINE,05/04/2022,H59620220407XMQBCYJVI-1,-26.00,SAFEGUARDING & FAMILY SUPPORT-SECTION 1/17CHILD CARE ACT 198,GROCERY STORES AND SUPERMARKETS,GPC
WALSALL COUNCIL,http://opendatacommunities.org/id/metropolitan-district-council/walsall ,30/06/2022,RESOURCES AND TRANSFORMATION,ARTHUR BRETT CATER,05/04/2022,H59620220407XNEZLHIEB-1,16.48,CATERING - SCHOOLS-FOOD & DRINK SUPPLIES,MISCELLANEOUS FOOD STORES & CONVENIENCE STORES,GPC
WALSALL COUNCIL,http://opendatacommunities.org/id/metropolitan-district-council/walsall ,30/06/2022,CHILDRENS SERVICES,WWW.UTILITA.CO.UK,05/04/2022,H59620220407XNWGHCRYE-1,20.00,TENANCY SERVICE-OTHER ENERGY COSTS,"UTILITIES - ELECTRIC, GAS, SANITARY & WATER",GPC
WALSALL COUNCIL,http://opendatacommunities.org/id/metropolitan-district-council/walsall ,30/06/2022,CHILDRENS SERVICES,ASDA GROCERIES ONLINE,05/04/2022,H59620220407XPRCCIUDJ-1,167.20,GENERAL-MATERIALS,GROCERY STORES AND SUPERMARKETS,GPC
WALSALL COUNCIL,http://opendatacommunities.org/id/metropolitan-district-council/walsall ,30/06/2022,CHILDRENS SERVICES,ASDA GROCERIES ONLINE,05/04/2022,H59620220407YQVYLWKIT-1,74.00,SAFEGUARDING & FAMILY SUPPORT-SECTION 1/17CHILD CARE ACT 198,GROCERY STORES AND SUPERMARKETS,GPC
WALSALL COUNCIL,http://opendatacommunities.org/id/metropolitan-district-council/walsall ,30/06/2022,CHILDRENS SERVICES,WALSALL COUNCIL,05/04/2022,H59620220407YVGSVGWKY-1,84.44,ST JOHNS C.E. PRIMARY SCHOOL-POLICE CHECKS,GOVERNMENT SERVICES,GPC
WALSALL COUNCIL,http://opendatacommunities.org/id/metropolitan-district-council/walsall ,30/06/2022,CHILDRENS SERVICES,AMZNMKTPLACE,06/04/2022,H59620220407QJZZWJRBP-1,47.83,SPECIAL FACILITIES-MATERIALS,MISCELLANEOUS AND SPECIALTY RETAIL STORES,GPC
WALSALL COUNCIL,http://opendatacommunities.org/id/metropolitan-district-council/walsall ,30/06/2022,ECONOMY & ENVIRONMENT,SIM-MAYOU HARDWARE,06/04/2022,H59620220408BEBNWTQTG-1,76.37,INFRASTRUCTURE MAINTENANCE-MATERIALS,HARDWARE STORES,GPC
WALSALL COUNCIL,http://opendatacommunities.org/id/metropolitan-district-council/walsall ,30/06/2022,CHILDRENS SERVICES,ASDA GROCERIES ONLINE,06/04/2022,H59620220408BHLBFAUJL-1,38.50,BREAKFAST CLUB-FOOD & DRINK SUPPLIES,GROCERY STORES AND SUPERMARKETS,GPC
WALSALL COUNCIL,http://opendatacommunities.org/id/metropolitan-district-council/walsall ,30/06/2022,CHILDRENS SERVICES,AMZNMKTPLACE,06/04/2022,H59620220408CDQWKJLHQ-1,12.99,CARE LEAVER ENTITLEMENTS-SETTING UP HOME GRANT,MISCELLANEOUS AND SPECIALTY RETAIL STORES,GPC
WALSALL COUNCIL,http://opendatacommunities.org/id/metropolitan-district-council/walsall ,30/06/2022,RESOURCES AND TRANSFORMATION,ARTHUR BRETT CATER,06/04/2022,H59620220408CGGFPRERM-1,8.71,CATERING - SCHOOLS-FOOD & DRINK SUPPLIES,MISCELLANEOUS FOOD STORES & CONVENIENCE STORES,GPC
WALSALL COUNCIL,http://opendatacommunities.org/id/metropolitan-district-council/walsall ,30/06/2022,ECONOMY & ENVIRONMENT,SIM-MAYOU HARDWARE,06/04/2022,H59620220408CJTUXMIXD-1,32.70,DEPOT-MATERIALS,HARDWARE STORES,GPC
WALSALL COUNCIL,http://opendatacommunities.org/id/metropolitan-district-council/walsall ,30/06/2022,CHILDRENS SERVICES,MCDONALDS1544,06/04/2022,H59620220408DFWTGSGDT-1,2.38,CARE LEAVER ENTITLEMENTS-CARE LEAVERS MISC EXPENSES,QUICK PAYMENT SERVICE-FAST-FOOD RESTAURANTS,GPC
WALSALL COUNCIL,http://opendatacommunities.org/id/metropolitan-district-council/walsall ,30/06/2022,RESOURCES AND TRANSFORMATION,BLAKEMORE FOODSERVICE,06/04/2022,H59620220408DGHPJMXRF-1,260.06,CATERING - SCHOOLS-FOOD & DRINK SUPPLIES,CATERERS,GPC
WALSALL COUNCIL,http://opendatacommunities.org/id/metropolitan-district-council/walsall ,30/06/2022,RESOURCES AND TRANSFORMATION,BLAKEMORE FOODSERVICE,06/04/2022,H59620220408DGHPJMXRF-2,38.35,CATERING - SCHOOLS-FOOD & DRINK SUPPLIES,CATERERS,GPC
WALSALL COUNCIL,http://opendatacommunities.org/id/metropolitan-district-council/walsall ,30/06/2022,RESOURCES AND TRANSFORMATION,BLAKEMORE FOODSERVICE,06/04/2022,H59620220408DTALXNNBF-1,956.56,CATERING - SCHOOLS-FOOD & DRINK SUPPLIES,CATERERS,GPC
WALSALL COUNCIL,http://opendatacommunities.org/id/metropolitan-district-council/walsall ,30/06/2022,RESOURCES AND TRANSFORMATION,BLAKEMORE FOODSERVICE,06/04/2022,H59620220408DTALXNNBF-2,20.47,CATERING - SCHOOLS-FOOD & DRINK SUPPLIES,CATERERS,GPC
WALSALL COUNCIL,http://opendatacommunities.org/id/metropolitan-district-council/walsall ,30/06/2022,CHILDRENS SERVICES,AMZNMKTPLACE,06/04/2022,H59620220408DWUONLDBL-1,29.44,SEN-STATIONERY & GENERAL OFFICE SU,MISCELLANEOUS AND SPECIALTY RETAIL STORES,GPC
WALSALL COUNCIL,http://opendatacommunities.org/id/metropolitan-district-council/walsall ,30/06/2022,CHILDRENS SERVICES,AMZNMKTPLACE,06/04/2022,H59620220408DXYNIEPNM-1,204.99,CARE LEAVER ENTITLEMENTS-SETTING UP HOME GRANT,MISCELLANEOUS AND SPECIALTY RETAIL STORES,GPC
WALSALL COUNCIL,http://opendatacommunities.org/id/metropolitan-district-council/walsall ,30/06/2022,CHILDRENS SERVICES,WICKES BUILDING,06/04/2022,H59620220408EIKUCIFRI-1,80.00,PELSALL VILLAGE SCHOOL-OPERATIONAL MAINTENANCE,LUMBER & BUILDING MATERIALS STORES,GPC
WALSALL COUNCIL,http://opendatacommunities.org/id/metropolitan-district-council/walsall ,30/06/2022,CHILDRENS SERVICES,ASDA GROCERIES ONLINE,06/04/2022,H59620220408ENWFEPHNZ-1,33.00,SAFEGUARDING & FAMILY SUPPORT-SECTION 1/17CHILD CARE ACT 198,GROCERY STORES AND SUPERMARKETS,GPC
WALSALL COUNCIL,http://opendatacommunities.org/id/metropolitan-district-council/walsall ,30/06/2022,CHILDRENS SERVICES,ASDA GROCERIES ONLINE,06/04/2022,H59620220408EQMGSRKKQ-1,10.50,BREAKFAST CLUB-FOOD & DRINK SUPPLIES,GROCERY STORES AND SUPERMARKETS,GPC
WALSALL COUNCIL,http://opendatacommunities.org/id/metropolitan-district-council/walsall ,30/06/2022,CHILDRENS SERVICES,AMZNMKTPLACE,06/04/2022,H59620220408ERQZYRJEM-1,55.99,CLASSROOM RESOURCES-MATERIALS,MISCELLANEOUS AND SPECIALTY RETAIL STORES,GPC
WALSALL COUNCIL,http://opendatacommunities.org/id/metropolitan-district-council/walsall ,30/06/2022,RESOURCES AND TRANSFORMATION,BLAKEMORE FOODSERVICE,06/04/2022,H59620220408FHJBMJWMO-1,873.80,CATERING - SCHOOLS-FOOD & DRINK SUPPLIES,CATERERS,GPC
WALSALL COUNCIL,http://opendatacommunities.org/id/metropolitan-district-council/walsall ,30/06/2022,RESOURCES AND TRANSFORMATION,BLAKEMORE FOODSERVICE,06/04/2022,H59620220408FHJBMJWMO-2,30.62,CATERING - SCHOOLS-FOOD & DRINK SUPPLIES,CATERERS,GPC
WALSALL COUNCIL,http://opendatacommunities.org/id/metropolitan-district-council/walsall ,30/06/2022,CHILDRENS SERVICES,B&M 022 - WEDNESBURY,06/04/2022,H59620220408FKBPRUUGT-1,44.42,CONTACT SESSIONAL STAFF-CLEANING MATERIALS,MISCELLANEOUS GENERAL MERCHANDISE,GPC
WALSALL COUNCIL,http://opendatacommunities.org/id/metropolitan-district-council/walsall ,30/06/2022,RESOURCES AND TRANSFORMATION,BLAKEMORE FOODSERVICE,06/04/2022,H59620220408GAINDXHHD-1,383.06,CATERING - SCHOOLS-FOOD & DRINK SUPPLIES,CATERERS,GPC
WALSALL COUNCIL,http://opendatacommunities.org/id/metropolitan-district-council/walsall ,30/06/2022,CHILDRENS SERVICES,ABC CARS GROUP,06/04/2022,H59620220408GAQJLNYID-1,12.40,SAFEGUARDING & FAMILY SUPPORT-TAXI FARES,TAXI SERVICES,GPC
WALSALL COUNCIL,http://opendatacommunities.org/id/metropolitan-district-council/walsall ,30/06/2022,CHILDRENS SERVICES,AMZNMKTPLACE,06/04/2022,H59620220408GBJIKAVFD-1,35.50,SEN-STATIONERY & GENERAL OFFICE SU,MISCELLANEOUS AND SPECIALTY RETAIL STORES,GPC
WALSALL COUNCIL,http://opendatacommunities.org/id/metropolitan-district-council/walsall ,30/06/2022,CHILDRENS SERVICES,PAYPAL *ETSYIRELAND,06/04/2022,H59620220408GKEOOYBDO-1,224.00,ADMINISTRATIVE SUPPLIES-STATIONERY & GENERAL OFFICE SU,MISCELLANEOUS ACCESSORY AND APPAREL STORES,GPC
WALSALL COUNCIL,http://opendatacommunities.org/id/metropolitan-district-council/walsall ,30/06/2022,CHILDRENS SERVICES,THETRAINLINE.COM,06/04/2022,H59620220408GKNNPOQWS-1,37.48,SAFEGUARDING & FAMILY SUPPORT-SECTION 34 (CONTACT),PASSENGER RAILWAYS,GPC
WALSALL COUNCIL,http://opendatacommunities.org/id/metropolitan-district-council/walsall ,30/06/2022,RESOURCES AND TRANSFORMATION,BLAKEMORE FOODSERVICE,06/04/2022,H59620220408GRUBGNOKC-1,-51.21,CATERING - SCHOOLS-FOOD & DRINK SUPPLIES,CATERERS,GPC
WALSALL COUNCIL,http://opendatacommunities.org/id/metropolitan-district-council/walsall ,30/06/2022,RESOURCES AND TRANSFORMATION,BLAKEMORE FOODSERVICE,06/04/2022,H59620220408GTXKFXRSD-1,303.07,CATERING - SCHOOLS-FOOD & DRINK SUPPLIES,CATERERS,GPC
WALSALL COUNCIL,http://opendatacommunities.org/id/metropolitan-district-council/walsall ,30/06/2022,RESOURCES AND TRANSFORMATION,BLAKEMORE FOODSERVICE,06/04/2022,H59620220408GTXKFXRSD-2,28.56,CATERING - SCHOOLS-FOOD & DRINK SUPPLIES,CATERERS,GPC
WALSALL COUNCIL,http://opendatacommunities.org/id/metropolitan-district-council/walsall ,30/06/2022,CHILDRENS SERVICES,WALSALL COUNCIL,06/04/2022,H59620220408HDKNVHLJJ-1,17.00,SAFEGUARDING & FAMILY SUPPORT-FEES & LICENCES,GOVERNMENT SERVICES,GPC
WALSALL COUNCIL,http://opendatacommunities.org/id/metropolitan-district-council/walsall ,30/06/2022,RESOURCES AND TRANSFORMATION,BLAKEMORE FOODSERVICE,06/04/2022,H59620220408HMMXJFFZM-1,44.42,CATERING - SCHOOLS-FOOD & DRINK SUPPLIES,CATERERS,GPC
WALSALL COUNCIL,http://opendatacommunities.org/id/metropolitan-district-council/walsall ,30/06/2022,RESOURCES AND TRANSFORMATION,BLAKEMORE FOODSERVICE,06/04/2022,H59620220408HORNQLFYK-1,355.00,CATERING - SCHOOLS-FOOD & DRINK SUPPLIES,CATERERS,GPC
WALSALL COUNCIL,http://opendatacommunities.org/id/metropolitan-district-council/walsall ,30/06/2022,CHILDRENS SERVICES,AMZNMKTPLACE,06/04/2022,H59620220408IETEDSESK-1,18.36,SEN-STATIONERY & GENERAL OFFICE SU,MISCELLANEOUS AND SPECIALTY RETAIL STORES,GPC
WALSALL COUNCIL,http://opendatacommunities.org/id/metropolitan-district-council/walsall ,30/06/2022,RESOURCES AND TRANSFORMATION,BLAKEMORE FOODSERVICE,06/04/2022,H59620220408IEYPHNIDY-1,57.52,CATERING - SCHOOLS-FOOD & DRINK SUPPLIES,CATERERS,GPC
WALSALL COUNCIL,http://opendatacommunities.org/id/metropolitan-district-council/walsall ,30/06/2022,RESOURCES AND TRANSFORMATION,BLAKEMORE FOODSERVICE,06/04/2022,H59620220408IEYPHNIDY-2,564.33,CATERING - SCHOOLS-FOOD & DRINK SUPPLIES,CATERERS,GPC
WALSALL COUNCIL,http://opendatacommunities.org/id/metropolitan-district-council/walsall ,30/06/2022,CHILDRENS SERVICES,CINEWORLD,06/04/2022,H59620220408IODEKSJHU-1,21.48,"43A HILTON ROAD, WILLENHALL-RESIDENTS PERSONAL EXPENSES-AL",MOTION PICTURE THEATERS,GPC
WALSALL COUNCIL,http://opendatacommunities.org/id/metropolitan-district-council/walsall ,30/06/2022,CHILDRENS SERVICES,WALSALL COUNCIL,06/04/2022,H59620220408IREILQNPO-1,40.22,MILLFIELD PRIMARY SCHOOL-POLICE CHECKS,GOVERNMENT SERVICES,GPC
WALSALL COUNCIL,http://opendatacommunities.org/id/metropolitan-district-council/walsall ,30/06/2022,CHILDRENS SERVICES,WALSALL COUNCIL,06/04/2022,H59620220408JINEJVNHO-1,40.22,PELSALL VILLAGE SCHOOL-POLICE CHECKS,GOVERNMENT SERVICES,GPC
WALSALL COUNCIL,http://opendatacommunities.org/id/metropolitan-district-council/walsall ,30/06/2022,RESOURCES AND TRANSFORMATION,NOBISCO LIMITED,06/04/2022,H59620220408JQGJBSIKU-1,41.38,CATERING - SCHOOLS-FOOD & DRINK SUPPLIES,OTHER INDUSTRIAL SUPPLIES,GPC
WALSALL COUNCIL,http://opendatacommunities.org/id/metropolitan-district-council/walsall ,30/06/2022,RESOURCES AND TRANSFORMATION,BLAKEMORE FOODSERVICE,06/04/2022,H59620220408JWTNKCQFL-1,232.50,CATERING - SCHOOLS-FOOD & DRINK SUPPLIES,CATERERS,GPC
WALSALL COUNCIL,http://opendatacommunities.org/id/metropolitan-district-council/walsall ,30/06/2022,RESOURCES AND TRANSFORMATION,BLAKEMORE FOODSERVICE,06/04/2022,H59620220408JWTNKCQFL-2,8.49,CATERING - SCHOOLS-FOOD & DRINK SUPPLIES,CATERERS,GPC
WALSALL COUNCIL,http://opendatacommunities.org/id/metropolitan-district-council/walsall ,30/06/2022,ECONOMY & ENVIRONMENT,AMZNMKTPLACE,06/04/2022,H59620220408JXATWCOXT-1,36.96,REGISTRAR-STATIONERY & GENERAL OFFICE SU,MISCELLANEOUS AND SPECIALTY RETAIL STORES,GPC
WALSALL COUNCIL,http://opendatacommunities.org/id/metropolitan-district-council/walsall ,30/06/2022,CHILDRENS SERVICES,ALLPAY *LONGHURST GROUP,06/04/2022,H59620220408KJJSTOLNO-1,184.60,HOMELESSNESS PREVENTION STRATE-RENTS,"ORGANIZATIONS, CHARITABLE AND SOCIAL SERVICE",GPC
WALSALL COUNCIL,http://opendatacommunities.org/id/metropolitan-district-council/walsall ,30/06/2022,ECONOMY & ENVIRONMENT,SAINSBURYS S/MKTS,06/04/2022,H59620220408KUURVZCQJ-1,8.00,LIBRARY OPERATIONS - MOBILE SE-STATIONERY & GENERAL OFFICE SU,GROCERY STORES AND SUPERMARKETS,GPC
WALSALL COUNCIL,http://opendatacommunities.org/id/metropolitan-district-council/walsall ,30/06/2022,CHILDRENS SERVICES,TRAVELODGE GB0000,06/04/2022,H59620220408LECPGRDBD-1,241.68,HOMELESSNESS PREVENTION STRATE-BED & BREAKFAST PAYMENTS,TRAVELODGE,GPC
WALSALL COUNCIL,http://opendatacommunities.org/id/metropolitan-district-council/walsall ,30/06/2022,CHILDRENS SERVICES,OLD PARK SERVICES LTD,06/04/2022,H59620220408LFGFYHOLK-1,26.25,CARE LEAVER ENTITLEMENTS-SETTING UP HOME GRANT,"EQUIPMENT, FURNITURE, AND HOME FURNISHINGS STORES ",GPC
WALSALL COUNCIL,http://opendatacommunities.org/id/metropolitan-district-council/walsall ,30/06/2022,RESOURCES AND TRANSFORMATION,NOBISCO LIMITED,06/04/2022,H59620220408LFMJBDYAX-1,148.81,CATERING - SCHOOLS-FOOD & DRINK SUPPLIES,OTHER INDUSTRIAL SUPPLIES,GPC
WALSALL COUNCIL,http://opendatacommunities.org/id/metropolitan-district-council/walsall ,30/06/2022,ECONOMY & ENVIRONMENT,GET LICENSED,06/04/2022,H59620220408LHRAWWPOQ-1,229.99,GALLERY OPERATIONS-EXTERNAL TRAINING,"CONSULTING, MANAGEMENT, AND PR SERVICES",GPC
WALSALL COUNCIL,http://opendatacommunities.org/id/metropolitan-district-council/walsall ,30/06/2022,RESOURCES AND TRANSFORMATION,BLAKEMORE FOODSERVICE,06/04/2022,H59620220408LKXPNIYIZ-1,16.99,CATERING - SCHOOLS-FOOD & DRINK SUPPLIES,CATERERS,GPC
WALSALL COUNCIL,http://opendatacommunities.org/id/metropolitan-district-council/walsall ,30/06/2022,ECONOMY & ENVIRONMENT,WILLIAM WHEAT AND SON G/,06/04/2022,H59620220408LMGOVPUWV-1,71.47,GROUNDS-MATERIALS,"NURSERIES, LAWN AND GARDEN SUPPLY STORES",GPC
WALSALL COUNCIL,http://opendatacommunities.org/id/metropolitan-district-council/walsall ,30/06/2022,RESOURCES AND TRANSFORMATION,BLAKEMORE FOODSERVICE,06/04/2022,H59620220408LXRDNULSJ-1,-48.25,CATERING - SCHOOLS-FOOD & DRINK SUPPLIES,CATERERS,GPC
WALSALL COUNCIL,http://opendatacommunities.org/id/metropolitan-district-council/walsall ,30/06/2022,CHILDRENS SERVICES,AMZNMKTPLACE,06/04/2022,H59620220408NCRGNUMVP-1,6.48,EXAMS-PURCHASE OF FURNITURE & EQUIPM,MISCELLANEOUS AND SPECIALTY RETAIL STORES,GPC
WALSALL COUNCIL,http://opendatacommunities.org/id/metropolitan-district-council/walsall ,30/06/2022,CHILDRENS SERVICES,WWW.UTILITA.CO.UK,06/04/2022,H59620220408NCRYNLRES-1,20.00,WALSALL CRISIS SUPPORT SCHEME-OTHER ENERGY COSTS,"UTILITIES - ELECTRIC, GAS, SANITARY & WATER",GPC
WALSALL COUNCIL,http://opendatacommunities.org/id/metropolitan-district-council/walsall ,30/06/2022,CHILDRENS SERVICES,AMZNMKTPLACE,06/04/2022,H59620220408NJSEOUJPJ-1,51.42,SEN-STATIONERY & GENERAL OFFICE SU,MISCELLANEOUS AND SPECIALTY RETAIL STORES,GPC
WALSALL COUNCIL,http://opendatacommunities.org/id/metropolitan-district-council/walsall ,30/06/2022,RESOURCES AND TRANSFORMATION,NOBISCO LIMITED,06/04/2022,H59620220408NUXOOHZXC-1,1.91,CATERING - SCHOOLS-FOOD & DRINK SUPPLIES,OTHER INDUSTRIAL SUPPLIES,GPC
WALSALL COUNCIL,http://opendatacommunities.org/id/metropolitan-district-council/walsall ,30/06/2022,CHILDRENS SERVICES,ASDA GROCERIES ONLINE,06/04/2022,H59620220408NXRHLVFQZ-1,61.15,GENERAL-MATERIALS,GROCERY STORES AND SUPERMARKETS,GPC
WALSALL COUNCIL,http://opendatacommunities.org/id/metropolitan-district-council/walsall ,30/06/2022,ECONOMY & ENVIRONMENT,B & Q 1193,06/04/2022,H59620220408NZWRBDTGU-1,89.35,DEPOT-MATERIALS,HOME SUPPLY WAREHOUSE STORES,GPC
WALSALL COUNCIL,http://opendatacommunities.org/id/metropolitan-district-council/walsall ,30/06/2022,CHILDRENS SERVICES,ASDA GROCERIES ONLINE,06/04/2022,H59620220408OHYIIMXXJ-1,80.95,GENERAL-MATERIALS,GROCERY STORES AND SUPERMARKETS,GPC
WALSALL COUNCIL,http://opendatacommunities.org/id/metropolitan-district-council/walsall ,30/06/2022,CHILDRENS SERVICES,AMZNMKTPLACE,06/04/2022,H59620220408OIEFJMTTO-1,38.05,CLASSROOM RESOURCES-MATERIALS,MISCELLANEOUS AND SPECIALTY RETAIL STORES,GPC
WALSALL COUNCIL,http://opendatacommunities.org/id/metropolitan-district-council/walsall ,30/06/2022,CHILDRENS SERVICES,PLECK AUTO BODY REPAIR,06/04/2022,H59620220408OJIJMBDOJ-1,"2,917.50",GENERAL MANAGEMENT SUPPORT (IN-VEHICLES REPAIRS & MAINTENANCE,AUTOMOTIVE BODY REPAIR SHOPS,GPC
WALSALL COUNCIL,http://opendatacommunities.org/id/metropolitan-district-council/walsall ,30/06/2022,ECONOMY & ENVIRONMENT,BESTWAY WALSALL,06/04/2022,H59620220408OVMUTQHZS-1,223.03,WALSALL OUTDOOR PURSUITS-FOOD & DRINK SUPPLIES,DAIRY PRODUCTS STORES,GPC
WALSALL COUNCIL,http://opendatacommunities.org/id/metropolitan-district-council/walsall ,30/06/2022,RESOURCES AND TRANSFORMATION,ARTHUR BRETT CATER,06/04/2022,H59620220408PLJFIFEFV-1,38.24,CATERING - SCHOOLS-FOOD & DRINK SUPPLIES,MISCELLANEOUS FOOD STORES & CONVENIENCE STORES,GPC
WALSALL COUNCIL,http://opendatacommunities.org/id/metropolitan-district-council/walsall ,30/06/2022,CHILDRENS SERVICES,AMZNMKTPLACE,06/04/2022,H59620220408PMRCOLUAG-1,15.97,LEARNING ENVIRONMENT-MATERIALS,MISCELLANEOUS AND SPECIALTY RETAIL STORES,GPC
WALSALL COUNCIL,http://opendatacommunities.org/id/metropolitan-district-council/walsall ,30/06/2022,CHILDRENS SERVICES,ASDA STORES,06/04/2022,H59620220408PUIGYBEPG-1,33.50,GENERAL-MATERIALS,GROCERY STORES AND SUPERMARKETS,GPC
WALSALL COUNCIL,http://opendatacommunities.org/id/metropolitan-district-council/walsall ,30/06/2022,CHILDRENS SERVICES,ASDA STORES LTD 4225,06/04/2022,H59620220408PZHMGHUXE-1,109.00,CARE LEAVER ENTITLEMENTS-SETTING UP HOME GRANT,GROCERY STORES AND SUPERMARKETS,GPC
WALSALL COUNCIL,http://opendatacommunities.org/id/metropolitan-district-council/walsall ,30/06/2022,CHILDRENS SERVICES,WILKO.COM,06/04/2022,H59620220408QHEKWLFYA-1,119.00,CONTINGENCY-MATERIALS,MISCELLANEOUS GENERAL MERCHANDISE,GPC
WALSALL COUNCIL,http://opendatacommunities.org/id/metropolitan-district-council/walsall ,30/06/2022,CHILDRENS SERVICES,AMZNMKTPLACE,06/04/2022,H59620220408QOKQLLAHW-1,60.31,SEN-STATIONERY & GENERAL OFFICE SU,MISCELLANEOUS AND SPECIALTY RETAIL STORES,GPC
WALSALL COUNCIL,http://opendatacommunities.org/id/metropolitan-district-council/walsall ,30/06/2022,RESOURCES AND TRANSFORMATION,BLAKEMORE FOODSERVICE,06/04/2022,H59620220408QPEYBOQTX-1,322.79,CATERING - MANAGEMENT-FOOD & DRINK SUPPLIES,CATERERS,GPC
WALSALL COUNCIL,http://opendatacommunities.org/id/metropolitan-district-council/walsall ,30/06/2022,RESOURCES AND TRANSFORMATION,BLAKEMORE FOODSERVICE,06/04/2022,H59620220408QUIWJUZLJ-1,851.20,CATERING - SCHOOLS-FOOD & DRINK SUPPLIES,CATERERS,GPC
WALSALL COUNCIL,http://opendatacommunities.org/id/metropolitan-district-council/walsall ,30/06/2022,CHILDRENS SERVICES,TESCO STORES 6161,06/04/2022,H59620220408RFSWJKOHB-1,80.25,WALSALL CRISIS SUPPORT SCHEME-PURCHASE OF FURNITURE & EQUIPM,GROCERY STORES AND SUPERMARKETS,GPC
WALSALL COUNCIL,http://opendatacommunities.org/id/metropolitan-district-council/walsall ,30/06/2022,ECONOMY & ENVIRONMENT,SCREWFIX DIR LTD,06/04/2022,H59620220408SDAFFVJUP-1,55.00,COMMUNITY LIAISON-MATERIALS,LUMBER & BUILDING MATERIALS STORES,GPC
WALSALL COUNCIL,http://opendatacommunities.org/id/metropolitan-district-council/walsall ,30/06/2022,RESOURCES AND TRANSFORMATION,NOBISCO LIMITED,06/04/2022,H59620220408SIOXSSBPN-1,77.02,CATERING - SCHOOLS-FOOD & DRINK SUPPLIES,OTHER INDUSTRIAL SUPPLIES,GPC
WALSALL COUNCIL,http://opendatacommunities.org/id/metropolitan-district-council/walsall ,30/06/2022,RESOURCES AND TRANSFORMATION,ARTHUR BRETT CATER,06/04/2022,H59620220408SLGSRUFIA-1,55.15,CATERING - SCHOOLS-FOOD & DRINK SUPPLIES,MISCELLANEOUS FOOD STORES & CONVENIENCE STORES,GPC
WALSALL COUNCIL,http://opendatacommunities.org/id/metropolitan-district-council/walsall ,30/06/2022,RESOURCES AND TRANSFORMATION,BLAKEMORE FOODSERVICE,06/04/2022,H59620220408SRSEAHFYO-1,-16.86,CATERING - SCHOOLS-FOOD & DRINK SUPPLIES,CATERERS,GPC
WALSALL COUNCIL,http://opendatacommunities.org/id/metropolitan-district-council/walsall ,30/06/2022,RESOURCES AND TRANSFORMATION,ARTHUR BRETT CATER,06/04/2022,H59620220408SZZLZLOJE-1,41.09,CATERING - SCHOOLS-FOOD & DRINK SUPPLIES,MISCELLANEOUS FOOD STORES & CONVENIENCE STORES,GPC
WALSALL COUNCIL,http://opendatacommunities.org/id/metropolitan-district-council/walsall ,30/06/2022,CHILDRENS SERVICES,TRAVELODGE GB0000,06/04/2022,H59620220408TCQLVGOVO-1,55.06,HOMELESSNESS PREVENTION STRATE-BED & BREAKFAST PAYMENTS,TRAVELODGE,GPC
WALSALL COUNCIL,http://opendatacommunities.org/id/metropolitan-district-council/walsall ,30/06/2022,CHILDRENS SERVICES,WALSALL COUNCIL,06/04/2022,H59620220408TDDVHDGOO-1,40.22,ST FRANCIS OF ASSISI CATHOLIC -POLICE CHECKS,GOVERNMENT SERVICES,GPC
WALSALL COUNCIL,http://opendatacommunities.org/id/metropolitan-district-council/walsall ,30/06/2022,CHILDRENS SERVICES,B&M 078 - WALSALL,06/04/2022,H59620220408TKKCNYPCF-1,123.84,CARE LEAVER ENTITLEMENTS-SETTING UP HOME GRANT,MISCELLANEOUS GENERAL MERCHANDISE,GPC
WALSALL COUNCIL,http://opendatacommunities.org/id/metropolitan-district-council/walsall ,30/06/2022,RESOURCES AND TRANSFORMATION,NOBISCO LIMITED,06/04/2022,H59620220408TUASYQNFB-1,62.24,CATERING - SCHOOLS-FOOD & DRINK SUPPLIES,OTHER INDUSTRIAL SUPPLIES,GPC
WALSALL COUNCIL,http://opendatacommunities.org/id/metropolitan-district-council/walsall ,30/06/2022,ECONOMY & ENVIRONMENT,TAYLOR NEWS,06/04/2022,H59620220408TUQLFUEHJ-1,15.70,STREETLY LIBRARY-NEWSPAPERS/PERIODICALS/MAGAZIN,GROCERY STORES AND SUPERMARKETS,GPC
WALSALL COUNCIL,http://opendatacommunities.org/id/metropolitan-district-council/walsall ,30/06/2022,ECONOMY & ENVIRONMENT,TESCO STORE 3351,06/04/2022,H59620220408TXDJHNXDR-1,7.00,BROWNHILLS LIBRARY-STATIONERY & GENERAL OFFICE SU,GROCERY STORES AND SUPERMARKETS,GPC
WALSALL COUNCIL,http://opendatacommunities.org/id/metropolitan-district-council/walsall ,30/06/2022,ECONOMY & ENVIRONMENT,TESCO STORE 3351,06/04/2022,H59620220408TXDJHNXDR-2,11.99,BROWNHILLS LIBRARY-FOOD & DRINK SUPPLIES,GROCERY STORES AND SUPERMARKETS,GPC
WALSALL COUNCIL,http://opendatacommunities.org/id/metropolitan-district-council/walsall ,30/06/2022,ECONOMY & ENVIRONMENT,TESCO STORES 6161,06/04/2022,H59620220408UBLXLROGI-1,1.25,LEATHER MUSEUM-FOOD & DRINK SUPPLIES,GROCERY STORES AND SUPERMARKETS,GPC
WALSALL COUNCIL,http://opendatacommunities.org/id/metropolitan-district-council/walsall ,30/06/2022,ECONOMY & ENVIRONMENT,TESCO STORES 6161,06/04/2022,H59620220408UBLXLROGI-2,7.63,LEATHER MUSEUM-FOOD & DRINK SUPPLIES,GROCERY STORES AND SUPERMARKETS,GPC
WALSALL COUNCIL,http://opendatacommunities.org/id/metropolitan-district-council/walsall ,30/06/2022,CHILDRENS SERVICES,SUMUP *BALLOON MAGIC,06/04/2022,H59620220408UEGKAJMWG-1,237.00,FAMILY AND FRIENDS-PURCHASE OF FURNITURE & EQUIPM,OTHER RECREATION SERVICES,GPC
WALSALL COUNCIL,http://opendatacommunities.org/id/metropolitan-district-council/walsall ,30/06/2022,ADULT SOCIAL CARE,WWW.SCREWFIX.COM,06/04/2022,H59620220408ULXVVYIKF-1,8.49,GOSCOTE-MATERIALS,LUMBER & BUILDING MATERIALS STORES,GPC
WALSALL COUNCIL,http://opendatacommunities.org/id/metropolitan-district-council/walsall ,30/06/2022,RESOURCES AND TRANSFORMATION,BLAKEMORE FOODSERVICE,06/04/2022,H59620220408VBFYOCYUF-1,775.49,CATERING - SCHOOLS-FOOD & DRINK SUPPLIES,CATERERS,GPC
WALSALL COUNCIL,http://opendatacommunities.org/id/metropolitan-district-council/walsall ,30/06/2022,RESOURCES AND TRANSFORMATION,BLAKEMORE FOODSERVICE,06/04/2022,H59620220408VBFYOCYUF-2,43.99,CATERING - SCHOOLS-FOOD & DRINK SUPPLIES,CATERERS,GPC
WALSALL COUNCIL,http://opendatacommunities.org/id/metropolitan-district-council/walsall ,30/06/2022,ECONOMY & ENVIRONMENT,AMAZON.CO.UK*296TL5R84,06/04/2022,H59620220408WDOVPXPVG-1,10.97,BROWNHILLS LIBRARY-LIBRARY BOOKS,OTHER DIRECT MARKETING-OTHER DIRECT MARKETERS,GPC
WALSALL COUNCIL,http://opendatacommunities.org/id/metropolitan-district-council/walsall ,30/06/2022,CHILDRENS SERVICES,AMZNMKTPLACE,06/04/2022,H59620220408WNXKSTRSL-1,17.68,EXAMS-PURCHASE OF FURNITURE & EQUIPM,MISCELLANEOUS AND SPECIALTY RETAIL STORES,GPC
WALSALL COUNCIL,http://opendatacommunities.org/id/metropolitan-district-council/walsall ,30/06/2022,ECONOMY & ENVIRONMENT,SP * DISCOUNT COFFEE,06/04/2022,H59620220408WSJDQFNVE-1,59.94,BLOXWICH ACTIVE LIVING CENTRE-FOOD & DRINK SUPPLIES,MISCELLANEOUS FOOD STORES & CONVENIENCE STORES,GPC
WALSALL COUNCIL,http://opendatacommunities.org/id/metropolitan-district-council/walsall ,30/06/2022,RESOURCES AND TRANSFORMATION,POST OFFICE COUNTER,06/04/2022,H59620220408WXCRMJUNK-1,3.43,YEI ESF FUNDING-POSTAGES & COURIER SERVICES,POSTAL SERVICES - GOVERNMENT ONLY,GPC
WALSALL COUNCIL,http://opendatacommunities.org/id/metropolitan-district-council/walsall ,30/06/2022,RESOURCES AND TRANSFORMATION,POST OFFICE COUNTER,06/04/2022,H59620220408WXCRMJUNK-2,3.42,YEI (IMPACT) PROGRAMME-POSTAGES & COURIER SERVICES,POSTAL SERVICES - GOVERNMENT ONLY,GPC
WALSALL COUNCIL,http://opendatacommunities.org/id/metropolitan-district-council/walsall ,30/06/2022,CHILDRENS SERVICES,B&M 419 - HS REEDSWOOD,06/04/2022,H59620220408WYMEMJQIA-1,231.87,CARE LEAVER ENTITLEMENTS-SETTING UP HOME GRANT,MISCELLANEOUS GENERAL MERCHANDISE,GPC
WALSALL COUNCIL,http://opendatacommunities.org/id/metropolitan-district-council/walsall ,30/06/2022,ECONOMY & ENVIRONMENT,WILLIAM WHEAT AND SON G/,06/04/2022,H59620220408XFOEOEGTU-1,59.97,GROUNDS-MATERIALS,"NURSERIES, LAWN AND GARDEN SUPPLY STORES",GPC
WALSALL COUNCIL,http://opendatacommunities.org/id/metropolitan-district-council/walsall ,30/06/2022,RESOURCES AND TRANSFORMATION,ARTHUR BRETT CATER,06/04/2022,H59620220408XTVVEJMGZ-1,48.58,CATERING - SCHOOLS-FOOD & DRINK SUPPLIES,MISCELLANEOUS FOOD STORES & CONVENIENCE STORES,GPC
WALSALL COUNCIL,http://opendatacommunities.org/id/metropolitan-district-council/walsall ,30/06/2022,RESOURCES AND TRANSFORMATION,ARTHUR BRETT CATER,06/04/2022,H59620220408XVODJEWDU-1,6.57,CATERING - SCHOOLS-FOOD & DRINK SUPPLIES,MISCELLANEOUS FOOD STORES & CONVENIENCE STORES,GPC
WALSALL COUNCIL,http://opendatacommunities.org/id/metropolitan-district-council/walsall ,30/06/2022,ECONOMY & ENVIRONMENT,TOOLSTATION LTD ALDRIDGE,06/04/2022,H59620220408YISTAFJES-1,19.18,INFRASTRUCTURE MAINTENANCE-MATERIALS,LUMBER & BUILDING MATERIALS STORES,GPC
WALSALL COUNCIL,http://opendatacommunities.org/id/metropolitan-district-council/walsall ,30/06/2022,RESOURCES AND TRANSFORMATION,ARTHUR BRETT CATER,06/04/2022,H59620220408YKYBPRGDO-1,37.06,CATERING - SCHOOLS-FOOD & DRINK SUPPLIES,MISCELLANEOUS FOOD STORES & CONVENIENCE STORES,GPC
WALSALL COUNCIL,http://opendatacommunities.org/id/metropolitan-district-council/walsall ,30/06/2022,ECONOMY & ENVIRONMENT,SIM-MAYOU HARDWARE,06/04/2022,H59620220408YSCFYVWAW-1,80.00,WASTE COLLECTIONS-MATERIALS,HARDWARE STORES,GPC
WALSALL COUNCIL,http://opendatacommunities.org/id/metropolitan-district-council/walsall ,30/06/2022,RESOURCES AND TRANSFORMATION,BLAKEMORE FOODSERVICE,06/04/2022,H59620220408YWVWIWRGB-1,193.57,CATERING - SCHOOLS-FOOD & DRINK SUPPLIES,CATERERS,GPC
WALSALL COUNCIL,http://opendatacommunities.org/id/metropolitan-district-council/walsall ,30/06/2022,ECONOMY & ENVIRONMENT,WIX.COM*989669799,06/04/2022,H59620220412AXHXHKHNF-1,100.08,INTEGRATED COMMUNITIES PROGRAM-COMPUTER EQUIPMENT,DIRECT MARKETING CONTINUITY SUBSCRIPTION MERCHANTS,GPC
WALSALL COUNCIL,http://opendatacommunities.org/id/metropolitan-district-council/walsall ,30/06/2022,CHILDRENS SERVICES,AMZNMKTPLACE,07/04/2022,H59620220408CWYBGXFCZ-1,24.89,LEARNING ENVIRONMENT-MATERIALS,MISCELLANEOUS AND SPECIALTY RETAIL STORES,GPC
WALSALL COUNCIL,http://opendatacommunities.org/id/metropolitan-district-council/walsall ,30/06/2022,ECONOMY & ENVIRONMENT,AMZNMKTPLACE,07/04/2022,H59620220411BFGXFUJGX-1,26.97,COMMUNITY LIAISON-MATERIALS,MISCELLANEOUS AND SPECIALTY RETAIL STORES,GPC
WALSALL COUNCIL,http://opendatacommunities.org/id/metropolitan-district-council/walsall ,30/06/2022,ECONOMY & ENVIRONMENT,COMPLIANCE,07/04/2022,H59620220411CFBYOFRTI-1,36.79,BLOXWICH ACTIVE LIVING CENTRE-MATERIALS,DENTAL/LABORATORY/MEDICAL EQUIPMENT & SUPPLIES,GPC
WALSALL COUNCIL,http://opendatacommunities.org/id/metropolitan-district-council/walsall ,30/06/2022,ECONOMY & ENVIRONMENT,AMAZON.CO.UK*2E0T20C44,07/04/2022,H59620220411CLCJIXTPG-1,8.52,AUDIENCE DEVELOPMENT-LIBRARY BOOKS,OTHER DIRECT MARKETING-OTHER DIRECT MARKETERS,GPC
WALSALL COUNCIL,http://opendatacommunities.org/id/metropolitan-district-council/walsall ,30/06/2022,CHILDRENS SERVICES,DOMINO S PIZZA,07/04/2022,H59620220411DFSPMHBQK-1,52.44,LOOKED AFTER CHILDRENS SOCIAL -OFFICERS SUBSISTENCE EXPENSES,"EATING PLACES, RESTAURANTS",GPC
WALSALL COUNCIL,http://opendatacommunities.org/id/metropolitan-district-council/walsall ,30/06/2022,CHILDRENS SERVICES,TESCO STORE 3351,07/04/2022,H59620220411EEASXOLVE-1,8.00,LEARNING ENVIRONMENT-MATERIALS,GROCERY STORES AND SUPERMARKETS,GPC
WALSALL COUNCIL,http://opendatacommunities.org/id/metropolitan-district-council/walsall ,30/06/2022,ECONOMY & ENVIRONMENT,WALSALL COUNCIL,07/04/2022,H59620220411EVLJZXALJ-1,35.00,FLEET-PROFESSIONAL SERVICES-PRIV CON,GOVERNMENT SERVICES,GPC
WALSALL COUNCIL,http://opendatacommunities.org/id/metropolitan-district-council/walsall ,30/06/2022,CHILDRENS SERVICES,B&M 541 - ALDIDGE,07/04/2022,H59620220411FWBETOPJH-1,78.49,SOCIAL SPACES-MATERIALS,MISCELLANEOUS GENERAL MERCHANDISE,GPC
WALSALL COUNCIL,http://opendatacommunities.org/id/metropolitan-district-council/walsall ,30/06/2022,ECONOMY & ENVIRONMENT,THE ART FILE,07/04/2022,H59620220411FYGGINQSP-1,-15.55,NAG - NEW ART GALLERY SHOP STO-MATERIALS TO STORES,"OFFICE, SCHOOL SUPPLY, AND STATIONERY STORES",GPC
WALSALL COUNCIL,http://opendatacommunities.org/id/metropolitan-district-council/walsall ,30/06/2022,CHILDRENS SERVICES,AMZNMKTPLACE,07/04/2022,H59620220411HBFOWBDNQ-1,19.98,GENERAL RESOURCES-MATERIALS,MISCELLANEOUS AND SPECIALTY RETAIL STORES,GPC
WALSALL COUNCIL,http://opendatacommunities.org/id/metropolitan-district-council/walsall ,30/06/2022,CHILDRENS SERVICES,B&M 419 - HS REEDSWOOD,07/04/2022,H59620220411HCSWCNSDC-1,32.98,GENERAL SUPPLIES RD-MATERIALS,MISCELLANEOUS GENERAL MERCHANDISE,GPC
WALSALL COUNCIL,http://opendatacommunities.org/id/metropolitan-district-council/walsall ,30/06/2022,ECONOMY & ENVIRONMENT,WM MORRISONS STORE,07/04/2022,H59620220411HWYJEYKJK-1,5.05,LEATHER MUSEUM-FOOD & DRINK SUPPLIES,GROCERY STORES AND SUPERMARKETS,GPC
WALSALL COUNCIL,http://opendatacommunities.org/id/metropolitan-district-council/walsall ,30/06/2022,CHILDRENS SERVICES,AMZNMKTPLACE,07/04/2022,H59620220411HXIURUMUM-1,44.99,PELSALL VILLAGE SCHOOL-OPERATIONAL MAINTENANCE,MISCELLANEOUS AND SPECIALTY RETAIL STORES,GPC
WALSALL COUNCIL,http://opendatacommunities.org/id/metropolitan-district-council/walsall ,30/06/2022,CHILDRENS SERVICES,AMZNMKTPLACE,07/04/2022,H59620220411IELVJNRUJ-1,25.47,CLASSROOM RESOURCES-MATERIALS,MISCELLANEOUS AND SPECIALTY RETAIL STORES,GPC
WALSALL COUNCIL,http://opendatacommunities.org/id/metropolitan-district-council/walsall ,30/06/2022,CHILDRENS SERVICES,B&M 541 - ALDIDGE,07/04/2022,H59620220411IFIEKBDME-1,12.48,ELMWOOD SCHOOL-OPERATIONAL MAINTENANCE,MISCELLANEOUS GENERAL MERCHANDISE,GPC
WALSALL COUNCIL,http://opendatacommunities.org/id/metropolitan-district-council/walsall ,30/06/2022,CHILDRENS SERVICES,AMZNMKTPLACE,07/04/2022,H59620220411IKTTHLFMR-1,25.78,E19-MATERIALS,MISCELLANEOUS AND SPECIALTY RETAIL STORES,GPC
WALSALL COUNCIL,http://opendatacommunities.org/id/metropolitan-district-council/walsall ,30/06/2022,CHILDRENS SERVICES,AMAZON.CO.UK*294898WI4,07/04/2022,H59620220411JFMYLTDBJ-1,79.98,DAISY SERVICE PROGRAMME-PURCHASE OF FURNITURE & EQUIPM,OTHER DIRECT MARKETING-OTHER DIRECT MARKETERS,GPC
WALSALL COUNCIL,http://opendatacommunities.org/id/metropolitan-district-council/walsall ,30/06/2022,ECONOMY & ENVIRONMENT,AMZNMKTPLACE,07/04/2022,H59620220411JFORHNVUS-1,8.48,BROWNHILLS LIBRARY-STATIONERY & GENERAL OFFICE SU,MISCELLANEOUS AND SPECIALTY RETAIL STORES,GPC
WALSALL COUNCIL,http://opendatacommunities.org/id/metropolitan-district-council/walsall ,30/06/2022,CHILDRENS SERVICES,FARMFOODS 606,07/04/2022,H59620220411JGKRBXKOG-1,16.00,LEARNING ENVIRONMENT-MATERIALS,GROCERY STORES AND SUPERMARKETS,GPC
WALSALL COUNCIL,http://opendatacommunities.org/id/metropolitan-district-council/walsall ,30/06/2022,CHILDRENS SERVICES,TIMPSON LTD,07/04/2022,H59620220411JJZGPKGTN-1,30.00,NEW LEAF PUPIL REFERAL UNIT-OPERATIONAL MAINTENANCE,MISCELLANEOUS AND SPECIALTY RETAIL STORES,GPC
WALSALL COUNCIL,http://opendatacommunities.org/id/metropolitan-district-council/walsall ,30/06/2022,ECONOMY & ENVIRONMENT,ASDA STORES,07/04/2022,H59620220411JUXWNJLXR-1,16.00,DARLASTON SWIMMING AND FITNESS-MATERIALS,GROCERY STORES AND SUPERMARKETS,GPC
WALSALL COUNCIL,http://opendatacommunities.org/id/metropolitan-district-council/walsall ,30/06/2022,CHILDRENS SERVICES,ICELAND,07/04/2022,H59620220411KFFJTFKJO-1,58.00,PALFREY JUNIOR SCHOOL-MATERIALS,GROCERY STORES AND SUPERMARKETS,GPC
WALSALL COUNCIL,http://opendatacommunities.org/id/metropolitan-district-council/walsall ,30/06/2022,ADULT SOCIAL CARE,ADOBE STOCK,07/04/2022,H59620220411KIZIWVGYW-1,57.59,COMMUNICATIONS-FEES & LICENCES,COMPUTER SOFTWARE STORES,GPC
WALSALL COUNCIL,http://opendatacommunities.org/id/metropolitan-district-council/walsall ,30/06/2022,CHILDRENS SERVICES,FARMFOODS 606,07/04/2022,H59620220411KKTSCPELG-1,75.66,LEARNING ENVIRONMENT-MATERIALS,GROCERY STORES AND SUPERMARKETS,GPC
WALSALL COUNCIL,http://opendatacommunities.org/id/metropolitan-district-council/walsall ,30/06/2022,ECONOMY & ENVIRONMENT,TOOLSTATION LTD ALDRIDGE,07/04/2022,H59620220411LFSAYWMNC-1,5.98,INFRASTRUCTURE MAINTENANCE-MATERIALS,LUMBER & BUILDING MATERIALS STORES,GPC
WALSALL COUNCIL,http://opendatacommunities.org/id/metropolitan-district-council/walsall ,30/06/2022,CHILDRENS SERVICES,B & Q 1276,07/04/2022,H59620220411MBKIUMRQF-1,41.15,GENERAL SUPPLIES RD-MATERIALS,HOME SUPPLY WAREHOUSE STORES,GPC
WALSALL COUNCIL,http://opendatacommunities.org/id/metropolitan-district-council/walsall ,30/06/2022,ECONOMY & ENVIRONMENT,B&M 419 - HS REEDSWOOD,07/04/2022,H59620220411MQVNDPDHG-1,12.07,BLOXWICH LIBRARY-PURCHASE OF FURNITURE & EQUIPM,MISCELLANEOUS GENERAL MERCHANDISE,GPC
WALSALL COUNCIL,http://opendatacommunities.org/id/metropolitan-district-council/walsall ,30/06/2022,ECONOMY & ENVIRONMENT,HOUSE OF MARBLES,07/04/2022,H59620220411MZESQTBOX-1,282.24,NAG - NEW ART GALLERY SHOP STO-MATERIALS TO STORES,MISCELLANEOUS GENERAL MERCHANDISE,GPC
WALSALL COUNCIL,http://opendatacommunities.org/id/metropolitan-district-council/walsall ,30/06/2022,ECONOMY & ENVIRONMENT,HOUSE OF MARBLES,07/04/2022,H59620220411MZESQTBOX-2,37.80,NAG - NEW ART GALLERY SHOP STO-MATERIALS TO STORES,MISCELLANEOUS GENERAL MERCHANDISE,GPC
WALSALL COUNCIL,http://opendatacommunities.org/id/metropolitan-district-council/walsall ,30/06/2022,CHILDRENS SERVICES,B&M 541 - ALDIDGE,07/04/2022,H59620220411NKQZCZOAF-1,9.99,ELMWOOD SCHOOL-CLEANING MATERIALS,MISCELLANEOUS GENERAL MERCHANDISE,GPC
WALSALL COUNCIL,http://opendatacommunities.org/id/metropolitan-district-council/walsall ,30/06/2022,CHILDRENS SERVICES,B&M 541 - ALDIDGE,07/04/2022,H59620220411NKQZCZOAF-2,5.79,ELMWOOD SCHOOL-CATERING & REFRESHMENTS,MISCELLANEOUS GENERAL MERCHANDISE,GPC
WALSALL COUNCIL,http://opendatacommunities.org/id/metropolitan-district-council/walsall ,30/06/2022,CHILDRENS SERVICES,IKEA LTD SHOP ONLINE,07/04/2022,H59620220411NRFNDWOKE-1,225.00,E19-MATERIALS,"EQUIPMENT, FURNITURE, AND HOME FURNISHINGS STORES ",GPC
WALSALL COUNCIL,http://opendatacommunities.org/id/metropolitan-district-council/walsall ,30/06/2022,CHILDRENS SERVICES,AMAZON.CO.UK*2E1LK6CH4,07/04/2022,H59620220411NWFPMCSUH-1,9.34,PRACTICE DEVELOPMENT-NEWSPAPERS/PERIODICALS/MAGAZIN,OTHER DIRECT MARKETING-OTHER DIRECT MARKETERS,GPC
WALSALL COUNCIL,http://opendatacommunities.org/id/metropolitan-district-council/walsall ,30/06/2022,CHILDRENS SERVICES,AMAZON.CO.UK*2E1LK6CH4,07/04/2022,H59620220411NWFPMCSUH-2,3.99,PRACTICE DEVELOPMENT-POSTAGES & COURIER SERVICES,OTHER DIRECT MARKETING-OTHER DIRECT MARKETERS,GPC
WALSALL COUNCIL,http://opendatacommunities.org/id/metropolitan-district-council/walsall ,30/06/2022,RESOURCES AND TRANSFORMATION,NOBISCO LIMITED,07/04/2022,H59620220411ONLMRPEKU-1,41.30,CATERING - SCHOOLS-FOOD & DRINK SUPPLIES,OTHER INDUSTRIAL SUPPLIES,GPC
WALSALL COUNCIL,http://opendatacommunities.org/id/metropolitan-district-council/walsall ,30/06/2022,CHILDRENS SERVICES,WWW.UTILITA.CO.UK,07/04/2022,H59620220411OWKOBLAVG-1,40.00,TENANCY SERVICE-OTHER ENERGY COSTS,"UTILITIES - ELECTRIC, GAS, SANITARY & WATER",GPC
WALSALL COUNCIL,http://opendatacommunities.org/id/metropolitan-district-council/walsall ,30/06/2022,CHILDRENS SERVICES,AMZNMKTPLACE,07/04/2022,H59620220411PEPJPZXGB-1,57.15,SEN-STATIONERY & GENERAL OFFICE SU,MISCELLANEOUS AND SPECIALTY RETAIL STORES,GPC
WALSALL COUNCIL,http://opendatacommunities.org/id/metropolitan-district-council/walsall ,30/06/2022,CHILDRENS SERVICES,AMZNMKTPLACE,07/04/2022,H59620220411PEPJPZXGB-2,35.98,SEN-STATIONERY & GENERAL OFFICE SU,MISCELLANEOUS AND SPECIALTY RETAIL STORES,GPC
WALSALL COUNCIL,http://opendatacommunities.org/id/metropolitan-district-council/walsall ,30/06/2022,CHILDRENS SERVICES,POST OFFICE COUNTER,07/04/2022,H59620220411PWNIBWTXH-1,7.65,LOOKED AFTER CHILDRENS SOCIAL -POSTAGES & COURIER SERVICES,POSTAL SERVICES - GOVERNMENT ONLY,GPC
WALSALL COUNCIL,http://opendatacommunities.org/id/metropolitan-district-council/walsall ,30/06/2022,CHILDRENS SERVICES,CLEANING SUPPLIES 4 U,07/04/2022,H59620220411QGTOQGZFR-1,103.20,OAKWOOD SCHOOL-PERSONAL REQUISITES-MATERIALS,"SPECIALTY CLEANING, POLISHING, AND SANITATION",GPC
WALSALL COUNCIL,http://opendatacommunities.org/id/metropolitan-district-council/walsall ,30/06/2022,CHILDRENS SERVICES,ARGOS LTD,07/04/2022,H59620220411QOFUTUUCJ-1,37.00,"43A HILTON ROAD, WILLENHALL-PURCHASE OF FURNITURE & EQUIPM",DISCOUNT STORES,GPC
WALSALL COUNCIL,http://opendatacommunities.org/id/metropolitan-district-council/walsall ,30/06/2022,ECONOMY & ENVIRONMENT,TESCO STORES 6161,07/04/2022,H59620220411QVUXXLPBC-1,11.94,LEATHER MUSEUM-FOOD & DRINK SUPPLIES,GROCERY STORES AND SUPERMARKETS,GPC
WALSALL COUNCIL,http://opendatacommunities.org/id/metropolitan-district-council/walsall ,30/06/2022,CHILDRENS SERVICES,AMAZON.CO.UK*294LD2YD4,07/04/2022,H59620220411RDXRCHPXG-1,47.00,DAISY SERVICE PROGRAMME-PURCHASE OF FURNITURE & EQUIPM,OTHER DIRECT MARKETING-OTHER DIRECT MARKETERS,GPC
WALSALL COUNCIL,http://opendatacommunities.org/id/metropolitan-district-council/walsall ,30/06/2022,ECONOMY & ENVIRONMENT,AMAZON.CO.UK*2E83B5CQ4,07/04/2022,H59620220411RDXUFRRQZ-1,18.94,AUDIENCE DEVELOPMENT-LIBRARY BOOKS,OTHER DIRECT MARKETING-OTHER DIRECT MARKETERS,GPC
WALSALL COUNCIL,http://opendatacommunities.org/id/metropolitan-district-council/walsall ,30/06/2022,RESOURCES AND TRANSFORMATION,SCREWFIX DIR LTD,07/04/2022,H59620220411RVMOUFCWB-1,9.99,CENTRAL OFFICE ACCOMMODATION-MATERIALS,LUMBER & BUILDING MATERIALS STORES,GPC
WALSALL COUNCIL,http://opendatacommunities.org/id/metropolitan-district-council/walsall ,30/06/2022,CHILDRENS SERVICES,WALSALL COUNCIL,07/04/2022,H59620220411SIFLTVGED-1,36.00,ADMINISTRATIVE SUPPLIES-MATERIALS,GOVERNMENT SERVICES,GPC
WALSALL COUNCIL,http://opendatacommunities.org/id/metropolitan-district-council/walsall ,30/06/2022,ECONOMY & ENVIRONMENT,ARGOS LTD,07/04/2022,H59620220411SYKCURYCU-1,100.00,LEATHER MUSEUM-PURCHASE OF FURNITURE & EQUIPM,DISCOUNT STORES,GPC
WALSALL COUNCIL,http://opendatacommunities.org/id/metropolitan-district-council/walsall ,30/06/2022,CHILDRENS SERVICES,ASDA STORES,07/04/2022,H59620220411TDGVSFAKH-1,40.00,LOOKED AFTER CHILDRENS SOCIAL -FOOD & DRINK SUPPLIES,GROCERY STORES AND SUPERMARKETS,GPC
WALSALL COUNCIL,http://opendatacommunities.org/id/metropolitan-district-council/walsall ,30/06/2022,CHILDRENS SERVICES,ASDA STORES,07/04/2022,H59620220411TPKPDIAMY-1,8.00,PALFREY JUNIOR SCHOOL-MATERIALS,GROCERY STORES AND SUPERMARKETS,GPC
WALSALL COUNCIL,http://opendatacommunities.org/id/metropolitan-district-council/walsall ,30/06/2022,CHILDRENS SERVICES,AMAZON.CO.UK*2E3EJ7C54,07/04/2022,H59620220411VKLTQTPYX-1,26.01,ADMINISTRATIVE SUPPLIES-MATERIALS,OTHER DIRECT MARKETING-OTHER DIRECT MARKETERS,GPC
WALSALL COUNCIL,http://opendatacommunities.org/id/metropolitan-district-council/walsall ,30/06/2022,CHILDRENS SERVICES,AMAZON.CO.UK*296WQ8YU4,07/04/2022,H59620220411WOCYJSBGS-1,47.00,DAISY SERVICE PROGRAMME-PURCHASE OF FURNITURE & EQUIPM,OTHER DIRECT MARKETING-OTHER DIRECT MARKETERS,GPC
WALSALL COUNCIL,http://opendatacommunities.org/id/metropolitan-district-council/walsall ,30/06/2022,CHILDRENS SERVICES,CITY LIT,07/04/2022,H59620220411WXSYXYSCY-1,-189.00,REDRUTH ROAD-RESIDENTS PERSONAL EXPENSES-AL,OTHER SCHOOLS AND EDUCATIONAL SERVICES,GPC
WALSALL COUNCIL,http://opendatacommunities.org/id/metropolitan-district-council/walsall ,30/06/2022,CHILDRENS SERVICES,AMZNMKTPLACE,07/04/2022,H59620220411XWDOCEHOP-1,37.97,FAMILY PLACEMENTS-MATERIALS,MISCELLANEOUS AND SPECIALTY RETAIL STORES,GPC
WALSALL COUNCIL,http://opendatacommunities.org/id/metropolitan-district-council/walsall ,30/06/2022,CHILDRENS SERVICES,BESTWAY WALSALL,07/04/2022,H59620220411YIJLBXOHP-1,57.81,GENERAL-MATERIALS,DAIRY PRODUCTS STORES,GPC
WALSALL COUNCIL,http://opendatacommunities.org/id/metropolitan-district-council/walsall ,30/06/2022,CHILDRENS SERVICES,AMZNMKTPLACE,07/04/2022,H59620220411YSVMGJLCR-1,67.78,SEN-STATIONERY & GENERAL OFFICE SU,MISCELLANEOUS AND SPECIALTY RETAIL STORES,GPC
WALSALL COUNCIL,http://opendatacommunities.org/id/metropolitan-district-council/walsall ,30/06/2022,CHILDRENS SERVICES,AMZNMKTPLACE,07/04/2022,H59620220411YSVMGJLCR-2,38.00,SEN-STATIONERY & GENERAL OFFICE SU,MISCELLANEOUS AND SPECIALTY RETAIL STORES,GPC
WALSALL COUNCIL,http://opendatacommunities.org/id/metropolitan-district-council/walsall ,30/06/2022,CHILDRENS SERVICES,AMZNMKTPLACE,07/04/2022,H59620220411YSVMGJLCR-3,29.98,SEN-STATIONERY & GENERAL OFFICE SU,MISCELLANEOUS AND SPECIALTY RETAIL STORES,GPC
WALSALL COUNCIL,http://opendatacommunities.org/id/metropolitan-district-council/walsall ,30/06/2022,CHILDRENS SERVICES,AMZNMKTPLACE,07/04/2022,H59620220411YSVMGJLCR-4,15.99,SEN-STATIONERY & GENERAL OFFICE SU,MISCELLANEOUS AND SPECIALTY RETAIL STORES,GPC
WALSALL COUNCIL,http://opendatacommunities.org/id/metropolitan-district-council/walsall ,30/06/2022,ECONOMY & ENVIRONMENT,BESTWAY WALSALL,07/04/2022,H59620220411ZMQRILVBG-1,14.01,STREETLY LIBRARY-FOOD & DRINK SUPPLIES,DAIRY PRODUCTS STORES,GPC
WALSALL COUNCIL,http://opendatacommunities.org/id/metropolitan-district-council/walsall ,30/06/2022,ECONOMY & ENVIRONMENT,B & Q 1276,07/04/2022,H59620220411ZMVQAPDNR-1,41.50,INFRASTRUCTURE MAINTENANCE-MATERIALS,HOME SUPPLY WAREHOUSE STORES,GPC
WALSALL COUNCIL,http://opendatacommunities.org/id/metropolitan-district-council/walsall ,30/06/2022,RESOURCES AND TRANSFORMATION,G E M INTEGRATED S,07/04/2022,H59620220412EIBHQEGDP-1,"2,605.20",CENTRAL OFFICE ACCOMMODATION-OPERATIONAL MAINTENANCE,ELECTRICAL CONTRACTORS,GPC
WALSALL COUNCIL,http://opendatacommunities.org/id/metropolitan-district-council/walsall ,30/06/2022,RESOURCES AND TRANSFORMATION,PAYPAL *MHFAENGLAND,08/04/2022,H59620220412AIHZKECNQ-1,156.00,LEARNING & MANAGEMENT DEVELOPM-EXTERNAL TRAINING,OTHER SCHOOLS AND EDUCATIONAL SERVICES,GPC
WALSALL COUNCIL,http://opendatacommunities.org/id/metropolitan-district-council/walsall ,30/06/2022,RESOURCES AND TRANSFORMATION,JOHAL DAIRIES LTD,08/04/2022,H59620220412APGJXZEJA-1,13.56,CATERING - SCHOOLS-FOOD & DRINK SUPPLIES,OTHER NONDURABLE GOODS,GPC
WALSALL COUNCIL,http://opendatacommunities.org/id/metropolitan-district-council/walsall ,30/06/2022,CHILDRENS SERVICES,WALSALL COUNCIL,08/04/2022,H59620220412BBSJLXOCO-1,40.22,MILLFIELD PRIMARY SCHOOL-POLICE CHECKS,GOVERNMENT SERVICES,GPC
WALSALL COUNCIL,http://opendatacommunities.org/id/metropolitan-district-council/walsall ,30/06/2022,RESOURCES AND TRANSFORMATION,JOHAL DAIRIES LTD,08/04/2022,H59620220412BJKRMMQXS-1,22.10,CATERING - SCHOOLS-FOOD & DRINK SUPPLIES,OTHER NONDURABLE GOODS,GPC
WALSALL COUNCIL,http://opendatacommunities.org/id/metropolitan-district-council/walsall ,30/06/2022,CHILDRENS SERVICES,MCDONALDS,08/04/2022,H59620220412BJMLBTGQE-1,13.49,FAMILY PLACEMENTS-FOOD & DRINK SUPPLIES,QUICK PAYMENT SERVICE-FAST-FOOD RESTAURANTS,GPC
WALSALL COUNCIL,http://opendatacommunities.org/id/metropolitan-district-council/walsall ,30/06/2022,RESOURCES AND TRANSFORMATION,ARTHUR BRETT CATER,08/04/2022,H59620220412BTXUTWNTS-1,14.06,CATERING - SCHOOLS-FOOD & DRINK SUPPLIES,MISCELLANEOUS FOOD STORES & CONVENIENCE STORES,GPC
WALSALL COUNCIL,http://opendatacommunities.org/id/metropolitan-district-council/walsall ,30/06/2022,CHILDRENS SERVICES,THE LIGHT CINEMAS,08/04/2022,H59620220412CHWOXNSFF-1,18.45,REDRUTH ROAD-RESIDENTS PERSONAL EXPENSES-AL,MOTION PICTURE THEATERS,GPC
WALSALL COUNCIL,http://opendatacommunities.org/id/metropolitan-district-council/walsall ,30/06/2022,RESOURCES AND TRANSFORMATION,JOHAL DAIRIES LTD,08/04/2022,H59620220412CKLXICOBI-1,23.98,CATERING - SCHOOLS-FOOD & DRINK SUPPLIES,OTHER NONDURABLE GOODS,GPC
WALSALL COUNCIL,http://opendatacommunities.org/id/metropolitan-district-council/walsall ,30/06/2022,CHILDRENS SERVICES,POUNDLAND,08/04/2022,H59620220412DFDAYOCKD-1,5.25,EDGE OF CARE TEAM-MATERIALS,DISCOUNT STORES,GPC
WALSALL COUNCIL,http://opendatacommunities.org/id/metropolitan-district-council/walsall ,30/06/2022,CHILDRENS SERVICES,THE LIGHT CINEMAS,08/04/2022,H59620220412DHKMSCQMJ-1,19.90,REDRUTH ROAD-RESIDENTS PERSONAL EXPENSES-AL,MOTION PICTURE THEATERS,GPC
WALSALL COUNCIL,http://opendatacommunities.org/id/metropolitan-district-council/walsall ,30/06/2022,ECONOMY & ENVIRONMENT,AMAZON.CO.UK*2E1CT2FJ4,08/04/2022,H59620220412DLYRXTGEP-1,29.39,BLOXWICH LIBRARY-PURCHASE OF FURNITURE & EQUIPM,OTHER DIRECT MARKETING-OTHER DIRECT MARKETERS,GPC
WALSALL COUNCIL,http://opendatacommunities.org/id/metropolitan-district-council/walsall ,30/06/2022,CHILDRENS SERVICES,MCDONALDS,08/04/2022,H59620220412DWZHAXIOG-1,1.09,FAMILY PLACEMENTS-FOOD & DRINK SUPPLIES,QUICK PAYMENT SERVICE-FAST-FOOD RESTAURANTS,GPC
WALSALL COUNCIL,http://opendatacommunities.org/id/metropolitan-district-council/walsall ,30/06/2022,CHILDRENS SERVICES,AMZNMKTPLACE,08/04/2022,H59620220412EBYCNACBD-1,7.99,EDGE OF CARE TEAM-MATERIALS,MISCELLANEOUS AND SPECIALTY RETAIL STORES,GPC
WALSALL COUNCIL,http://opendatacommunities.org/id/metropolitan-district-council/walsall ,30/06/2022,ECONOMY & ENVIRONMENT,WWW.SCREWFIX.COM,08/04/2022,H59620220412ECNYNOFKP-1,84.80,NAG - TEMPORARY EXHIBITIONS-MATERIALS,LUMBER & BUILDING MATERIALS STORES,GPC
WALSALL COUNCIL,http://opendatacommunities.org/id/metropolitan-district-council/walsall ,30/06/2022,RESOURCES AND TRANSFORMATION,JOHAL DAIRIES LTD,08/04/2022,H59620220412EHJHANBUE-1,16.35,CATERING - SCHOOLS-FOOD & DRINK SUPPLIES,OTHER NONDURABLE GOODS,GPC
WALSALL COUNCIL,http://opendatacommunities.org/id/metropolitan-district-council/walsall ,30/06/2022,RESOURCES AND TRANSFORMATION,JOHAL DAIRIES LTD,08/04/2022,H59620220412EHXJOBHYN-1,19.62,CATERING - SCHOOLS-FOOD & DRINK SUPPLIES,OTHER NONDURABLE GOODS,GPC
WALSALL COUNCIL,http://opendatacommunities.org/id/metropolitan-district-council/walsall ,30/06/2022,CHILDRENS SERVICES,ALDI 772 129,08/04/2022,H59620220412EVSPAUAPH-1,2.97,HOUSING YEI/ESF MATCH-MATERIALS,GROCERY STORES AND SUPERMARKETS,GPC
WALSALL COUNCIL,http://opendatacommunities.org/id/metropolitan-district-council/walsall ,30/06/2022,CHILDRENS SERVICES,IKEA LTD SHOP ONLINE,08/04/2022,H59620220412EYBROCISQ-1,238.00,CARE LEAVER ENTITLEMENTS-SETTING UP HOME GRANT,"EQUIPMENT, FURNITURE, AND HOME FURNISHINGS STORES ",GPC
WALSALL COUNCIL,http://opendatacommunities.org/id/metropolitan-district-council/walsall ,30/06/2022,RESOURCES AND TRANSFORMATION,POST OFFICE COUNTER,08/04/2022,H59620220412FCPQCOQTV-1,5.61,YEI ESF FUNDING-POSTAGES & COURIER SERVICES,POSTAL SERVICES - GOVERNMENT ONLY,GPC
WALSALL COUNCIL,http://opendatacommunities.org/id/metropolitan-district-council/walsall ,30/06/2022,RESOURCES AND TRANSFORMATION,POST OFFICE COUNTER,08/04/2022,H59620220412FCPQCOQTV-2,5.61,YEI (IMPACT) PROGRAMME-POSTAGES & COURIER SERVICES,POSTAL SERVICES - GOVERNMENT ONLY,GPC
WALSALL COUNCIL,http://opendatacommunities.org/id/metropolitan-district-council/walsall ,30/06/2022,RESOURCES AND TRANSFORMATION,NOBISCO LIMITED,08/04/2022,H59620220412FGSKCCQII-1,124.13,CATERING - SCHOOLS-FOOD & DRINK SUPPLIES,OTHER INDUSTRIAL SUPPLIES,GPC
WALSALL COUNCIL,http://opendatacommunities.org/id/metropolitan-district-council/walsall ,30/06/2022,ECONOMY & ENVIRONMENT,BELL PLUMBING SUPPLIES,08/04/2022,H59620220412FIOXQKRAO-1,9.62,INFRASTRUCTURE MAINTENANCE-MATERIALS,"AIR CONDITIONING, HEATING, PLUMBING CONTRACTORS",GPC
WALSALL COUNCIL,http://opendatacommunities.org/id/metropolitan-district-council/walsall ,30/06/2022,CHILDRENS SERVICES,POUNDLAND LTD 1427,08/04/2022,H59620220412FQPAGMDLL-1,5.20,EDGE OF CARE TEAM-MATERIALS,DISCOUNT STORES,GPC
WALSALL COUNCIL,http://opendatacommunities.org/id/metropolitan-district-council/walsall ,30/06/2022,CHILDRENS SERVICES,TRAVELODGE GB0000,08/04/2022,H59620220412FSZBBKUII-1,337.54,BED & BREAKFAST PAYMENTS-ACCOMMODATION AND RELATED COST,TRAVELODGE,GPC
WALSALL COUNCIL,http://opendatacommunities.org/id/metropolitan-district-council/walsall ,30/06/2022,CHILDRENS SERVICES,PPOINT_*SPS RATE MARK LTD,08/04/2022,H59620220412FWOXFJBGU-1,20.00,TENANCY SERVICE-FOOD & DRINK SUPPLIES,MISCELLANEOUS FOOD STORES & CONVENIENCE STORES,GPC
WALSALL COUNCIL,http://opendatacommunities.org/id/metropolitan-district-council/walsall ,30/06/2022,CHILDRENS SERVICES,B&M 022 - WEDNESBURY,08/04/2022,H59620220412GEWSNKMRV-1,12.00,FAMILY PLACEMENTS-MATERIALS,MISCELLANEOUS GENERAL MERCHANDISE,GPC
WALSALL COUNCIL,http://opendatacommunities.org/id/metropolitan-district-council/walsall ,30/06/2022,CHILDRENS SERVICES,CS* TESCO STORES GC,08/04/2022,H59620220412GNOEHPCCV-1,15.00,RUSHALL PRIMARY SCHOOL-FOOD & DRINK SUPPLIES,OTHER BUSINESS SERVICES,GPC
WALSALL COUNCIL,http://opendatacommunities.org/id/metropolitan-district-council/walsall ,30/06/2022,CHILDRENS SERVICES,EURASIA CARPETS,08/04/2022,H59620220412GSZXYKNEX-1,480.00,CARE LEAVER ENTITLEMENTS-SETTING UP HOME GRANT,FLOOR COVERING STORES,GPC
WALSALL COUNCIL,http://opendatacommunities.org/id/metropolitan-district-council/walsall ,30/06/2022,RESOURCES AND TRANSFORMATION,JOHAL DAIRIES LTD,08/04/2022,H59620220412GTCSKCKYU-1,12.24,CATERING - SCHOOLS-FOOD & DRINK SUPPLIES,OTHER NONDURABLE GOODS,GPC
WALSALL COUNCIL,http://opendatacommunities.org/id/metropolitan-district-council/walsall ,30/06/2022,CHILDRENS SERVICES,THE LIGHT CINEMAS,08/04/2022,H59620220412IQLRBRJTI-1,18.45,REDRUTH ROAD-RESIDENTS PERSONAL EXPENSES-AL,MOTION PICTURE THEATERS,GPC
WALSALL COUNCIL,http://opendatacommunities.org/id/metropolitan-district-council/walsall ,30/06/2022,RESOURCES AND TRANSFORMATION,AUTOTASK CORP-GBP,08/04/2022,H59620220412IRDEJPUBR-1,"2,016.00",SIT-INFRASTRUCTURE-COMPUTER EQUIPMENT,"COMPUTER PROGRAM, SYSTEM DESIGN",GPC
WALSALL COUNCIL,http://opendatacommunities.org/id/metropolitan-district-council/walsall ,30/06/2022,RESOURCES AND TRANSFORMATION,JOHAL DAIRIES LTD,08/04/2022,H59620220412JJQJPYSSR-1,17.48,CATERING - SCHOOLS-FOOD & DRINK SUPPLIES,OTHER NONDURABLE GOODS,GPC
WALSALL COUNCIL,http://opendatacommunities.org/id/metropolitan-district-council/walsall ,30/06/2022,CHILDRENS SERVICES,AMZNMKTPLACE,08/04/2022,H59620220412KWXBSUQYM-1,33.10,EDGE OF CARE TEAM-MATERIALS,MISCELLANEOUS AND SPECIALTY RETAIL STORES,GPC
WALSALL COUNCIL,http://opendatacommunities.org/id/metropolitan-district-council/walsall ,30/06/2022,RESOURCES AND TRANSFORMATION,ARTHUR BRETT CATER,08/04/2022,H59620220412KXXHXQHWY-1,28.06,CATERING - SCHOOLS-FOOD & DRINK SUPPLIES,MISCELLANEOUS FOOD STORES & CONVENIENCE STORES,GPC
WALSALL COUNCIL,http://opendatacommunities.org/id/metropolitan-district-council/walsall ,30/06/2022,RESOURCES AND TRANSFORMATION,NOBISCO LIMITED,08/04/2022,H59620220412LLICNTXAE-1,105.18,CATERING - SCHOOLS-FOOD & DRINK SUPPLIES,OTHER INDUSTRIAL SUPPLIES,GPC
WALSALL COUNCIL,http://opendatacommunities.org/id/metropolitan-district-council/walsall ,30/06/2022,RESOURCES AND TRANSFORMATION,JOHAL DAIRIES LTD,08/04/2022,H59620220412LPHKTIJXQ-1,9.81,CATERING - SCHOOLS-FOOD & DRINK SUPPLIES,OTHER NONDURABLE GOODS,GPC
WALSALL COUNCIL,http://opendatacommunities.org/id/metropolitan-district-council/walsall ,30/06/2022,CHILDRENS SERVICES,MIMIS,08/04/2022,H59620220412LVMCBHBJC-1,5.76,CARE LEAVER ENTITLEMENTS-CARE LEAVERS MISC EXPENSES,"BARS, COCKTAIL LOUNGES, DISCOTHEQUES, NIGHTCLUBS",GPC
WALSALL COUNCIL,http://opendatacommunities.org/id/metropolitan-district-council/walsall ,30/06/2022,CHILDRENS SERVICES,BRITISH HEART FOUNDATION,08/04/2022,H59620220412LXJZGRMXA-1,30.00,CARE LEAVER ENTITLEMENTS-SETTING UP HOME GRANT,"ORGANIZATIONS, CHARITABLE AND SOCIAL SERVICE",GPC
WALSALL COUNCIL,http://opendatacommunities.org/id/metropolitan-district-council/walsall ,30/06/2022,CHILDRENS SERVICES,WWW.BANNERUK.COM,08/04/2022,H59620220412MCCNOHJSY-1,60.03,SAFEGUARDING & FAMILY SUPPORT-STATIONERY & GENERAL OFFICE SU,"STATIONERY, OFFICE SUPPLIES AND WRITING PAPER",GPC
WALSALL COUNCIL,http://opendatacommunities.org/id/metropolitan-district-council/walsall ,30/06/2022,RESOURCES AND TRANSFORMATION,PAYPAL *MHFAENGLAND,08/04/2022,H59620220412MTAYELGQE-1,156.00,LEARNING & MANAGEMENT DEVELOPM-EXTERNAL TRAINING,OTHER SCHOOLS AND EDUCATIONAL SERVICES,GPC
WALSALL COUNCIL,http://opendatacommunities.org/id/metropolitan-district-council/walsall ,30/06/2022,CHILDRENS SERVICES,AMFBOWLING.CO.UK,08/04/2022,H59620220412MXDEYJYQN-1,111.77,REWARDS-MATERIALS,BOWLING ALLEYS,GPC
WALSALL COUNCIL,http://opendatacommunities.org/id/metropolitan-district-council/walsall ,30/06/2022,CHILDRENS SERVICES,MCDONALDS,08/04/2022,H59620220412MZVFLFMJE-1,5.08,EDGE OF CARE TEAM-OFFICERS SUBSISTENCE EXPENSES,QUICK PAYMENT SERVICE-FAST-FOOD RESTAURANTS,GPC
WALSALL COUNCIL,http://opendatacommunities.org/id/metropolitan-district-council/walsall ,30/06/2022,CHILDRENS SERVICES,AMZNMKTPLACE,08/04/2022,H59620220412NGRVKIQVF-1,41.49,EDGE OF CARE TEAM-OTHER EXPENSES,MISCELLANEOUS AND SPECIALTY RETAIL STORES,GPC
WALSALL COUNCIL,http://opendatacommunities.org/id/metropolitan-district-council/walsall ,30/06/2022,RESOURCES AND TRANSFORMATION,JOHAL DAIRIES LTD,08/04/2022,H59620220412NTFZRSEUV-1,10.90,CATERING - SCHOOLS-FOOD & DRINK SUPPLIES,OTHER NONDURABLE GOODS,GPC
WALSALL COUNCIL,http://opendatacommunities.org/id/metropolitan-district-council/walsall ,30/06/2022,RESOURCES AND TRANSFORMATION,JOHAL DAIRIES LTD,08/04/2022,H59620220412NVRHBYBIJ-1,76.95,CATERING - SCHOOLS-FOOD & DRINK SUPPLIES,OTHER NONDURABLE GOODS,GPC
WALSALL COUNCIL,http://opendatacommunities.org/id/metropolitan-district-council/walsall ,30/06/2022,CHILDRENS SERVICES,THE LIGHT CINEMAS,08/04/2022,H59620220412OGPKELMSO-1,17.45,REDRUTH ROAD-RESIDENTS PERSONAL EXPENSES-AL,MOTION PICTURE THEATERS,GPC
WALSALL COUNCIL,http://opendatacommunities.org/id/metropolitan-district-council/walsall ,30/06/2022,ECONOMY & ENVIRONMENT,JACKSONSART.COM PAPER :,08/04/2022,H59620220412ONMXJAHOD-1,29.00,EDUCATION INFORMAL-MATERIALS,"PAINTS, VARNISHES, AND SUPPLIES",GPC
WALSALL COUNCIL,http://opendatacommunities.org/id/metropolitan-district-council/walsall ,30/06/2022,RESOURCES AND TRANSFORMATION,JOHAL DAIRIES LTD,08/04/2022,H59620220412OUOFLSUWS-1,7.79,CATERING - SCHOOLS-FOOD & DRINK SUPPLIES,OTHER NONDURABLE GOODS,GPC
WALSALL COUNCIL,http://opendatacommunities.org/id/metropolitan-district-council/walsall ,30/06/2022,RESOURCES AND TRANSFORMATION,JOHAL DAIRIES LTD,08/04/2022,H59620220412OYUDTGSUI-1,13.08,CATERING - SCHOOLS-FOOD & DRINK SUPPLIES,OTHER NONDURABLE GOODS,GPC
WALSALL COUNCIL,http://opendatacommunities.org/id/metropolitan-district-council/walsall ,30/06/2022,RESOURCES AND TRANSFORMATION,ARTHUR BRETT CATER,08/04/2022,H59620220412OZBELTELE-1,158.40,CATERING - SCHOOLS-FOOD & DRINK SUPPLIES,MISCELLANEOUS FOOD STORES & CONVENIENCE STORES,GPC
WALSALL COUNCIL,http://opendatacommunities.org/id/metropolitan-district-council/walsall ,30/06/2022,CHILDRENS SERVICES,POST OFFICE COUNTER,08/04/2022,H59620220412PEXWUYYZI-1,7.05,TRANSITION AND LEAVING CARE SU-POSTAGES & COURIER SERVICES,POSTAL SERVICES - GOVERNMENT ONLY,GPC
WALSALL COUNCIL,http://opendatacommunities.org/id/metropolitan-district-council/walsall ,30/06/2022,RESOURCES AND TRANSFORMATION,JOHAL DAIRIES LTD,08/04/2022,H59620220412PPNUJRGSR-1,16.35,CATERING - SCHOOLS-FOOD & DRINK SUPPLIES,OTHER NONDURABLE GOODS,GPC
WALSALL COUNCIL,http://opendatacommunities.org/id/metropolitan-district-council/walsall ,30/06/2022,ECONOMY & ENVIRONMENT,SP * RLSS UK SHOP,08/04/2022,H59620220412PZIYYLXJN-1,353.55,WALSALL GALA SWIMMING AND FITN-MATERIALS,MENS AND WOMENS CLOTHING STORES,GPC
WALSALL COUNCIL,http://opendatacommunities.org/id/metropolitan-district-council/walsall ,30/06/2022,RESOURCES AND TRANSFORMATION,JOHAL DAIRIES LTD,08/04/2022,H59620220412QTKEVBKNY-1,3.15,CATERING - SCHOOLS-FOOD & DRINK SUPPLIES,OTHER NONDURABLE GOODS,GPC
WALSALL COUNCIL,http://opendatacommunities.org/id/metropolitan-district-council/walsall ,30/06/2022,RESOURCES AND TRANSFORMATION,JOHAL DAIRIES LTD,08/04/2022,H59620220412REWJYYPCT-1,23.98,CATERING - SCHOOLS-FOOD & DRINK SUPPLIES,OTHER NONDURABLE GOODS,GPC
WALSALL COUNCIL,http://opendatacommunities.org/id/metropolitan-district-council/walsall ,30/06/2022,RESOURCES AND TRANSFORMATION,JOHAL DAIRIES LTD,08/04/2022,H59620220412SDDYJKKZA-1,8.72,CATERING - SCHOOLS-FOOD & DRINK SUPPLIES,OTHER NONDURABLE GOODS,GPC
WALSALL COUNCIL,http://opendatacommunities.org/id/metropolitan-district-council/walsall ,30/06/2022,CHILDRENS SERVICES,WALSALL COUNCIL,08/04/2022,H59620220412SFPSEEOOY-1,-30.00,YOUNG PERSONS HOMELESS SERVICE-FEES & LICENCES,GOVERNMENT SERVICES,GPC
WALSALL COUNCIL,http://opendatacommunities.org/id/metropolitan-district-council/walsall ,30/06/2022,ECONOMY & ENVIRONMENT,WWW.BANNERUK.COM,08/04/2022,H59620220412SGHCQECSM-1,61.34,ALDRIDGE LIBRARY-STATIONERY & GENERAL OFFICE SU,"STATIONERY, OFFICE SUPPLIES AND WRITING PAPER",GPC
WALSALL COUNCIL,http://opendatacommunities.org/id/metropolitan-district-council/walsall ,30/06/2022,RESOURCES AND TRANSFORMATION,JOHAL DAIRIES LTD,08/04/2022,H59620220412SHOFOYKSO-1,71.10,CATERING - SCHOOLS-FOOD & DRINK SUPPLIES,OTHER NONDURABLE GOODS,GPC
WALSALL COUNCIL,http://opendatacommunities.org/id/metropolitan-district-council/walsall ,30/06/2022,CHILDRENS SERVICES,WWW.BANNERUK.COM,08/04/2022,H59620220412SMFYFBQGL-1,30.67,BLUEBELLS-STATIONERY & GENERAL OFFICE SU,"STATIONERY, OFFICE SUPPLIES AND WRITING PAPER",GPC
WALSALL COUNCIL,http://opendatacommunities.org/id/metropolitan-district-council/walsall ,30/06/2022,ADULT SOCIAL CARE,HMCTS BIRMINGHAMCONF113,08/04/2022,H59620220412SYVAJPUUK-1,81.00,AMPH SERVICE-EXTERNAL LEGAL FEES,FINES,GPC
WALSALL COUNCIL,http://opendatacommunities.org/id/metropolitan-district-council/walsall ,30/06/2022,RESOURCES AND TRANSFORMATION,POST OFFICE COUNTER,08/04/2022,H59620220412SZQSDKWDZ-1,5.61,YEI ESF FUNDING-POSTAGES & COURIER SERVICES,POSTAL SERVICES - GOVERNMENT ONLY,GPC
WALSALL COUNCIL,http://opendatacommunities.org/id/metropolitan-district-council/walsall ,30/06/2022,RESOURCES AND TRANSFORMATION,POST OFFICE COUNTER,08/04/2022,H59620220412SZQSDKWDZ-2,5.61,YEI (IMPACT) PROGRAMME-POSTAGES & COURIER SERVICES,POSTAL SERVICES - GOVERNMENT ONLY,GPC
WALSALL COUNCIL,http://opendatacommunities.org/id/metropolitan-district-council/walsall ,30/06/2022,CHILDRENS SERVICES,LIDL GB WALSALL,08/04/2022,H59620220412TISTYDITU-1,153.33,REDRUTH ROAD-FOOD & DRINK SUPPLIES,GROCERY STORES AND SUPERMARKETS,GPC
WALSALL COUNCIL,http://opendatacommunities.org/id/metropolitan-district-council/walsall ,30/06/2022,CHILDRENS SERVICES,LIDL GB WALSALL,08/04/2022,H59620220412TISTYDITU-2,18.19,REDRUTH ROAD-FOOD & DRINK SUPPLIES,GROCERY STORES AND SUPERMARKETS,GPC
WALSALL COUNCIL,http://opendatacommunities.org/id/metropolitan-district-council/walsall ,30/06/2022,ECONOMY & ENVIRONMENT,AMAZON.CO.UK*2E81W8F84,08/04/2022,H59620220412TSROUSJBL-1,181.06,BLOXWICH ACTIVE LIVING CENTRE-MATERIALS,OTHER DIRECT MARKETING-OTHER DIRECT MARKETERS,GPC
WALSALL COUNCIL,http://opendatacommunities.org/id/metropolitan-district-council/walsall ,30/06/2022,CHILDRENS SERVICES,WALSALL COUNCIL,08/04/2022,H59620220412TVDUYWRMB-1,40.22,MILLFIELD PRIMARY SCHOOL-POLICE CHECKS,GOVERNMENT SERVICES,GPC
WALSALL COUNCIL,http://opendatacommunities.org/id/metropolitan-district-council/walsall ,30/06/2022,RESOURCES AND TRANSFORMATION,SANDWELL & DUD T/O,08/04/2022,H59620220412UFBBBPEBU-1,14.60,YEI ESF FUNDING-OFFICERS & STAFF PUBLIC TRANSP,PASSENGER RAILWAYS,GPC
WALSALL COUNCIL,http://opendatacommunities.org/id/metropolitan-district-council/walsall ,30/06/2022,RESOURCES AND TRANSFORMATION,SANDWELL & DUD T/O,08/04/2022,H59620220412UFBBBPEBU-2,14.60,YEI (IMPACT) PROGRAMME-OFFICERS & STAFF PUBLIC TRANSP,PASSENGER RAILWAYS,GPC
WALSALL COUNCIL,http://opendatacommunities.org/id/metropolitan-district-council/walsall ,30/06/2022,RESOURCES AND TRANSFORMATION,POST OFFICE COUNTER,08/04/2022,H59620220412ULKTHFNJF-1,3.43,YEI ESF FUNDING-POSTAGES & COURIER SERVICES,POSTAL SERVICES - GOVERNMENT ONLY,GPC
WALSALL COUNCIL,http://opendatacommunities.org/id/metropolitan-district-council/walsall ,30/06/2022,RESOURCES AND TRANSFORMATION,POST OFFICE COUNTER,08/04/2022,H59620220412ULKTHFNJF-2,3.42,YEI (IMPACT) PROGRAMME-POSTAGES & COURIER SERVICES,POSTAL SERVICES - GOVERNMENT ONLY,GPC
WALSALL COUNCIL,http://opendatacommunities.org/id/metropolitan-district-council/walsall ,30/06/2022,RESOURCES AND TRANSFORMATION,JOHAL DAIRIES LTD,08/04/2022,H59620220412ULTZXAAOJ-1,9.81,CATERING - SCHOOLS-FOOD & DRINK SUPPLIES,OTHER NONDURABLE GOODS,GPC
WALSALL COUNCIL,http://opendatacommunities.org/id/metropolitan-district-council/walsall ,30/06/2022,CHILDRENS SERVICES,BRITISH HEART FOUNDATION,08/04/2022,H59620220412UYJLQSJMP-1,20.00,CARE LEAVER ENTITLEMENTS-SETTING UP HOME GRANT,"ORGANIZATIONS, CHARITABLE AND SOCIAL SERVICE",GPC
WALSALL COUNCIL,http://opendatacommunities.org/id/metropolitan-district-council/walsall ,30/06/2022,CHILDRENS SERVICES,BRITISH HEART FOUNDATION,08/04/2022,H59620220412UYJLQSJMP-2,155.00,CARE LEAVER ENTITLEMENTS-SETTING UP HOME GRANT,"ORGANIZATIONS, CHARITABLE AND SOCIAL SERVICE",GPC
WALSALL COUNCIL,http://opendatacommunities.org/id/metropolitan-district-council/walsall ,30/06/2022,CHILDRENS SERVICES,ASDA STORES,08/04/2022,H59620220412VCKHKGRKW-1,45.00,FAMILY PLACEMENTS-MATERIALS,GROCERY STORES AND SUPERMARKETS,GPC
WALSALL COUNCIL,http://opendatacommunities.org/id/metropolitan-district-council/walsall ,30/06/2022,RESOURCES AND TRANSFORMATION,JOHAL DAIRIES LTD,08/04/2022,H59620220412VGOJATFQJ-1,45.78,CATERING - SCHOOLS-FOOD & DRINK SUPPLIES,OTHER NONDURABLE GOODS,GPC
WALSALL COUNCIL,http://opendatacommunities.org/id/metropolitan-district-council/walsall ,30/06/2022,CHILDRENS SERVICES,IKEA LTD SHOP ONLINE,08/04/2022,H59620220412VGSBFVKKO-1,437.00,E19-MATERIALS,"EQUIPMENT, FURNITURE, AND HOME FURNISHINGS STORES ",GPC
WALSALL COUNCIL,http://opendatacommunities.org/id/metropolitan-district-council/walsall ,30/06/2022,CHILDRENS SERVICES,HOME BARGAINS,08/04/2022,H59620220412VHVSTJQTV-1,82.97,CARE LEAVER ENTITLEMENTS-SETTING UP HOME GRANT,HARDWARE STORES,GPC
WALSALL COUNCIL,http://opendatacommunities.org/id/metropolitan-district-council/walsall ,30/06/2022,CHILDRENS SERVICES,SCHOOLGATEWA*BLUE COAT AC,08/04/2022,H59620220412VRKYDNJVL-1,15.00,REDRUTH ROAD-FOOD & DRINK SUPPLIES,"COLLEGES, UNIVERSITIES, PROFESSIONAL SCHOOLS",GPC
WALSALL COUNCIL,http://opendatacommunities.org/id/metropolitan-district-council/walsall ,30/06/2022,CHILDRENS SERVICES,AMZNMKTPLACE,08/04/2022,H59620220412VUKMQDRTF-1,18.25,EDGE OF CARE TEAM-MATERIALS,MISCELLANEOUS AND SPECIALTY RETAIL STORES,GPC
WALSALL COUNCIL,http://opendatacommunities.org/id/metropolitan-district-council/walsall ,30/06/2022,ECONOMY & ENVIRONMENT,SERVEST HOUSE FOOD CO,08/04/2022,H59620220412WIDJFPOPY-1,806.40,COMMUNITY LIAISON-CATERING & REFRESHMENTS,"EATING PLACES, RESTAURANTS",GPC
WALSALL COUNCIL,http://opendatacommunities.org/id/metropolitan-district-council/walsall ,30/06/2022,RESOURCES AND TRANSFORMATION,JOHAL DAIRIES LTD,08/04/2022,H59620220412WTEMIEMNQ-1,39.82,CATERING - SCHOOLS-FOOD & DRINK SUPPLIES,OTHER NONDURABLE GOODS,GPC
WALSALL COUNCIL,http://opendatacommunities.org/id/metropolitan-district-council/walsall ,30/06/2022,ECONOMY & ENVIRONMENT,WALSALL COUNCIL,08/04/2022,H59620220412XPQPZGODF-1,240.00,WALSALL OUTDOOR PURSUITS-FOOD & DRINK SUPPLIES,GOVERNMENT SERVICES,GPC
WALSALL COUNCIL,http://opendatacommunities.org/id/metropolitan-district-council/walsall ,30/06/2022,CHILDRENS SERVICES,AMZNMKTPLACE,08/04/2022,H59620220412XRAIJISNG-1,24.53,SEN-STATIONERY & GENERAL OFFICE SU,MISCELLANEOUS AND SPECIALTY RETAIL STORES,GPC
WALSALL COUNCIL,http://opendatacommunities.org/id/metropolitan-district-council/walsall ,30/06/2022,RESOURCES AND TRANSFORMATION,AMAZON.CO.UK*2E3ST6OU4,08/04/2022,H59620220412XTQMCJCGQ-1,79.98,LAW LIBRARY-STATIONERY & GENERAL OFFICE SU,OTHER DIRECT MARKETING-OTHER DIRECT MARKETERS,GPC
WALSALL COUNCIL,http://opendatacommunities.org/id/metropolitan-district-council/walsall ,30/06/2022,RESOURCES AND TRANSFORMATION,JOHAL DAIRIES LTD,08/04/2022,H59620220412XUDKHELST-1,15.26,CATERING - SCHOOLS-FOOD & DRINK SUPPLIES,OTHER NONDURABLE GOODS,GPC
WALSALL COUNCIL,http://opendatacommunities.org/id/metropolitan-district-council/walsall ,30/06/2022,RESOURCES AND TRANSFORMATION,JOHAL DAIRIES LTD,08/04/2022,H59620220412XUMENXVUD-1,43.60,CATERING - SCHOOLS-FOOD & DRINK SUPPLIES,OTHER NONDURABLE GOODS,GPC
WALSALL COUNCIL,http://opendatacommunities.org/id/metropolitan-district-council/walsall ,30/06/2022,RESOURCES AND TRANSFORMATION,WM MORRISONS STORE,08/04/2022,H59620220412XYQCSVQNJ-1,4.50,ESF COMMUNITY GRANTS-FOOD & DRINK SUPPLIES,GROCERY STORES AND SUPERMARKETS,GPC
WALSALL COUNCIL,http://opendatacommunities.org/id/metropolitan-district-council/walsall ,30/06/2022,RESOURCES AND TRANSFORMATION,JOHAL DAIRIES LTD,08/04/2022,H59620220412YJDSMATVY-1,28.98,CATERING - SCHOOLS-FOOD & DRINK SUPPLIES,OTHER NONDURABLE GOODS,GPC
WALSALL COUNCIL,http://opendatacommunities.org/id/metropolitan-district-council/walsall ,30/06/2022,CHILDRENS SERVICES,LIDL GB WEDNESBURY,09/04/2022,H59620220412BJDMSJEXL-1,41.86,FAMILY PLACEMENTS-FOOD & DRINK SUPPLIES,GROCERY STORES AND SUPERMARKETS,GPC
WALSALL COUNCIL,http://opendatacommunities.org/id/metropolitan-district-council/walsall ,30/06/2022,CHILDRENS SERVICES,AMZNMKTPLACE,09/04/2022,H59620220412BTCVRQTZQ-1,6.69,EDGE OF CARE TEAM-MATERIALS,MISCELLANEOUS AND SPECIALTY RETAIL STORES,GPC
WALSALL COUNCIL,http://opendatacommunities.org/id/metropolitan-district-council/walsall ,30/06/2022,CHILDRENS SERVICES,SAINSBURYS PETROL,09/04/2022,H59620220412BXYQFGOTQ-1,48.80,TRANSITION AND LEAVING CARE SU-FUEL FOR VEHICLES,SERVICE STATIONS,GPC
WALSALL COUNCIL,http://opendatacommunities.org/id/metropolitan-district-council/walsall ,30/06/2022,ECONOMY & ENVIRONMENT,POUNDLAND LTD 1427,09/04/2022,H59620220412CITFXXOSE-1,17.00,EDUCATION INFORMAL-MATERIALS,DISCOUNT STORES,GPC
WALSALL COUNCIL,http://opendatacommunities.org/id/metropolitan-district-council/walsall ,30/06/2022,ECONOMY & ENVIRONMENT,AMAZON.CO.UK*2E7QR1Z24,09/04/2022,H59620220412DCGVEKDCH-1,8.31,ARBORETUM-MATERIALS,OTHER DIRECT MARKETING-OTHER DIRECT MARKETERS,GPC
WALSALL COUNCIL,http://opendatacommunities.org/id/metropolitan-district-council/walsall ,30/06/2022,ECONOMY & ENVIRONMENT,TESCO STORES 5851,09/04/2022,H59620220412DDEIMQBHD-1,1.00,ARBORETUM-MATERIALS,GROCERY STORES AND SUPERMARKETS,GPC
WALSALL COUNCIL,http://opendatacommunities.org/id/metropolitan-district-council/walsall ,30/06/2022,CHILDRENS SERVICES,AMZNMKTPLACE,09/04/2022,H59620220412DQHPLUVMR-1,3.27,EDGE OF CARE TEAM-OTHER EXPENSES,MISCELLANEOUS AND SPECIALTY RETAIL STORES,GPC
WALSALL COUNCIL,http://opendatacommunities.org/id/metropolitan-district-council/walsall ,30/06/2022,ECONOMY & ENVIRONMENT,TESCO STORES 5851,09/04/2022,H59620220412DUJLKRCQM-1,4.60,ARBORETUM-MATERIALS,GROCERY STORES AND SUPERMARKETS,GPC
WALSALL COUNCIL,http://opendatacommunities.org/id/metropolitan-district-council/walsall ,30/06/2022,ECONOMY & ENVIRONMENT,TESCO STORES 5851,09/04/2022,H59620220412DUJLKRCQM-2,25.00,ARBORETUM-MATERIALS,GROCERY STORES AND SUPERMARKETS,GPC
WALSALL COUNCIL,http://opendatacommunities.org/id/metropolitan-district-council/walsall ,30/06/2022,CHILDRENS SERVICES,AMAZON.CO.UK*2E7UP3LF4,09/04/2022,H59620220412DXBRYDMTS-1,18.87,ENGLISH DEPARTMENT-MATERIALS,OTHER DIRECT MARKETING-OTHER DIRECT MARKETERS,GPC
WALSALL COUNCIL,http://opendatacommunities.org/id/metropolitan-district-council/walsall ,30/06/2022,RESOURCES AND TRANSFORMATION,AMAZON.CO.UK*2E8XN5LS4,09/04/2022,H59620220412HWBERXHRU-1,23.58,SIT-INFRASTRUCTURE-COMPUTER EQUIPMENT,OTHER DIRECT MARKETING-OTHER DIRECT MARKETERS,GPC
WALSALL COUNCIL,http://opendatacommunities.org/id/metropolitan-district-council/walsall ,30/06/2022,ECONOMY & ENVIRONMENT,WILKO RETAIL LIMITED,09/04/2022,H59620220412MSBHXTDEN-1,18.00,EDUCATION INFORMAL-MATERIALS,MISCELLANEOUS GENERAL MERCHANDISE,GPC
WALSALL COUNCIL,http://opendatacommunities.org/id/metropolitan-district-council/walsall ,30/06/2022,ECONOMY & ENVIRONMENT,AMAZON.CO.UK*2E7PI5LT4,09/04/2022,H59620220412PCKXOXHBG-1,19.68,COMMUNITY LIAISON-MATERIALS,OTHER DIRECT MARKETING-OTHER DIRECT MARKETERS,GPC
WALSALL COUNCIL,http://opendatacommunities.org/id/metropolitan-district-council/walsall ,30/06/2022,ECONOMY & ENVIRONMENT,POUNDLAND LTD 1427,09/04/2022,H59620220412QPTMRPDDW-1,15.50,EDUCATION INFORMAL-MATERIALS,DISCOUNT STORES,GPC
WALSALL COUNCIL,http://opendatacommunities.org/id/metropolitan-district-council/walsall ,30/06/2022,ECONOMY & ENVIRONMENT,AMZNMKTPLACE,09/04/2022,H59620220412UOPAVTAEO-1,8.04,EDUCATION INFORMAL-MATERIALS,MISCELLANEOUS AND SPECIALTY RETAIL STORES,GPC
WALSALL COUNCIL,http://opendatacommunities.org/id/metropolitan-district-council/walsall ,30/06/2022,CHILDRENS SERVICES,AMZNMKTPLACE,09/04/2022,H59620220412VYGBGIVGK-1,13.06,EDGE OF CARE TEAM-OPERATIONAL MAINTENANCE,MISCELLANEOUS AND SPECIALTY RETAIL STORES,GPC
WALSALL COUNCIL,http://opendatacommunities.org/id/metropolitan-district-council/walsall ,30/06/2022,ECONOMY & ENVIRONMENT,AMAZON.CO.UK*2E0P71LE4,09/04/2022,H59620220412WCBRYGBBX-1,19.68,COMMUNITY LIAISON-MATERIALS,OTHER DIRECT MARKETING-OTHER DIRECT MARKETERS,GPC
WALSALL COUNCIL,http://opendatacommunities.org/id/metropolitan-district-council/walsall ,30/06/2022,CHILDRENS SERVICES,AMZNMKTPLACE,09/04/2022,H59620220412YROMBQRJS-1,7.50,EDGE OF CARE TEAM-MATERIALS,MISCELLANEOUS AND SPECIALTY RETAIL STORES,GPC
WALSALL COUNCIL,http://opendatacommunities.org/id/metropolitan-district-council/walsall ,30/06/2022,CHILDRENS SERVICES,AMAZON.CO.UK*2E85Z1JI4,10/04/2022,H59620220412AGJESPQQE-1,318.98,ST JOHNS C.E. PRIMARY SCHOOL-PURCHASE OF FURNITURE & EQUIPM,OTHER DIRECT MARKETING-OTHER DIRECT MARKETERS,GPC
WALSALL COUNCIL,http://opendatacommunities.org/id/metropolitan-district-council/walsall ,30/06/2022,ECONOMY & ENVIRONMENT,TESCO STORES 5851,10/04/2022,H59620220412CDRMEHFOL-1,23.08,COMMUNITY LIAISON-MATERIALS,GROCERY STORES AND SUPERMARKETS,GPC
WALSALL COUNCIL,http://opendatacommunities.org/id/metropolitan-district-council/walsall ,30/06/2022,CHILDRENS SERVICES,AMZNMKTPLACE,10/04/2022,H59620220412KJQDLSILZ-1,25.91,HOUSING YEI/ESF MATCH-CLEANING MATERIALS,MISCELLANEOUS AND SPECIALTY RETAIL STORES,GPC
WALSALL COUNCIL,http://opendatacommunities.org/id/metropolitan-district-council/walsall ,30/06/2022,ECONOMY & ENVIRONMENT,AMAZON.CO.UK*2E4WH63Q4,10/04/2022,H59620220412LBCCETBLU-1,21.17,EDUCATION INFORMAL-MATERIALS,OTHER DIRECT MARKETING-OTHER DIRECT MARKETERS,GPC
WALSALL COUNCIL,http://opendatacommunities.org/id/metropolitan-district-council/walsall ,30/06/2022,CHILDRENS SERVICES,AMZNMKTPLACE,10/04/2022,H59620220412MUNVHETWX-1,25.91,HOUSING YEI/ESF MATCH-STATIONERY & GENERAL OFFICE SU,MISCELLANEOUS AND SPECIALTY RETAIL STORES,GPC
WALSALL COUNCIL,http://opendatacommunities.org/id/metropolitan-district-council/walsall ,30/06/2022,ECONOMY & ENVIRONMENT,AMAZON.CO.UK*2E71W53K4,10/04/2022,H59620220412QORVKRIWU-1,69.25,COMMUNITY LIAISON-MATERIALS,OTHER DIRECT MARKETING-OTHER DIRECT MARKETERS,GPC
WALSALL COUNCIL,http://opendatacommunities.org/id/metropolitan-district-council/walsall ,30/06/2022,CHILDRENS SERVICES,AMZNMKTPLACE,10/04/2022,H59620220412SSIFDYJJR-1,25.91,HOUSING YEI/ESF MATCH-CLEANING MATERIALS,MISCELLANEOUS AND SPECIALTY RETAIL STORES,GPC
WALSALL COUNCIL,http://opendatacommunities.org/id/metropolitan-district-council/walsall ,30/06/2022,ECONOMY & ENVIRONMENT,AMZNMKTPLACE,10/04/2022,H59620220412TVWWVCUJQ-1,6.99,NAG - TEMPORARY EXHIBITIONS-MATERIALS,MISCELLANEOUS AND SPECIALTY RETAIL STORES,GPC
WALSALL COUNCIL,http://opendatacommunities.org/id/metropolitan-district-council/walsall ,30/06/2022,CHILDRENS SERVICES,AMZNMKTPLACE,10/04/2022,H59620220412VTEUWHJQS-1,6.99,HOUSING YEI/ESF MATCH-MATERIALS,MISCELLANEOUS AND SPECIALTY RETAIL STORES,GPC
WALSALL COUNCIL,http://opendatacommunities.org/id/metropolitan-district-council/walsall ,30/06/2022,CHILDRENS SERVICES,AMZNMKTPLACE,10/04/2022,H59620220412ZWGYZTMYX-1,25.91,HOUSING YEI/ESF MATCH-CLEANING MATERIALS,MISCELLANEOUS AND SPECIALTY RETAIL STORES,GPC
WALSALL COUNCIL,http://opendatacommunities.org/id/metropolitan-district-council/walsall ,30/06/2022,CHILDRENS SERVICES,AMZNMKTPLACE,11/04/2022,H59620220412ZYORONCKV-1,19.98,SAFEGUARDING & FAMILY SUPPORT-MATERIALS,MISCELLANEOUS AND SPECIALTY RETAIL STORES,GPC
WALSALL COUNCIL,http://opendatacommunities.org/id/metropolitan-district-council/walsall ,30/06/2022,ECONOMY & ENVIRONMENT,WILKO RETAIL LIMITED,11/04/2022,H59620220413AEDMGDOWX-1,12.00,LEATHER MUSEUM-PURCHASE OF FURNITURE & EQUIPM,MISCELLANEOUS GENERAL MERCHANDISE,GPC
WALSALL COUNCIL,http://opendatacommunities.org/id/metropolitan-district-council/walsall ,30/06/2022,RESOURCES AND TRANSFORMATION,BLAKEMORE FOODSERVICE,11/04/2022,H59620220413ATRVYYZGT-1,476.91,CATERING - SCHOOLS-FOOD & DRINK SUPPLIES,CATERERS,GPC
WALSALL COUNCIL,http://opendatacommunities.org/id/metropolitan-district-council/walsall ,30/06/2022,CHILDRENS SERVICES,CAPITA RECRUITMENT VETTIN,11/04/2022,H59620220413AVBZJYCIQ-1,46.10,"43A HILTON ROAD, WILLENHALL-PROFESSIONAL FEES & SERVICES",PROFESSIONAL SERVICES,GPC
WALSALL COUNCIL,http://opendatacommunities.org/id/metropolitan-district-council/walsall ,30/06/2022,RESOURCES AND TRANSFORMATION,BLAKEMORE FOODSERVICE,11/04/2022,H59620220413CSOWDMWRD-1,435.89,CATERING - SCHOOLS-FOOD & DRINK SUPPLIES,CATERERS,GPC
WALSALL COUNCIL,http://opendatacommunities.org/id/metropolitan-district-council/walsall ,30/06/2022,RESOURCES AND TRANSFORMATION,BLAKEMORE FOODSERVICE,11/04/2022,H59620220413CSOWDMWRD-2,40.28,CATERING - SCHOOLS-FOOD & DRINK SUPPLIES,CATERERS,GPC
WALSALL COUNCIL,http://opendatacommunities.org/id/metropolitan-district-council/walsall ,30/06/2022,ECONOMY & ENVIRONMENT,AMZNMKTPLACE,11/04/2022,H59620220413EQRSVFZBA-1,22.74,EXHIBITION NO.3-MATERIALS,MISCELLANEOUS AND SPECIALTY RETAIL STORES,GPC
WALSALL COUNCIL,http://opendatacommunities.org/id/metropolitan-district-council/walsall ,30/06/2022,ECONOMY & ENVIRONMENT,EB *WORKING SUSTAINABL,11/04/2022,H59620220413GHGCOWLXE-1,2.00,NEW ART GALLERY - ADMIN-OTHER EXPENSES,OTHER BUSINESS SERVICES,GPC
WALSALL COUNCIL,http://opendatacommunities.org/id/metropolitan-district-council/walsall ,30/06/2022,RESOURCES AND TRANSFORMATION,BLAKEMORE FOODSERVICE,11/04/2022,H59620220413GKEIGHATD-1,-34.90,CATERING - MANAGEMENT-FOOD & DRINK SUPPLIES,CATERERS,GPC
WALSALL COUNCIL,http://opendatacommunities.org/id/metropolitan-district-council/walsall ,30/06/2022,CHILDRENS SERVICES,IKEA LTD 142 BIRMINGHAM M,11/04/2022,H59620220413HAGDKSBRE-1,35.00,"43A HILTON ROAD, WILLENHALL-PURCHASE OF FURNITURE & EQUIPM","EQUIPMENT, FURNITURE, AND HOME FURNISHINGS STORES ",GPC
WALSALL COUNCIL,http://opendatacommunities.org/id/metropolitan-district-council/walsall ,30/06/2022,RESOURCES AND TRANSFORMATION,BLAKEMORE FOODSERVICE,11/04/2022,H59620220413HMPVJNEEV-1,26.86,CATERING - SCHOOLS-FOOD & DRINK SUPPLIES,CATERERS,GPC
WALSALL COUNCIL,http://opendatacommunities.org/id/metropolitan-district-council/walsall ,30/06/2022,RESOURCES AND TRANSFORMATION,BLAKEMORE FOODSERVICE,11/04/2022,H59620220413HMPVJNEEV-2,889.17,CATERING - SCHOOLS-FOOD & DRINK SUPPLIES,CATERERS,GPC
WALSALL COUNCIL,http://opendatacommunities.org/id/metropolitan-district-council/walsall ,30/06/2022,RESOURCES AND TRANSFORMATION,CHICKEN JOES LTD,11/04/2022,H59620220413HUZVWYTNI-1,100.37,CATERING - SCHOOLS-FOOD & DRINK SUPPLIES,CATERERS,GPC
WALSALL COUNCIL,http://opendatacommunities.org/id/metropolitan-district-council/walsall ,30/06/2022,CHILDRENS SERVICES,PLANET APPLIANCE,11/04/2022,H59620220413IJWNKDGRL-1,515.00,CARE LEAVER ENTITLEMENTS-SETTING UP HOME GRANT,MISCELLANEOUS GENERAL MERCHANDISE,GPC
WALSALL COUNCIL,http://opendatacommunities.org/id/metropolitan-district-council/walsall ,30/06/2022,RESOURCES AND TRANSFORMATION,BLAKEMORE FOODSERVICE,11/04/2022,H59620220413JEFYMXBYT-1,163.69,CATERING - SCHOOLS-FOOD & DRINK SUPPLIES,CATERERS,GPC
WALSALL COUNCIL,http://opendatacommunities.org/id/metropolitan-district-council/walsall ,30/06/2022,CHILDRENS SERVICES,IKEA LTD 142 BIRMINGHAM M,11/04/2022,H59620220413JRDMCPBWS-1,315.00,"43A HILTON ROAD, WILLENHALL-PURCHASE OF FURNITURE & EQUIPM","EQUIPMENT, FURNITURE, AND HOME FURNISHINGS STORES ",GPC
WALSALL COUNCIL,http://opendatacommunities.org/id/metropolitan-district-council/walsall ,30/06/2022,RESOURCES AND TRANSFORMATION,CHICKEN JOES LTD,11/04/2022,H59620220413KICCHKYWX-1,86.04,CATERING - SCHOOLS-FOOD & DRINK SUPPLIES,CATERERS,GPC
WALSALL COUNCIL,http://opendatacommunities.org/id/metropolitan-district-council/walsall ,30/06/2022,CHILDRENS SERVICES,METRO WALSALL,11/04/2022,H59620220413KUOBDCDGI-1,38.00,WALSALL CRISIS SUPPORT SCHEME-BED & BREAKFAST PAYMENTS,"HOTELS, MOTELS, RESORTS",GPC
WALSALL COUNCIL,http://opendatacommunities.org/id/metropolitan-district-council/walsall ,30/06/2022,CHILDRENS SERVICES,ARCADE FLORISTS,11/04/2022,H59620220413LCGRPJAJX-1,25.00,WALSALL CRISIS SUPPORT SCHEME-FEES & LICENCES,FLORISTS,GPC
WALSALL COUNCIL,http://opendatacommunities.org/id/metropolitan-district-council/walsall ,30/06/2022,RESOURCES AND TRANSFORMATION,CHICKEN JOES LTD,11/04/2022,H59620220413LGMSDPKKI-1,84.88,CATERING - SCHOOLS-FOOD & DRINK SUPPLIES,CATERERS,GPC
WALSALL COUNCIL,http://opendatacommunities.org/id/metropolitan-district-council/walsall ,30/06/2022,RESOURCES AND TRANSFORMATION,BLAKEMORE FOODSERVICE,11/04/2022,H59620220413LSNQUACUI-1,526.14,CATERING - SCHOOLS-FOOD & DRINK SUPPLIES,CATERERS,GPC
WALSALL COUNCIL,http://opendatacommunities.org/id/metropolitan-district-council/walsall ,30/06/2022,CHILDRENS SERVICES,WALSALL CARPETS,11/04/2022,H59620220413LVDGICWFJ-1,100.00,"43A HILTON ROAD, WILLENHALL-PURCHASE OF FURNITURE & EQUIPM",FLOOR COVERING STORES,GPC
WALSALL COUNCIL,http://opendatacommunities.org/id/metropolitan-district-council/walsall ,30/06/2022,CHILDRENS SERVICES,AMZNMKTPLACE,11/04/2022,H59620220413MBPDGLCOY-1,23.00,EDGE OF CARE TEAM-OTHER EXPENSES,MISCELLANEOUS AND SPECIALTY RETAIL STORES,GPC
WALSALL COUNCIL,http://opendatacommunities.org/id/metropolitan-district-council/walsall ,30/06/2022,RESOURCES AND TRANSFORMATION,BLAKEMORE FOODSERVICE,11/04/2022,H59620220413NMMAMLHFL-1,562.39,CATERING - SCHOOLS-FOOD & DRINK SUPPLIES,CATERERS,GPC
WALSALL COUNCIL,http://opendatacommunities.org/id/metropolitan-district-council/walsall ,30/06/2022,RESOURCES AND TRANSFORMATION,BLAKEMORE FOODSERVICE,11/04/2022,H59620220413NMMAMLHFL-2,40.28,CATERING - SCHOOLS-FOOD & DRINK SUPPLIES,CATERERS,GPC
WALSALL COUNCIL,http://opendatacommunities.org/id/metropolitan-district-council/walsall ,30/06/2022,CHILDRENS SERVICES,AMZNMKTPLACE,11/04/2022,H59620220413NPLDPSMFG-1,43.98,SEN-STATIONERY & GENERAL OFFICE SU,MISCELLANEOUS AND SPECIALTY RETAIL STORES,GPC
WALSALL COUNCIL,http://opendatacommunities.org/id/metropolitan-district-council/walsall ,30/06/2022,CHILDRENS SERVICES,AMZNMKTPLACE,11/04/2022,H59620220413NPLDPSMFG-2,14.99,SEN-STATIONERY & GENERAL OFFICE SU,MISCELLANEOUS AND SPECIALTY RETAIL STORES,GPC
WALSALL COUNCIL,http://opendatacommunities.org/id/metropolitan-district-council/walsall ,30/06/2022,CHILDRENS SERVICES,AMZNMKTPLACE,11/04/2022,H59620220413NPLDPSMFG-3,43.96,SEN-STATIONERY & GENERAL OFFICE SU,MISCELLANEOUS AND SPECIALTY RETAIL STORES,GPC
WALSALL COUNCIL,http://opendatacommunities.org/id/metropolitan-district-council/walsall ,30/06/2022,RESOURCES AND TRANSFORMATION,BLAKEMORE FOODSERVICE,11/04/2022,H59620220413NQHHZGNLC-1,89.83,CATERING - SCHOOLS-FOOD & DRINK SUPPLIES,CATERERS,GPC
WALSALL COUNCIL,http://opendatacommunities.org/id/metropolitan-district-council/walsall ,30/06/2022,RESOURCES AND TRANSFORMATION,BLAKEMORE FOODSERVICE,11/04/2022,H59620220413NRFTWYEVZ-1,162.01,CATERING - SCHOOLS-FOOD & DRINK SUPPLIES,CATERERS,GPC
WALSALL COUNCIL,http://opendatacommunities.org/id/metropolitan-district-council/walsall ,30/06/2022,CHILDRENS SERVICES,IKEA LTD 142 BIRMINGHAM M,11/04/2022,H59620220413NTBUNWSKI-1,322.00,"43A HILTON ROAD, WILLENHALL-PURCHASE OF FURNITURE & EQUIPM","EQUIPMENT, FURNITURE, AND HOME FURNISHINGS STORES ",GPC
WALSALL COUNCIL,http://opendatacommunities.org/id/metropolitan-district-council/walsall ,30/06/2022,CHILDRENS SERVICES,ASDA GROCERIES ONLINE,11/04/2022,H59620220413ODMIQURHS-1,202.08,EDGE OF CARE TEAM-FOOD & DRINK SUPPLIES,GROCERY STORES AND SUPERMARKETS,GPC
WALSALL COUNCIL,http://opendatacommunities.org/id/metropolitan-district-council/walsall ,30/06/2022,CHILDRENS SERVICES,ASDA GROCERIES ONLINE,11/04/2022,H59620220413ODMIQURHS-2,136.38,EDGE OF CARE TEAM-FOOD & DRINK SUPPLIES,GROCERY STORES AND SUPERMARKETS,GPC
WALSALL COUNCIL,http://opendatacommunities.org/id/metropolitan-district-council/walsall ,30/06/2022,CHILDRENS SERVICES,ORDNANCE SURVEY LEISURE,11/04/2022,H59620220413OFFDJYJXR-1,79.98,GEOGRAPHY-MATERIALS,GOVERNMENT SERVICES,GPC
WALSALL COUNCIL,http://opendatacommunities.org/id/metropolitan-district-council/walsall ,30/06/2022,ECONOMY & ENVIRONMENT,WWW.BANNERUK.COM,11/04/2022,H59620220413OKYODFECD-1,106.33,LIBRARY DEVELOPMENT 2-STATIONERY & GENERAL OFFICE SU,"STATIONERY, OFFICE SUPPLIES AND WRITING PAPER",GPC
WALSALL COUNCIL,http://opendatacommunities.org/id/metropolitan-district-council/walsall ,30/06/2022,RESOURCES AND TRANSFORMATION,BLAKEMORE FOODSERVICE,11/04/2022,H59620220413OOFXQKQFK-1,714.31,CATERING - SCHOOLS-FOOD & DRINK SUPPLIES,CATERERS,GPC
WALSALL COUNCIL,http://opendatacommunities.org/id/metropolitan-district-council/walsall ,30/06/2022,RESOURCES AND TRANSFORMATION,BLAKEMORE FOODSERVICE,11/04/2022,H59620220413OQSVMBRRE-1,386.10,CATERING - SCHOOLS-FOOD & DRINK SUPPLIES,CATERERS,GPC
WALSALL COUNCIL,http://opendatacommunities.org/id/metropolitan-district-council/walsall ,30/06/2022,RESOURCES AND TRANSFORMATION,BLAKEMORE FOODSERVICE,11/04/2022,H59620220413OQSVMBRRE-2,20.64,CATERING - SCHOOLS-FOOD & DRINK SUPPLIES,CATERERS,GPC
WALSALL COUNCIL,http://opendatacommunities.org/id/metropolitan-district-council/walsall ,30/06/2022,RESOURCES AND TRANSFORMATION,CHICKEN JOES LTD,11/04/2022,H59620220413PFEJGKKMR-1,100.06,CATERING - SCHOOLS-FOOD & DRINK SUPPLIES,CATERERS,GPC
WALSALL COUNCIL,http://opendatacommunities.org/id/metropolitan-district-council/walsall ,30/06/2022,RESOURCES AND TRANSFORMATION,BLAKEMORE FOODSERVICE,11/04/2022,H59620220413PTMNGEOPJ-1,55.16,CATERING - SCHOOLS-FOOD & DRINK SUPPLIES,CATERERS,GPC
WALSALL COUNCIL,http://opendatacommunities.org/id/metropolitan-district-council/walsall ,30/06/2022,RESOURCES AND TRANSFORMATION,BLAKEMORE FOODSERVICE,11/04/2022,H59620220413QDMHKTNRD-1,96.50,CATERING - SCHOOLS-FOOD & DRINK SUPPLIES,CATERERS,GPC
WALSALL COUNCIL,http://opendatacommunities.org/id/metropolitan-district-council/walsall ,30/06/2022,CHILDRENS SERVICES,LOGANAIR,11/04/2022,H59620220413QNFDVLUXB-1,586.24,SAFEGUARDING & FAMILY SUPPORT-OTHER TRAVEL ALLOWANCES,AIRLINES AND AIR CARRIERS,GPC
WALSALL COUNCIL,http://opendatacommunities.org/id/metropolitan-district-council/walsall ,30/06/2022,RESOURCES AND TRANSFORMATION,BLAKEMORE FOODSERVICE,11/04/2022,H59620220413RDYYCTQFY-1,647.90,CATERING - SCHOOLS-FOOD & DRINK SUPPLIES,CATERERS,GPC
WALSALL COUNCIL,http://opendatacommunities.org/id/metropolitan-district-council/walsall ,30/06/2022,RESOURCES AND TRANSFORMATION,BLAKEMORE FOODSERVICE,11/04/2022,H59620220413RDYYCTQFY-2,23.74,CATERING - SCHOOLS-FOOD & DRINK SUPPLIES,CATERERS,GPC
WALSALL COUNCIL,http://opendatacommunities.org/id/metropolitan-district-council/walsall ,30/06/2022,RESOURCES AND TRANSFORMATION,BLAKEMORE FOODSERVICE,11/04/2022,H59620220413RLNKZJBHP-1,13.72,CATERING - SCHOOLS-FOOD & DRINK SUPPLIES,CATERERS,GPC
WALSALL COUNCIL,http://opendatacommunities.org/id/metropolitan-district-council/walsall ,30/06/2022,CHILDRENS SERVICES,ASDA GROCERIES ONLINE,11/04/2022,H59620220413RUEVQRCDO-1,-12.00,EDGE OF CARE TEAM-FOOD & DRINK SUPPLIES,GROCERY STORES AND SUPERMARKETS,GPC
WALSALL COUNCIL,http://opendatacommunities.org/id/metropolitan-district-council/walsall ,30/06/2022,RESOURCES AND TRANSFORMATION,BLAKEMORE FOODSERVICE,11/04/2022,H59620220413SBXWIBUJA-1,297.15,CATERING - SCHOOLS-FOOD & DRINK SUPPLIES,CATERERS,GPC
WALSALL COUNCIL,http://opendatacommunities.org/id/metropolitan-district-council/walsall ,30/06/2022,RESOURCES AND TRANSFORMATION,CHICKEN JOES LTD,11/04/2022,H59620220413SDFLOSHID-1,110.08,CATERING - SCHOOLS-FOOD & DRINK SUPPLIES,CATERERS,GPC
WALSALL COUNCIL,http://opendatacommunities.org/id/metropolitan-district-council/walsall ,30/06/2022,ADULT SOCIAL CARE,WWW.BANNERUK.COM,11/04/2022,H59620220413SQNDKJWSU-1,123.68,GOSCOTE-STATIONERY & GENERAL OFFICE SU,"STATIONERY, OFFICE SUPPLIES AND WRITING PAPER",GPC
WALSALL COUNCIL,http://opendatacommunities.org/id/metropolitan-district-council/walsall ,30/06/2022,RESOURCES AND TRANSFORMATION,BLAKEMORE FOODSERVICE,11/04/2022,H59620220413TBSTPPKWN-1,176.64,CATERING - SCHOOLS-FOOD & DRINK SUPPLIES,CATERERS,GPC
WALSALL COUNCIL,http://opendatacommunities.org/id/metropolitan-district-council/walsall ,30/06/2022,RESOURCES AND TRANSFORMATION,BLAKEMORE FOODSERVICE,11/04/2022,H59620220413TBSTPPKWN-2,"2,093.52",CATERING - SCHOOLS-FOOD & DRINK SUPPLIES,CATERERS,GPC
WALSALL COUNCIL,http://opendatacommunities.org/id/metropolitan-district-council/walsall ,30/06/2022,RESOURCES AND TRANSFORMATION,BLAKEMORE FOODSERVICE,11/04/2022,H59620220413TJECUESIH-1,292.24,CATERING - SCHOOLS-FOOD & DRINK SUPPLIES,CATERERS,GPC
WALSALL COUNCIL,http://opendatacommunities.org/id/metropolitan-district-council/walsall ,30/06/2022,RESOURCES AND TRANSFORMATION,BLAKEMORE FOODSERVICE,11/04/2022,H59620220413TJECUESIH-2,18.31,CATERING - SCHOOLS-FOOD & DRINK SUPPLIES,CATERERS,GPC
WALSALL COUNCIL,http://opendatacommunities.org/id/metropolitan-district-council/walsall ,30/06/2022,RESOURCES AND TRANSFORMATION,BLAKEMORE FOODSERVICE,11/04/2022,H59620220413TKVNBJAZJ-1,-89.83,CATERING - SCHOOLS-FOOD & DRINK SUPPLIES,CATERERS,GPC
WALSALL COUNCIL,http://opendatacommunities.org/id/metropolitan-district-council/walsall ,30/06/2022,RESOURCES AND TRANSFORMATION,AMZNMKTPLACE,11/04/2022,H59620220413TSYFXGQRI-1,804.00,RECHARGEABLE EQUIPMENT-COMPUTER EQUIPMENT,MISCELLANEOUS AND SPECIALTY RETAIL STORES,GPC
WALSALL COUNCIL,http://opendatacommunities.org/id/metropolitan-district-council/walsall ,30/06/2022,RESOURCES AND TRANSFORMATION,BLAKEMORE FOODSERVICE,11/04/2022,H59620220413TZJSBWSUN-1,310.98,CATERING - SCHOOLS-FOOD & DRINK SUPPLIES,CATERERS,GPC
WALSALL COUNCIL,http://opendatacommunities.org/id/metropolitan-district-council/walsall ,30/06/2022,RESOURCES AND TRANSFORMATION,BLAKEMORE FOODSERVICE,11/04/2022,H59620220413UOWMEPYRU-1,"2,039.75",CATERING - SCHOOLS-FOOD & DRINK SUPPLIES,CATERERS,GPC
WALSALL COUNCIL,http://opendatacommunities.org/id/metropolitan-district-council/walsall ,30/06/2022,RESOURCES AND TRANSFORMATION,BLAKEMORE FOODSERVICE,11/04/2022,H59620220413UOWMEPYRU-2,103.92,CATERING - SCHOOLS-FOOD & DRINK SUPPLIES,CATERERS,GPC
WALSALL COUNCIL,http://opendatacommunities.org/id/metropolitan-district-council/walsall ,30/06/2022,ECONOMY & ENVIRONMENT,SCREWFIX DIRECT,11/04/2022,H59620220413UWTGUSDVG-1,-11.97,NAG - TEMPORARY EXHIBITIONS-MATERIALS,LUMBER & BUILDING MATERIALS STORES,GPC
WALSALL COUNCIL,http://opendatacommunities.org/id/metropolitan-district-council/walsall ,30/06/2022,CHILDRENS SERVICES,TESCO STORES 6161,11/04/2022,H59620220413VJOXTDRRD-1,14.00,CARE LEAVER ENTITLEMENTS-SETTING UP HOME GRANT,GROCERY STORES AND SUPERMARKETS,GPC
WALSALL COUNCIL,http://opendatacommunities.org/id/metropolitan-district-council/walsall ,30/06/2022,RESOURCES AND TRANSFORMATION,BLAKEMORE FOODSERVICE,11/04/2022,H59620220413VLQXTJMCX-1,-29.18,CATERING - SCHOOLS-FOOD & DRINK SUPPLIES,CATERERS,GPC
WALSALL COUNCIL,http://opendatacommunities.org/id/metropolitan-district-council/walsall ,30/06/2022,RESOURCES AND TRANSFORMATION,BLAKEMORE FOODSERVICE,11/04/2022,H59620220413WYCXNHDNO-1,715.81,CATERING - SCHOOLS-FOOD & DRINK SUPPLIES,CATERERS,GPC
WALSALL COUNCIL,http://opendatacommunities.org/id/metropolitan-district-council/walsall ,30/06/2022,RESOURCES AND TRANSFORMATION,BLAKEMORE FOODSERVICE,11/04/2022,H59620220413WYCXNHDNO-2,60.84,CATERING - SCHOOLS-FOOD & DRINK SUPPLIES,CATERERS,GPC
WALSALL COUNCIL,http://opendatacommunities.org/id/metropolitan-district-council/walsall ,30/06/2022,RESOURCES AND TRANSFORMATION,BLAKEMORE FOODSERVICE,11/04/2022,H59620220413XWSHXRMLA-1,-27.51,CATERING - SCHOOLS-FOOD & DRINK SUPPLIES,CATERERS,GPC
WALSALL COUNCIL,http://opendatacommunities.org/id/metropolitan-district-council/walsall ,30/06/2022,RESOURCES AND TRANSFORMATION,BLAKEMORE FOODSERVICE,11/04/2022,H59620220413XYOXEAHKX-1,24.64,CATERING - SCHOOLS-FOOD & DRINK SUPPLIES,CATERERS,GPC
WALSALL COUNCIL,http://opendatacommunities.org/id/metropolitan-district-council/walsall ,30/06/2022,RESOURCES AND TRANSFORMATION,CHICKEN JOES LTD,11/04/2022,H59620220413ZVFFJITFA-1,101.60,CATERING - SCHOOLS-FOOD & DRINK SUPPLIES,CATERERS,GPC
WALSALL COUNCIL,http://opendatacommunities.org/id/metropolitan-district-council/walsall ,30/06/2022,CHILDRENS SERVICES,AMZNMKTPLACE,12/04/2022,H59620220414AJBBQQECN-1,18.99,SAFEGUARDING FAMILIES PROTECTI-CONFERENCE EXPENSES,MISCELLANEOUS AND SPECIALTY RETAIL STORES,GPC
WALSALL COUNCIL,http://opendatacommunities.org/id/metropolitan-district-council/walsall ,30/06/2022,CHILDRENS SERVICES,DISCOVERY CENTRE,12/04/2022,H59620220414APWGHXCVI-1,91.80,SAFEGUARDING & FAMILY SUPPORT-SECTION 34 (CONTACT),TOURIST ATTRACTIONS AND EXHIBITS,GPC
WALSALL COUNCIL,http://opendatacommunities.org/id/metropolitan-district-council/walsall ,30/06/2022,RESOURCES AND TRANSFORMATION,JOHAL DAIRIES LTD,12/04/2022,H59620220414BCCKMLBRA-1,8.72,CATERING - SCHOOLS-FOOD & DRINK SUPPLIES,OTHER NONDURABLE GOODS,GPC
WALSALL COUNCIL,http://opendatacommunities.org/id/metropolitan-district-council/walsall ,30/06/2022,RESOURCES AND TRANSFORMATION,JOHAL DAIRIES LTD,12/04/2022,H59620220414BSCMXSOWD-1,34.88,CATERING - SCHOOLS-FOOD & DRINK SUPPLIES,OTHER NONDURABLE GOODS,GPC
WALSALL COUNCIL,http://opendatacommunities.org/id/metropolitan-district-council/walsall ,30/06/2022,RESOURCES AND TRANSFORMATION,JOHAL DAIRIES LTD,12/04/2022,H59620220414CCBLDEFUC-1,16.35,CATERING - SCHOOLS-FOOD & DRINK SUPPLIES,OTHER NONDURABLE GOODS,GPC
WALSALL COUNCIL,http://opendatacommunities.org/id/metropolitan-district-council/walsall ,30/06/2022,CHILDRENS SERVICES,REMOVALS.CO.UK,12/04/2022,H59620220414CLCIRAVJH-1,141.60,FAMILY SAFEGUARDING BUILDING M-PROFESSIONAL SERVICES-PRIV CON,MOTOR FREIGHT CARRIERS,GPC
WALSALL COUNCIL,http://opendatacommunities.org/id/metropolitan-district-council/walsall ,30/06/2022,ECONOMY & ENVIRONMENT,AMZNMKTPLACE,12/04/2022,H59620220414CMUFCPTZT-1,24.48,OAK PARK ACTIVE LIVING CENTRE-MATERIALS,MISCELLANEOUS AND SPECIALTY RETAIL STORES,GPC
WALSALL COUNCIL,http://opendatacommunities.org/id/metropolitan-district-council/walsall ,30/06/2022,CHILDRENS SERVICES,REMOVALS.CO.UK,12/04/2022,H59620220414CQEPLBBXN-1,292.40,LOOKED AFTER CHILDRENS SOCIAL -TRANSPORTATION-PRIV CONTRACTOR,MOTOR FREIGHT CARRIERS,GPC
WALSALL COUNCIL,http://opendatacommunities.org/id/metropolitan-district-council/walsall ,30/06/2022,CHILDRENS SERVICES,DRAYTON MANOR,12/04/2022,H59620220414CZPTBEWQN-1,609.00,SCHOOL TRIPS/EDUCATIONAL VISIT-MATERIALS,TOURIST ATTRACTIONS AND EXHIBITS,GPC
WALSALL COUNCIL,http://opendatacommunities.org/id/metropolitan-district-council/walsall ,30/06/2022,RESOURCES AND TRANSFORMATION,JOHAL DAIRIES LTD,12/04/2022,H59620220414DONSEIJYH-1,3.15,CATERING - SCHOOLS-FOOD & DRINK SUPPLIES,OTHER NONDURABLE GOODS,GPC
WALSALL COUNCIL,http://opendatacommunities.org/id/metropolitan-district-council/walsall ,30/06/2022,CHILDRENS SERVICES,TRAINLINE.COM,12/04/2022,H59620220414EDBNCUXUW-1,71.04,SAFEGUARDING & FAMILY SUPPORT-OFFICERS & STAFF PUBLIC TRANSP,PASSENGER RAILWAYS,GPC
WALSALL COUNCIL,http://opendatacommunities.org/id/metropolitan-district-council/walsall ,30/06/2022,RESOURCES AND TRANSFORMATION,JOHAL DAIRIES LTD,12/04/2022,H59620220414EIXQKBORJ-1,3.27,CATERING - SCHOOLS-FOOD & DRINK SUPPLIES,OTHER NONDURABLE GOODS,GPC
WALSALL COUNCIL,http://opendatacommunities.org/id/metropolitan-district-council/walsall ,30/06/2022,RESOURCES AND TRANSFORMATION,JOHAL DAIRIES LTD,12/04/2022,H59620220414ERKBOODJE-1,3.15,CATERING - SCHOOLS-FOOD & DRINK SUPPLIES,OTHER NONDURABLE GOODS,GPC
WALSALL COUNCIL,http://opendatacommunities.org/id/metropolitan-district-council/walsall ,30/06/2022,ECONOMY & ENVIRONMENT,TRINITY MIRROR PUBLISH,12/04/2022,H59620220414EXWZLSDTW-1,346.75,DEVELOPMENT MANAGEMENT-SUBSCRIPTIONS,DIRECT MARKETING CONTINUITY SUBSCRIPTION MERCHANTS,GPC
WALSALL COUNCIL,http://opendatacommunities.org/id/metropolitan-district-council/walsall ,30/06/2022,RESOURCES AND TRANSFORMATION,JOHAL DAIRIES LTD,12/04/2022,H59620220414FEHRCQFGE-1,-2.18,CATERING - SCHOOLS-FOOD & DRINK SUPPLIES,OTHER NONDURABLE GOODS,GPC
WALSALL COUNCIL,http://opendatacommunities.org/id/metropolitan-district-council/walsall ,30/06/2022,CHILDRENS SERVICES,REMOVALS.CO.UK,12/04/2022,H59620220414FJCITPYBP-1,443.40,LOOKED AFTER CHILDRENS SOCIAL -RECYCLING & DISPOSAL OF WASTE ,MOTOR FREIGHT CARRIERS,GPC
WALSALL COUNCIL,http://opendatacommunities.org/id/metropolitan-district-council/walsall ,30/06/2022,ECONOMY & ENVIRONMENT,DVLA VEHICLE TAX,12/04/2022,H59620220414FNTYIICVY-1,107.50,FLEET-LICENCES FOR VEHICLES,TAX PAYMENTS,GPC
WALSALL COUNCIL,http://opendatacommunities.org/id/metropolitan-district-council/walsall ,30/06/2022,RESOURCES AND TRANSFORMATION,JOHAL DAIRIES LTD,12/04/2022,H59620220414FQWRDJBOD-1,8.72,CATERING - SCHOOLS-FOOD & DRINK SUPPLIES,OTHER NONDURABLE GOODS,GPC
WALSALL COUNCIL,http://opendatacommunities.org/id/metropolitan-district-council/walsall ,30/06/2022,RESOURCES AND TRANSFORMATION,JOHAL DAIRIES LTD,12/04/2022,H59620220414FWJBBCTDQ-1,61.04,CATERING - SCHOOLS-FOOD & DRINK SUPPLIES,OTHER NONDURABLE GOODS,GPC
WALSALL COUNCIL,http://opendatacommunities.org/id/metropolitan-district-council/walsall ,30/06/2022,CHILDRENS SERVICES,REMOVALS.CO.UK,12/04/2022,H59620220414GDYTLYSUL-1,432.40,LOOKED AFTER CHILDRENS SOCIAL -TRANSPORTATION-PRIV CONTRACTOR,MOTOR FREIGHT CARRIERS,GPC
WALSALL COUNCIL,http://opendatacommunities.org/id/metropolitan-district-council/walsall ,30/06/2022,ECONOMY & ENVIRONMENT,DVLA VEHICLE TAX,12/04/2022,H59620220414GNAHIHTQA-1,202.50,FLEET-LICENCES FOR VEHICLES,TAX PAYMENTS,GPC
WALSALL COUNCIL,http://opendatacommunities.org/id/metropolitan-district-council/walsall ,30/06/2022,CHILDRENS SERVICES,WEST MIDLAND CARD,12/04/2022,H59620220414GWICYPICE-1,3.00,TRANSITION AND LEAVING CARE SU-OFFICERS & STAFF PUBLIC TRANSP,BUS LINES,GPC
WALSALL COUNCIL,http://opendatacommunities.org/id/metropolitan-district-council/walsall ,30/06/2022,RESOURCES AND TRANSFORMATION,AMZNMKTPLACE,12/04/2022,H59620220414HGVBVPTFY-1,804.00,RECHARGEABLE EQUIPMENT-COMPUTER EQUIPMENT,MISCELLANEOUS AND SPECIALTY RETAIL STORES,GPC
WALSALL COUNCIL,http://opendatacommunities.org/id/metropolitan-district-council/walsall ,30/06/2022,RESOURCES AND TRANSFORMATION,ASDA GROCERIES ONLINE,12/04/2022,H59620220414HVJCUUZFJ-1,50.00,RES-WALSALL WORKS-FOOD & DRINK SUPPLIES,GROCERY STORES AND SUPERMARKETS,GPC
WALSALL COUNCIL,http://opendatacommunities.org/id/metropolitan-district-council/walsall ,30/06/2022,RESOURCES AND TRANSFORMATION,JOHAL DAIRIES LTD,12/04/2022,H59620220414HZQLBXGQK-1,18.53,CATERING - SCHOOLS-FOOD & DRINK SUPPLIES,OTHER NONDURABLE GOODS,GPC
WALSALL COUNCIL,http://opendatacommunities.org/id/metropolitan-district-council/walsall ,30/06/2022,RESOURCES AND TRANSFORMATION,REMOVALS.CO.UK,12/04/2022,H59620220414IYFDCNHQE-1,438.00,CLEANING - MANAGEMENT-TRANSPORTATION-PRIV CONTRACTOR,MOTOR FREIGHT CARRIERS,GPC
WALSALL COUNCIL,http://opendatacommunities.org/id/metropolitan-district-council/walsall ,30/06/2022,CHILDRENS SERVICES,AMZNMKTPLACE,12/04/2022,H59620220414JQJPDQDMC-1,24.99,SAFEGUARDING FAMILIES PROTECTI-CONFERENCE EXPENSES,MISCELLANEOUS AND SPECIALTY RETAIL STORES,GPC
WALSALL COUNCIL,http://opendatacommunities.org/id/metropolitan-district-council/walsall ,30/06/2022,RESOURCES AND TRANSFORMATION,JOHAL DAIRIES LTD,12/04/2022,H59620220414KAOVUVBCC-1,23.98,CATERING - SCHOOLS-FOOD & DRINK SUPPLIES,OTHER NONDURABLE GOODS,GPC
WALSALL COUNCIL,http://opendatacommunities.org/id/metropolitan-district-council/walsall ,30/06/2022,RESOURCES AND TRANSFORMATION,JOHAL DAIRIES LTD,12/04/2022,H59620220414KMTBZHLLH-1,43.20,CATERING - SCHOOLS-FOOD & DRINK SUPPLIES,OTHER NONDURABLE GOODS,GPC
WALSALL COUNCIL,http://opendatacommunities.org/id/metropolitan-district-council/walsall ,30/06/2022,CHILDRENS SERVICES,HOTEL AT BOOKING.COM,12/04/2022,H59620220414KQBGXVYTR-1,389.30,NEW LEAF PUPIL REFERAL UNIT-EXTERNAL TRAINING,"HOTELS, MOTELS, RESORTS",GPC
WALSALL COUNCIL,http://opendatacommunities.org/id/metropolitan-district-council/walsall ,30/06/2022,CHILDRENS SERVICES,HOLLYWOOD BOWL,12/04/2022,H59620220414LCHNLYXUF-1,39.50,SAFEGUARDING & FAMILY SUPPORT-SECTION 1/17CHILD CARE ACT 198,"CLUBS COUNTRY CLUBS, MEMBERSHIP",GPC
WALSALL COUNCIL,http://opendatacommunities.org/id/metropolitan-district-council/walsall ,30/06/2022,RESOURCES AND TRANSFORMATION,JOHAL DAIRIES LTD,12/04/2022,H59620220414LCVSTNFER-1,76.95,CATERING - SCHOOLS-FOOD & DRINK SUPPLIES,OTHER NONDURABLE GOODS,GPC
WALSALL COUNCIL,http://opendatacommunities.org/id/metropolitan-district-council/walsall ,30/06/2022,RESOURCES AND TRANSFORMATION,WESTMIDLANDSCOM,12/04/2022,H59620220414LJWLHNXAF-1,3.15,YEI ESF FUNDING-OFFICERS & STAFF PUBLIC TRANSP,PASSENGER RAILWAYS,GPC
WALSALL COUNCIL,http://opendatacommunities.org/id/metropolitan-district-council/walsall ,30/06/2022,RESOURCES AND TRANSFORMATION,WESTMIDLANDSCOM,12/04/2022,H59620220414LJWLHNXAF-2,3.15,YEI (IMPACT) PROGRAMME-OFFICERS & STAFF PUBLIC TRANSP,PASSENGER RAILWAYS,GPC
WALSALL COUNCIL,http://opendatacommunities.org/id/metropolitan-district-council/walsall ,30/06/2022,CHILDRENS SERVICES,MCDONALDS,12/04/2022,H59620220414LWJIJTPLE-1,5.95,EDGE OF CARE TEAM-OFFICERS SUBSISTENCE EXPENSES,QUICK PAYMENT SERVICE-FAST-FOOD RESTAURANTS,GPC
WALSALL COUNCIL,http://opendatacommunities.org/id/metropolitan-district-council/walsall ,30/06/2022,RESOURCES AND TRANSFORMATION,JOHAL DAIRIES LTD,12/04/2022,H59620220414MDQSDOROU-1,19.68,CATERING - SCHOOLS-FOOD & DRINK SUPPLIES,OTHER NONDURABLE GOODS,GPC
WALSALL COUNCIL,http://opendatacommunities.org/id/metropolitan-district-council/walsall ,30/06/2022,ECONOMY & ENVIRONMENT,DVLA VEHICLE TAX,12/04/2022,H59620220414MHMKKRQVH-1,107.50,FLEET-LICENCES FOR VEHICLES,TAX PAYMENTS,GPC
WALSALL COUNCIL,http://opendatacommunities.org/id/metropolitan-district-council/walsall ,30/06/2022,RESOURCES AND TRANSFORMATION,JOHAL DAIRIES LTD,12/04/2022,H59620220414MMJBLOJUP-1,22.69,CATERING - SCHOOLS-FOOD & DRINK SUPPLIES,OTHER NONDURABLE GOODS,GPC
WALSALL COUNCIL,http://opendatacommunities.org/id/metropolitan-district-council/walsall ,30/06/2022,CHILDRENS SERVICES,REMOVALS.CO.UK,12/04/2022,H59620220414NLXTUPCFD-1,463.58,FAMILY SAFEGUARDING BUILDING M-TRANSPORTATION-PRIV CONTRACTOR,MOTOR FREIGHT CARRIERS,GPC
WALSALL COUNCIL,http://opendatacommunities.org/id/metropolitan-district-council/walsall ,30/06/2022,ECONOMY & ENVIRONMENT,DVLA VEHICLE TAX,12/04/2022,H59620220414OJKAUSNQN-1,292.50,FLEET-LICENCES FOR VEHICLES,TAX PAYMENTS,GPC
WALSALL COUNCIL,http://opendatacommunities.org/id/metropolitan-district-council/walsall ,30/06/2022,RESOURCES AND TRANSFORMATION,MBL SEMINARS,12/04/2022,H59620220414OWQGTXUFB-1,810.00,SOCIAL CARE TEAM-EXTERNAL TRAINING,OTHER SCHOOLS AND EDUCATIONAL SERVICES,GPC
WALSALL COUNCIL,http://opendatacommunities.org/id/metropolitan-district-council/walsall ,30/06/2022,CHILDRENS SERVICES,ARGOS LTD,12/04/2022,H59620220414PEMJJWPQY-1,185.00,SAFEGUARDING & FAMILY SUPPORT-SECTION 1/17CHILD CARE ACT 198,DISCOUNT STORES,GPC
WALSALL COUNCIL,http://opendatacommunities.org/id/metropolitan-district-council/walsall ,30/06/2022,RESOURCES AND TRANSFORMATION,JOHAL DAIRIES LTD,12/04/2022,H59620220414PJDQMHRRT-1,32.70,CATERING - SCHOOLS-FOOD & DRINK SUPPLIES,OTHER NONDURABLE GOODS,GPC
WALSALL COUNCIL,http://opendatacommunities.org/id/metropolitan-district-council/walsall ,30/06/2022,CHILDRENS SERVICES,REMOVALS.CO.UK,12/04/2022,H59620220414PTQEDVMEE-1,187.20,LOOKED AFTER CHILDRENS SOCIAL -TRANSPORTATION-PRIV CONTRACTOR,MOTOR FREIGHT CARRIERS,GPC
WALSALL COUNCIL,http://opendatacommunities.org/id/metropolitan-district-council/walsall ,30/06/2022,CHILDRENS SERVICES,POST OFFICE COUNTER,12/04/2022,H59620220414PTVALSFUU-1,45.28,LOOKED AFTER CHILDRENS SOCIAL -POSTAGES & COURIER SERVICES,POSTAL SERVICES - GOVERNMENT ONLY,GPC
WALSALL COUNCIL,http://opendatacommunities.org/id/metropolitan-district-council/walsall ,30/06/2022,RESOURCES AND TRANSFORMATION,JOHAL DAIRIES LTD,12/04/2022,H59620220414PTXRFOVFN-1,16.35,CATERING - SCHOOLS-FOOD & DRINK SUPPLIES,OTHER NONDURABLE GOODS,GPC
WALSALL COUNCIL,http://opendatacommunities.org/id/metropolitan-district-council/walsall ,30/06/2022,RESOURCES AND TRANSFORMATION,WALSALL COUNCIL,12/04/2022,H59620220414QBVJVIYPU-1,41.00,SOCIAL CARE TEAM-FEES & LICENCES,GOVERNMENT SERVICES,GPC
WALSALL COUNCIL,http://opendatacommunities.org/id/metropolitan-district-council/walsall ,30/06/2022,RESOURCES AND TRANSFORMATION,JOHAL DAIRIES LTD,12/04/2022,H59620220414QGCUROPWF-1,14.65,CATERING - SCHOOLS-FOOD & DRINK SUPPLIES,OTHER NONDURABLE GOODS,GPC
WALSALL COUNCIL,http://opendatacommunities.org/id/metropolitan-district-council/walsall ,30/06/2022,RESOURCES AND TRANSFORMATION,JOHAL DAIRIES LTD,12/04/2022,H59620220414QURFGFNYW-1,63.18,CATERING - SCHOOLS-FOOD & DRINK SUPPLIES,OTHER NONDURABLE GOODS,GPC
WALSALL COUNCIL,http://opendatacommunities.org/id/metropolitan-district-council/walsall ,30/06/2022,ECONOMY & ENVIRONMENT,CARTRIDGE SAVE,12/04/2022,H59620220414QYQTYDNHO-1,375.38,RESOURCE MANAGEMENT-STATIONERY & GENERAL OFFICE SU,"STATIONERY, OFFICE SUPPLIES AND WRITING PAPER",GPC
WALSALL COUNCIL,http://opendatacommunities.org/id/metropolitan-district-council/walsall ,30/06/2022,RESOURCES AND TRANSFORMATION,JOHAL DAIRIES LTD,12/04/2022,H59620220414RGLHUEMTM-1,36.35,CATERING - SCHOOLS-FOOD & DRINK SUPPLIES,OTHER NONDURABLE GOODS,GPC
WALSALL COUNCIL,http://opendatacommunities.org/id/metropolitan-district-council/walsall ,30/06/2022,CHILDRENS SERVICES,W M MORRISONS.COM,12/04/2022,H59620220414RMBHTUUKW-1,21.72,BLUEBELLS-FOOD & DRINK SUPPLIES,GROCERY STORES AND SUPERMARKETS,GPC
WALSALL COUNCIL,http://opendatacommunities.org/id/metropolitan-district-council/walsall ,30/06/2022,CHILDRENS SERVICES,W M MORRISONS.COM,12/04/2022,H59620220414RMBHTUUKW-2,73.21,BLUEBELLS-FOOD & DRINK SUPPLIES,GROCERY STORES AND SUPERMARKETS,GPC
WALSALL COUNCIL,http://opendatacommunities.org/id/metropolitan-district-council/walsall ,30/06/2022,ECONOMY & ENVIRONMENT,AMZNMKTPLACE,12/04/2022,H59620220414RNMWHUCLM-1,2.26,LIBRARY OPERATIONS CENTRAL-STATIONERY & GENERAL OFFICE SU,MISCELLANEOUS AND SPECIALTY RETAIL STORES,GPC
WALSALL COUNCIL,http://opendatacommunities.org/id/metropolitan-district-council/walsall ,30/06/2022,ECONOMY & ENVIRONMENT,AMZNMKTPLACE,12/04/2022,H59620220414SXHXVURRX-1,22.27,LEATHER MUSEUM-MATERIALS,MISCELLANEOUS AND SPECIALTY RETAIL STORES,GPC
WALSALL COUNCIL,http://opendatacommunities.org/id/metropolitan-district-council/walsall ,30/06/2022,CHILDRENS SERVICES,ASDA SUPERSTORE,12/04/2022,H59620220414TEWMGHSKE-1,54.00,"43A HILTON ROAD, WILLENHALL-FOOD & DRINK SUPPLIES",GROCERY STORES AND SUPERMARKETS,GPC
WALSALL COUNCIL,http://opendatacommunities.org/id/metropolitan-district-council/walsall ,30/06/2022,CHILDRENS SERVICES,ASDA SUPERSTORE,12/04/2022,H59620220414TEWMGHSKE-2,88.96,"43A HILTON ROAD, WILLENHALL-FOOD & DRINK SUPPLIES",GROCERY STORES AND SUPERMARKETS,GPC
WALSALL COUNCIL,http://opendatacommunities.org/id/metropolitan-district-council/walsall ,30/06/2022,CHILDRENS SERVICES,FARMFOODS 614,12/04/2022,H59620220414TNUOZAREX-1,7.36,EDGE OF CARE TEAM-FOOD & DRINK SUPPLIES,GROCERY STORES AND SUPERMARKETS,GPC
WALSALL COUNCIL,http://opendatacommunities.org/id/metropolitan-district-council/walsall ,30/06/2022,CHILDRENS SERVICES,MCDONALDS 682,12/04/2022,H59620220414TXINFUOCW-1,8.57,CARE LEAVER ENTITLEMENTS-CARE LEAVERS MISC EXPENSES,"EATING PLACES, RESTAURANTS",GPC
WALSALL COUNCIL,http://opendatacommunities.org/id/metropolitan-district-council/walsall ,30/06/2022,ECONOMY & ENVIRONMENT,AMZNMKTPLACE,12/04/2022,H59620220414UBISHJEHP-1,11.99,LIBRARY OPERATIONS CENTRAL-STATIONERY & GENERAL OFFICE SU,MISCELLANEOUS AND SPECIALTY RETAIL STORES,GPC
WALSALL COUNCIL,http://opendatacommunities.org/id/metropolitan-district-council/walsall ,30/06/2022,CHILDRENS SERVICES,AMZNMKTPLACE,12/04/2022,H59620220414UMNIHWCOL-1,14.99,SEN-STATIONERY & GENERAL OFFICE SU,MISCELLANEOUS AND SPECIALTY RETAIL STORES,GPC
WALSALL COUNCIL,http://opendatacommunities.org/id/metropolitan-district-council/walsall ,30/06/2022,ECONOMY & ENVIRONMENT,AMZNMKTPLACE,12/04/2022,H59620220414UPLCNIWIU-1,38.67,LIBRARY OPERATIONS CENTRAL-STATIONERY & GENERAL OFFICE SU,MISCELLANEOUS AND SPECIALTY RETAIL STORES,GPC
WALSALL COUNCIL,http://opendatacommunities.org/id/metropolitan-district-council/walsall ,30/06/2022,RESOURCES AND TRANSFORMATION,JOHAL DAIRIES LTD,12/04/2022,H59620220414UUXNQUNAL-1,13.08,CATERING - SCHOOLS-FOOD & DRINK SUPPLIES,OTHER NONDURABLE GOODS,GPC
WALSALL COUNCIL,http://opendatacommunities.org/id/metropolitan-district-council/walsall ,30/06/2022,RESOURCES AND TRANSFORMATION,JOHAL DAIRIES LTD,12/04/2022,H59620220414UWJSQKTVH-1,17.44,CATERING - SCHOOLS-FOOD & DRINK SUPPLIES,OTHER NONDURABLE GOODS,GPC
WALSALL COUNCIL,http://opendatacommunities.org/id/metropolitan-district-council/walsall ,30/06/2022,CHILDRENS SERVICES,DRAYTON MANOR,12/04/2022,H59620220414VJSBOUOHR-1,35.50,SAFEGUARDING & FAMILY SUPPORT-SECTION 34 (CONTACT),TOURIST ATTRACTIONS AND EXHIBITS,GPC
WALSALL COUNCIL,http://opendatacommunities.org/id/metropolitan-district-council/walsall ,30/06/2022,RESOURCES AND TRANSFORMATION,JOHAL DAIRIES LTD,12/04/2022,H59620220414WGEDWWNKO-1,10.90,CATERING - SCHOOLS-FOOD & DRINK SUPPLIES,OTHER NONDURABLE GOODS,GPC
WALSALL COUNCIL,http://opendatacommunities.org/id/metropolitan-district-council/walsall ,30/06/2022,CHILDRENS SERVICES,POST OFFICE COUNTER,12/04/2022,H59620220414WUSZZVVHB-1,204.00,CHILDREN'S COMMISSIONING-POSTAGES & COURIER SERVICES,POSTAL SERVICES - GOVERNMENT ONLY,GPC
WALSALL COUNCIL,http://opendatacommunities.org/id/metropolitan-district-council/walsall ,30/06/2022,RESOURCES AND TRANSFORMATION,JOHAL DAIRIES LTD,12/04/2022,H59620220414XDNKIZYBV-1,7.63,CATERING - SCHOOLS-FOOD & DRINK SUPPLIES,OTHER NONDURABLE GOODS,GPC
WALSALL COUNCIL,http://opendatacommunities.org/id/metropolitan-district-council/walsall ,30/06/2022,CHILDRENS SERVICES,REMOVALS.CO.UK,12/04/2022,H59620220414XFIEJCDUN-1,66.00,LOCALITY FAMILY SUPPORT-WEST-TRANSPORTATION-PRIV CONTRACTOR,MOTOR FREIGHT CARRIERS,GPC
WALSALL COUNCIL,http://opendatacommunities.org/id/metropolitan-district-council/walsall ,30/06/2022,CHILDRENS SERVICES,REMOVALS.CO.UK,12/04/2022,H59620220414XKLKCAOHB-1,256.80,LOOKED AFTER CHILDRENS SOCIAL -PROFESSIONAL FEES & SERVICES,MOTOR FREIGHT CARRIERS,GPC
WALSALL COUNCIL,http://opendatacommunities.org/id/metropolitan-district-council/walsall ,30/06/2022,ECONOMY & ENVIRONMENT,AMZNMKTPLACE,12/04/2022,H59620220414XNAHIROUF-1,10.10,LIBRARY OPERATIONS CENTRAL-STATIONERY & GENERAL OFFICE SU,MISCELLANEOUS AND SPECIALTY RETAIL STORES,GPC
WALSALL COUNCIL,http://opendatacommunities.org/id/metropolitan-district-council/walsall ,30/06/2022,ECONOMY & ENVIRONMENT,DVLA VEHICLE TAX,12/04/2022,H59620220414XOSJLOSYR-1,292.50,FLEET-LICENCES FOR VEHICLES,TAX PAYMENTS,GPC
WALSALL COUNCIL,http://opendatacommunities.org/id/metropolitan-district-council/walsall ,30/06/2022,ECONOMY & ENVIRONMENT,TAYLOR NEWS,12/04/2022,H59620220414XQAHPAPCQ-1,15.70,STREETLY LIBRARY-NEWSPAPERS/PERIODICALS/MAGAZIN,GROCERY STORES AND SUPERMARKETS,GPC
WALSALL COUNCIL,http://opendatacommunities.org/id/metropolitan-district-council/walsall ,30/06/2022,ECONOMY & ENVIRONMENT,MAKRO SELF SERVICE HALESO,12/04/2022,H59620220414XVMYTJQHK-1,75.81,LEATHER MUSEUM-FOOD & DRINK SUPPLIES,WHOLESALE CLUBS,GPC
WALSALL COUNCIL,http://opendatacommunities.org/id/metropolitan-district-council/walsall ,30/06/2022,ECONOMY & ENVIRONMENT,MAKRO SELF SERVICE HALESO,12/04/2022,H59620220414XVMYTJQHK-2,74.80,LEATHER MUSEUM-FOOD & DRINK SUPPLIES,WHOLESALE CLUBS,GPC
WALSALL COUNCIL,http://opendatacommunities.org/id/metropolitan-district-council/walsall ,30/06/2022,ECONOMY & ENVIRONMENT,W M MORRISON STORE,12/04/2022,H59620220414XVTHOFPHH-1,4.00,ALDRIDGE LIBRARY-FOOD & DRINK SUPPLIES,GROCERY STORES AND SUPERMARKETS,GPC
WALSALL COUNCIL,http://opendatacommunities.org/id/metropolitan-district-council/walsall ,30/06/2022,ECONOMY & ENVIRONMENT,DVLA VEHICLE TAX,12/04/2022,H59620220414XZTTSMKLT-1,292.50,FLEET-LICENCES FOR VEHICLES,TAX PAYMENTS,GPC
WALSALL COUNCIL,http://opendatacommunities.org/id/metropolitan-district-council/walsall ,30/06/2022,ECONOMY & ENVIRONMENT,CARTRIDGE SAVE,12/04/2022,H59620220414YDIUHCZGN-1,366.96,RESOURCE MANAGEMENT-STATIONERY & GENERAL OFFICE SU,"STATIONERY, OFFICE SUPPLIES AND WRITING PAPER",GPC
WALSALL COUNCIL,http://opendatacommunities.org/id/metropolitan-district-council/walsall ,30/06/2022,ECONOMY & ENVIRONMENT,W M MORRISON STORE,12/04/2022,H59620220414ZPNYIXTQD-1,7.00,ALDRIDGE LIBRARY-FOOD & DRINK SUPPLIES,GROCERY STORES AND SUPERMARKETS,GPC
WALSALL COUNCIL,http://opendatacommunities.org/id/metropolitan-district-council/walsall ,30/06/2022,CHILDRENS SERVICES,247CARS,12/04/2022,H59620220415DHPPZXYHJ-1,8.90,FAMILY SAFEGUARDING NORTH LOCA-TAXI FARES,TAXI SERVICES,GPC
WALSALL COUNCIL,http://opendatacommunities.org/id/metropolitan-district-council/walsall ,30/06/2022,CHILDRENS SERVICES,247CARS,12/04/2022,H59620220415TQNBASXUJ-1,9.00,SAFEGUARDING & FAMILY SUPPORT-TAXI FARES,TAXI SERVICES,GPC
WALSALL COUNCIL,http://opendatacommunities.org/id/metropolitan-district-council/walsall ,30/06/2022,CHILDRENS SERVICES,247CARS,12/04/2022,H59620220415VVKNMUQXT-1,10.30,SAFEGUARDING & FAMILY SUPPORT-TAXI FARES,TAXI SERVICES,GPC
WALSALL COUNCIL,http://opendatacommunities.org/id/metropolitan-district-council/walsall ,30/06/2022,RESOURCES AND TRANSFORMATION,WWW.SCC.COM,12/04/2022,H59620220426TRAYLVSUG-1,670.82,RECHARGEABLE EQUIPMENT-COMPUTER EQUIPMENT,"COMPUTERS, COMPUTER PERIPHERAL EQUIPMENT, SOFTWARE",GPC
WALSALL COUNCIL,http://opendatacommunities.org/id/metropolitan-district-council/walsall ,30/06/2022,CHILDRENS SERVICES,NETWORK WASTE,13/04/2022,H59620220415ABWAFZBQN-1,234.00,SAFEGUARDING & FAMILY SUPPORT-PAYMENT TO CONTRACTORS,"GENERAL CONTRACTORS, RESIDENTIAL AND COMMERCIAL",GPC
WALSALL COUNCIL,http://opendatacommunities.org/id/metropolitan-district-council/walsall ,30/06/2022,ECONOMY & ENVIRONMENT,WWW.BANNERUK.COM,13/04/2022,H59620220415BQEHYCNLP-1,22.03,LIBRARY OPERATIONS CENTRAL-STATIONERY & GENERAL OFFICE SU,"STATIONERY, OFFICE SUPPLIES AND WRITING PAPER",GPC
WALSALL COUNCIL,http://opendatacommunities.org/id/metropolitan-district-council/walsall ,30/06/2022,ADULT SOCIAL CARE,AMZNMKTPLACE,13/04/2022,H59620220415BWTSBTFXE-1,20.98,"STRATEGY, COMMISSIONING & DELI-COMPUTER EQUIPMENT",MISCELLANEOUS AND SPECIALTY RETAIL STORES,GPC
WALSALL COUNCIL,http://opendatacommunities.org/id/metropolitan-district-council/walsall ,30/06/2022,ECONOMY & ENVIRONMENT,SUMUP *LOCKS & FITTINGS,13/04/2022,H59620220415CDIYFPLWB-1,72.00,WALSALL ARENA AND ARTS CENTRE-STATIONERY & GENERAL OFFICE SU,MISCELLANEOUS AND SPECIALTY RETAIL STORES,GPC
WALSALL COUNCIL,http://opendatacommunities.org/id/metropolitan-district-council/walsall ,30/06/2022,ECONOMY & ENVIRONMENT,MIDLANDNEWS.COM,13/04/2022,H59620220415CKHATQTWO-1,110.40,DEVELOPMENT MANAGEMENT-SUBSCRIPTIONS,NEWS DEALERS AND NEWSSTANDS,GPC
WALSALL COUNCIL,http://opendatacommunities.org/id/metropolitan-district-council/walsall ,30/06/2022,ECONOMY & ENVIRONMENT,AMZNMKTPLACE,13/04/2022,H59620220415EFPMYVXLS-1,344.85,RESOURCE MANAGEMENT-STATIONERY & GENERAL OFFICE SU,MISCELLANEOUS AND SPECIALTY RETAIL STORES,GPC
WALSALL COUNCIL,http://opendatacommunities.org/id/metropolitan-district-council/walsall ,30/06/2022,CHILDRENS SERVICES,STARBUCKS,13/04/2022,H59620220415FGEQCFIML-1,3.50,CARE LEAVER ENTITLEMENTS-CARE LEAVERS MISC EXPENSES,QUICK PAYMENT SERVICE-FAST-FOOD RESTAURANTS,GPC
WALSALL COUNCIL,http://opendatacommunities.org/id/metropolitan-district-council/walsall ,30/06/2022,CHILDRENS SERVICES,STARBUCKS,13/04/2022,H59620220415FGEQCFIML-2,4.35,CARE LEAVER ENTITLEMENTS-CARE LEAVERS MISC EXPENSES,QUICK PAYMENT SERVICE-FAST-FOOD RESTAURANTS,GPC
WALSALL COUNCIL,http://opendatacommunities.org/id/metropolitan-district-council/walsall ,30/06/2022,CHILDRENS SERVICES,AMZNMKTPLACE,13/04/2022,H59620220415FXCEDXXIT-1,15.45,ADMINISTRATIVE SUPPLIES-STATIONERY & GENERAL OFFICE SU,MISCELLANEOUS AND SPECIALTY RETAIL STORES,GPC
WALSALL COUNCIL,http://opendatacommunities.org/id/metropolitan-district-council/walsall ,30/06/2022,CHILDRENS SERVICES,AMZNMKTPLACE,13/04/2022,H59620220415FXCEDXXIT-2,6.10,ADMINISTRATIVE SUPPLIES-STATIONERY & GENERAL OFFICE SU,MISCELLANEOUS AND SPECIALTY RETAIL STORES,GPC
WALSALL COUNCIL,http://opendatacommunities.org/id/metropolitan-district-council/walsall ,30/06/2022,CHILDRENS SERVICES,AMZNMKTPLACE,13/04/2022,H59620220415GQHEYVYCB-1,7.09,ADMINISTRATIVE SUPPLIES-STATIONERY & GENERAL OFFICE SU,MISCELLANEOUS AND SPECIALTY RETAIL STORES,GPC
WALSALL COUNCIL,http://opendatacommunities.org/id/metropolitan-district-council/walsall ,30/06/2022,CHILDRENS SERVICES,HM PASSPORT OFFICE,13/04/2022,H59620220415HRGIVPLTS-1,85.00,LOOKED AFTER CHILDRENS SOCIAL -FEES & LICENCES,GOVERNMENT SERVICES,GPC
WALSALL COUNCIL,http://opendatacommunities.org/id/metropolitan-district-council/walsall ,30/06/2022,RESOURCES AND TRANSFORMATION,BLAKEMORE FOODSERVICE,13/04/2022,H59620220415IJDIWDMIH-1,34.90,CATERING - SCHOOLS-FOOD & DRINK SUPPLIES,CATERERS,GPC
WALSALL COUNCIL,http://opendatacommunities.org/id/metropolitan-district-council/walsall ,30/06/2022,CHILDRENS SERVICES,HM PASSPORT OFFICE,13/04/2022,H59620220415IJYSJCSZG-1,58.50,LOOKED AFTER CHILDRENS SOCIAL -FEES & LICENCES,GOVERNMENT SERVICES,GPC
WALSALL COUNCIL,http://opendatacommunities.org/id/metropolitan-district-council/walsall ,30/06/2022,CHILDRENS SERVICES,ADOBE ACROPRO SUBS,13/04/2022,H59620220415IORMTDMRY-1,17.18,ADMINISTRATIVE SUPPLIES-STATIONERY & GENERAL OFFICE SU,COMPUTER SOFTWARE STORES,GPC
WALSALL COUNCIL,http://opendatacommunities.org/id/metropolitan-district-council/walsall ,30/06/2022,ADULT SOCIAL CARE,AMZNMKTPLACE,13/04/2022,H59620220415JSRERAKMJ-1,20.98,"STRATEGY, COMMISSIONING & DELI-COMPUTER EQUIPMENT",MISCELLANEOUS AND SPECIALTY RETAIL STORES,GPC
WALSALL COUNCIL,http://opendatacommunities.org/id/metropolitan-district-council/walsall ,30/06/2022,CHILDRENS SERVICES,COMBINED COURT,13/04/2022,H59620220415JVURDFUIS-1,232.00,FAMILY SAFEGUARDING EAST LOCAL-SUPPORT UNDER SECTION 23 OF TH,FINES,GPC
WALSALL COUNCIL,http://opendatacommunities.org/id/metropolitan-district-council/walsall ,30/06/2022,CHILDRENS SERVICES,WORCESTERSHIRE COU,13/04/2022,H59620220415KPDZPJHZC-1,57.00,FAMILY SAFEGUARDING NORTH LOCA-SECTION 1/17CHILD CARE ACT 198,GOVERNMENT SERVICES,GPC
WALSALL COUNCIL,http://opendatacommunities.org/id/metropolitan-district-council/walsall ,30/06/2022,CHILDRENS SERVICES,TESCO STORES 4758,13/04/2022,H59620220415LDSXAMQCE-1,36.00,YOUNG PERSONS HOMELESS SERVICE-FOOD & DRINK SUPPLIES,GROCERY STORES AND SUPERMARKETS,GPC
WALSALL COUNCIL,http://opendatacommunities.org/id/metropolitan-district-council/walsall ,30/06/2022,CHILDRENS SERVICES,POUNDLAND,13/04/2022,H59620220415LSPUOSDWA-1,34.65,EARLY HELP HUB-FOOD & DRINK SUPPLIES,DISCOUNT STORES,GPC
WALSALL COUNCIL,http://opendatacommunities.org/id/metropolitan-district-council/walsall ,30/06/2022,CHILDRENS SERVICES,AMZNMKTPLACE,13/04/2022,H59620220415NHDKRWOBQ-1,127.99,SAFEGUARDING & FAMILY SUPPORT-SECTION 1/17CHILD CARE ACT 198,MISCELLANEOUS AND SPECIALTY RETAIL STORES,GPC
WALSALL COUNCIL,http://opendatacommunities.org/id/metropolitan-district-council/walsall ,30/06/2022,CHILDRENS SERVICES,HM PASSPORT OFFICE,13/04/2022,H59620220415NIIHLBANC-1,58.50,LOOKED AFTER CHILDRENS SOCIAL -FEES & LICENCES,GOVERNMENT SERVICES,GPC
WALSALL COUNCIL,http://opendatacommunities.org/id/metropolitan-district-council/walsall ,30/06/2022,ECONOMY & ENVIRONMENT,WWW.TARDISENVIRONMENTA,13/04/2022,H59620220415NJSYNAOPG-1,"1,564.28","WALSALL MARKET-LEASING, HIRE & RENTAL OF EQUI","UTILITIES - ELECTRIC, GAS, SANITARY & WATER",GPC
WALSALL COUNCIL,http://opendatacommunities.org/id/metropolitan-district-council/walsall ,30/06/2022,RESOURCES AND TRANSFORMATION,TESCO STORES 6161,13/04/2022,H59620220415OXMHIHYRR-1,1.19,TOWN HALL RESTAURANT BISTRO-FOOD & DRINK SUPPLIES,GROCERY STORES AND SUPERMARKETS,GPC
WALSALL COUNCIL,http://opendatacommunities.org/id/metropolitan-district-council/walsall ,30/06/2022,RESOURCES AND TRANSFORMATION,TESCO STORES 6161,13/04/2022,H59620220415OXMHIHYRR-2,18.25,TOWN HALL RESTAURANT BISTRO-FOOD & DRINK SUPPLIES,GROCERY STORES AND SUPERMARKETS,GPC
WALSALL COUNCIL,http://opendatacommunities.org/id/metropolitan-district-council/walsall ,30/06/2022,ECONOMY & ENVIRONMENT,AMAZON.CO.UK*2E26Z4M54,13/04/2022,H59620220415QEANKPBLF-1,30.61,COMMUNITY LIAISON-MATERIALS,OTHER DIRECT MARKETING-OTHER DIRECT MARKETERS,GPC
WALSALL COUNCIL,http://opendatacommunities.org/id/metropolitan-district-council/walsall ,30/06/2022,ECONOMY & ENVIRONMENT,SP FLASHBACK TAPE,13/04/2022,H59620220415QLVIHMNNS-1,52.30,FLEET-MATERIALS,COMPUTER SOFTWARE STORES,GPC
WALSALL COUNCIL,http://opendatacommunities.org/id/metropolitan-district-council/walsall ,30/06/2022,CHILDRENS SERVICES,HM PASSPORT OFFICE,13/04/2022,H59620220415QMIGGMCDV-1,58.50,LOOKED AFTER CHILDRENS SOCIAL -FEES & LICENCES,GOVERNMENT SERVICES,GPC
